Workbook

Sheet Cover Page
C2: CENTRAL BANK OF TRINIDAD AND TOBAGO
C3: V1.1
C4: CB120LCR - LIQUIDITY COVERAGE RATIO RETURN
C5: Date Issued : 10/02/2025
C6: FOR
C7: Select Institution | K7: =VLOOKUP($C$7,Institution_Codes!$A$2:$B$35,2,FALSE) -> 
C8: For the Month Ended:
C9: Month | F9: Month
E10: Year | F10: 2025
C11: Date Submitted:
E12: mm/dd/yyyy
E13: Type mm/dd/yyyy

Sheet Institution_Codes (hidden)
A1: Select Institution | B1: - | D1: Month | H1: Year
A2: ANSA Bank Limited | B2: BBDA | D2: January | E2: 1 | H2: 2023 | I2: 23
A3: ANSA Merchant Bank Limited | B3: AMAL | D3: February | E3: 2 | H3: 2024 | I3: 24
A4: ANSA Merchant Bank Limited Consolidated | B4: AMAL_CONS | D4: March | E4: 3 | H4: 2025 | I4: 25
A5: Caribbean Finance Company Limited | B5: CFC | D5: April | E5: 4 | H5: 2026 | I5: 26
A6: CIBC Caribbean Bank (Trinidad and Tobago) Limited | B6: FCIB | D6: May | E6: 5 | H6: 2027 | I6: 27
A7: Citibank (Trinidad & Tobago) Limited | B7: CITI | D7: June | E7: 6 | H7: 2028 | I7: 28
A8: Citicorp Merchant Bank Limited | B8: CMBL | D8: July | E8: 7 | H8: 2029 | I8: 29
A9: Citicorp Merchant Bank Limited Consolidated | B9: CMBL_CONS | D9: August | E9: 8 | H9: 2030 | I9: 30
A10: Development Finance Limited | B10: DFL | D10: September | E10: 9 | H10: 2031 | I10: 31
A11: Fidelity Finance and Leasing Company Limited | B11: FFL | D11: October | E11: 10 | H11: 2032 | I11: 32
A12: First Citizens Bank Limited | B12: FCB | D12: November | E12: 11 | H12: 2033 | I12: 33
A13: First Citizens Bank Limited Consolidated | B13: FCB_CONS | D13: December | E13: 12 | H13: 2034 | I13: 34
A14: First Citizens Depository Services Limited | B14: FCMT | H14: 2035 | I14: 35
A15: First Citizens Group Financial Holdings Limited | B15: FCB_HC | H15: 2036 | I15: 36
A16: First Citizens Trustee Services Limited | B16: FCTS | H16: 2037 | I16: 37
A17: Guardian Group Trust Limited | B17: GAM | H17: 2038 | I17: 38
A18: Island Finance Trinidad & Tobago Limited | B18: ISFL | H18: 2039 | I18: 39
A19: Jamaica Money Market Brokers (T&T) Limited | B19: JMMB_HC | H19: 2040 | I19: 40
A20: JMMB Bank (T&T) Limited | B20: ICBL | H20: 2041 | I20: 41
A21: JMMB Bank (T&T) Limited Consolidated | B21: ICBL_CONS | H21: 2042 | I21: 42
A22: JMMB Express Finance (T&T) Limited | B22: ITBM | H22: 2043 | I22: 43
A23: Massy Finance GFC Limited | B23: GFC | H23: 2044 | I23: 44
A24: NCB Merchant Bank (Trinidad and Tobago) Limited | B24: TFL | H24: 2045 | I24: 45
A25: RBC Financial (Caribbean) Limited | B25: RBTT_CONS | H25: 2046 | I25: 46
A26: RBC Investment Management (Caribbean) Limited | B26: RBAM | H26: 2047 | I26: 47
A27: RBC Merchant Bank (Caribbean) Limited | B27: RMBF | H27: 2048 | I27: 48
A28: RBC Royal Bank (Trinidad & Tobago) Limited | B28: RBTT | H28: 2049 | I28: 49
A29: RBC Trust (Trinidad & Tobago) Limited | B29: RBT | H29: 2050 | I29: 50
A30: Republic Bank Limited | B30: RBL
A31: Republic Bank Limited Consolidated | B31: RBL_CONS
A32: Republic Financial Holdings Limited | B32: RFHL
A33: Scotia Investments (Trinidad and Tobago) Limited | B33: SITT
A34: Scotiabank Trinidad and Tobago Limited | B34: BNS
A35: Scotiabank Trinidad and Tobago Limited Consolidated | B35: BNS_CONS

Sheet General Instructions
B1: CB120LCR Return
B2: Please use the CB120LCR instructions to complete the return using the link below.
B3: CB120LCR Instructions
B5: GENERAL INSTRUCTIONS
A6: 1 | B6: Do not amend the structure/format.
A7: 2 | B7: Do not remove the password protection.
A8: 3 | B8: Do not manipulate the formulas.
A9: 4 | B9: Complete Cover Page before submission. Institution, reporting month and date submitted must be populated.
A10: 5 | B10: No blank cells. All cells must be populated with zero where there is no data.
A11: 6 | B11: Do not use text.
A12: 7 | B12: Do not use symbols in cells (<, >, commas, full stops, apostrophe, tilde etc.).
A13: 8 | B13: Ensure when links are broken the files are checked for text references which have to be deleted/amended (#Ref, FALSE! etc.) prior to submission.
A14: 9 | B14: The file format should be Microsoft Excel with the extension ".xlsx".
B16: FILE NAMING FOR SUBMISSION
A17: 10 | B17: Use the file name structure "Institution Code_CB120LCR_V1.1_MMMYYYY".
A18: 11 | B18: Resubmissions must have the same file name structure as listed in 10 above.
A19: 12 | B19: The file name structure above is applicable to monthly and quarterly submissions.
B21: CONVERTING TO .XLSX AND SAVING FOR SUBMISSION
A22: 13 | B22: Select the "Convert to (.xlsx) and Save" button on the "VALIDATIONS" tab to save the final version for submission.
A23: 14 | B23: Follow the prompts to break all external links and save the return as .xlsx.
A24: 15 | B24: Please ensure there are no validation errors on the "VALIDATIONS" tab after links are broken.
A25: 16 | B25: Remember to save the file in the recommended naming convention "Institution Code_CB120LCR_V1.1_MMMYYYY" as per instruction number 10.
A26: 17 | B26: Once the steps above are completed the submission can be uploaded into GoAnywhere.

Sheet ASCII (hidden)
B1: =VLOOKUP('Cover Page'!$C$7,Institution_Codes!$A$1:$B$35,2,) -> -
A2: =VLOOKUP('Cover Page'!F9,Institution_Codes!D2:E13,2,FALSE) -> 
A3: =VLOOKUP('Cover Page'!F10,Institution_Codes!H2:I44,2,) -> 25
A5: .AGG.HQLA.MVTT.1.111 | B5: =ROUND('1.HQLA'!C10,5) -> 0
A6: .AGG.HQLA.MVTT.1.112 | B6: =ROUND('1.HQLA'!C11,5) -> 0
A7: .AGG.HQLA.MVTT.1.113 | B7: =ROUND('1.HQLA'!C12,5) -> 0
A8: .AGG.HQLA.MVTT.1.114 | B8: =ROUND('1.HQLA'!C13,5) -> 0
A9: .AGG.HQLA.MVTT.1.1151 | B9: =ROUND('1.HQLA'!C15,5) -> 0
A10: .AGG.HQLA.MVTT.1.1152 | B10: =ROUND('1.HQLA'!C16,5) -> 0
A11: .AGG.HQLA.MVTT.1.1153 | B11: =ROUND('1.HQLA'!C17,5) -> 0
A12: .AGG.HQLA.MVTT.1.1154 | B12: =ROUND('1.HQLA'!C18,5) -> 0
A13: .AGG.HQLA.MVTT.1.1161 | B13: =ROUND('1.HQLA'!C20,5) -> 0
A14: .AGG.HQLA.MVTT.1.1162 | B14: =ROUND('1.HQLA'!C21,5) -> 0
A15: .AGG.HQLA.MVTT.1.117 | B15: =ROUND('1.HQLA'!C22,5) -> 0
A16: .AGG.HQLA.MVTT.2.1211 | B16: =ROUND('1.HQLA'!C25,5) -> 0
A17: .AGG.HQLA.MVTT.2.1212 | B17: =ROUND('1.HQLA'!C26,5) -> 0
A18: .AGG.HQLA.MVTT.2.1213 | B18: =ROUND('1.HQLA'!C27,5) -> 0
A19: .AGG.HQLA.MVTT.2.1214 | B19: =ROUND('1.HQLA'!C28,5) -> 0
A20: .AGG.HQLA.MVTT.2.122 | B20: =ROUND('1.HQLA'!C29,5) -> 0
A21: .AGG.HQLA.MVTT.2.123 | B21: =ROUND('1.HQLA'!C30,5) -> 0
A22: .AGG.HQLA.MVTT.3.131 | B22: =ROUND('1.HQLA'!C32,5) -> 0
A23: .AGG.HQLA.MVTT.3.132 | B23: =ROUND('1.HQLA'!C33,5) -> 0
A24: .AGG.HQLA.MVTT.3.133 | B24: =ROUND('1.HQLA'!C34,5) -> 0
A25: .AGG.HQLA.WATT.1.111 | B25: =ROUND('1.HQLA'!E10,5) -> 0
A26: .AGG.HQLA.WATT.1.112 | B26: =ROUND('1.HQLA'!E11,5) -> 0
A27: .AGG.HQLA.WATT.1.113 | B27: =ROUND('1.HQLA'!E12,5) -> 0
A28: .AGG.HQLA.WATT.1.114 | B28: =ROUND('1.HQLA'!E13,5) -> 0
A29: .AGG.HQLA.WATT.1.1151 | B29: =ROUND('1.HQLA'!E15,5) -> 0
A30: .AGG.HQLA.WATT.1.1152 | B30: =ROUND('1.HQLA'!E16,5) -> 0
A31: .AGG.HQLA.WATT.1.1153 | B31: =ROUND('1.HQLA'!E17,5) -> 0
A32: .AGG.HQLA.WATT.1.1154 | B32: =ROUND('1.HQLA'!E18,5) -> 0
A33: .AGG.HQLA.WATT.1.1161 | B33: =ROUND('1.HQLA'!E20,5) -> 0
A34: .AGG.HQLA.WATT.1.1162 | B34: =ROUND('1.HQLA'!E21,5) -> 0
A35: .AGG.HQLA.WATT.1.117 | B35: =ROUND('1.HQLA'!E22,5) -> 0
A36: .AGG.HQLA.WATT.2.1211 | B36: =ROUND('1.HQLA'!E25,5) -> 0
A37: .AGG.HQLA.WATT.2.1212 | B37: =ROUND('1.HQLA'!E26,5) -> 0
A38: .AGG.HQLA.WATT.2.1213 | B38: =ROUND('1.HQLA'!E27,5) -> 0
A39: .AGG.HQLA.WATT.2.1214 | B39: =ROUND('1.HQLA'!E28,5) -> 0
A40: .AGG.HQLA.WATT.2.122 | B40: =ROUND('1.HQLA'!E29,5) -> 0
A41: .AGG.HQLA.WATT.2.123 | B41: =ROUND('1.HQLA'!E30,5) -> 0
A42: .AGG.HQLA.WATT.3.131 | B42: =ROUND('1.HQLA'!E32,5) -> 0
A43: .AGG.HQLA.WATT.3.132 | B43: =ROUND('1.HQLA'!E33,5) -> 0
A44: .AGG.HQLA.WATT.3.133 | B44: =ROUND('1.HQLA'!E34,5) -> 0
A45: .AGG.HQLA.WATT.4.141 | B45: =ROUND('1.HQLA'!E36,5) -> 0
A46: .AGG.HQLA.WATT.4.142 | B46: =ROUND('1.HQLA'!E37,5) -> 0
A47: .AGG.HQLA.WATT.4.143 | B47: =ROUND('1.HQLA'!E38,5) -> 0
A48: .AGG.OUT.AMTT.1.211 | B48: =ROUND('2.Outflows'!C9,5) -> 0
A49: .AGG.OUT.AMTT.1.2121 | B49: =ROUND('2.Outflows'!C11,5) -> 0
A50: .AGG.OUT.AMTT.1.2122 | B50: =ROUND('2.Outflows'!C12,5) -> 0
A51: .AGG.OUT.AMTT.1.2123 | B51: =ROUND('2.Outflows'!C13,5) -> 0
A52: .AGG.OUT.AMTT.1.2124 | B52: =ROUND('2.Outflows'!C14,5) -> 0
A53: .AGG.OUT.AMTT.1.2125 | B53: =ROUND('2.Outflows'!C15,5) -> 0
A54: .AGG.OUT.AMTT.1.2126 | B54: =ROUND('2.Outflows'!C16,5) -> 0
A55: .AGG.OUT.AMTT.1.2131 | B55: =ROUND('2.Outflows'!C18,5) -> 0
A56: .AGG.OUT.AMTT.1.2132 | B56: =ROUND('2.Outflows'!C19,5) -> 0
A57: .AGG.OUT.AMTT.1.2133 | B57: =ROUND('2.Outflows'!C20,5) -> 0
A58: .AGG.OUT.AMTT.1.2134 | B58: =ROUND('2.Outflows'!C21,5) -> 0
A59: .AGG.OUT.AMTT.1.2135 | B59: =ROUND('2.Outflows'!C22,5) -> 0
A60: .AGG.OUT.AMTT.1.2136 | B60: =ROUND('2.Outflows'!C23,5) -> 0
A61: .AGG.OUT.AMTT.1.214 | B61: =ROUND('2.Outflows'!C24,5) -> 0
A62: .AGG.OUT.AMTT.2.2211 | B62: =ROUND('2.Outflows'!C28,5) -> 0
A63: .AGG.OUT.AMTT.2.2212 | B63: =ROUND('2.Outflows'!C29,5) -> 0
A64: .AGG.OUT.AMTT.2.2213 | B64: =ROUND('2.Outflows'!C30,5) -> 0
A65: .AGG.OUT.AMTT.2.2214 | B65: =ROUND('2.Outflows'!C31,5) -> 0
A66: .AGG.OUT.AMTT.2.2215 | B66: =ROUND('2.Outflows'!C32,5) -> 0
A67: .AGG.OUT.AMTT.2.2216 | B67: =ROUND('2.Outflows'!C33,5) -> 0
A68: .AGG.OUT.AMTT.2.2221 | B68: =ROUND('2.Outflows'!C35,5) -> 0
A69: .AGG.OUT.AMTT.2.2222 | B69: =ROUND('2.Outflows'!C36,5) -> 0
A70: .AGG.OUT.AMTT.2.2223 | B70: =ROUND('2.Outflows'!C37,5) -> 0
A71: .AGG.OUT.AMTT.2.2224 | B71: =ROUND('2.Outflows'!C38,5) -> 0
A72: .AGG.OUT.AMTT.2.2225 | B72: =ROUND('2.Outflows'!C39,5) -> 0
A73: .AGG.OUT.AMTT.2.2226 | B73: =ROUND('2.Outflows'!C40,5) -> 0
A74: .AGG.OUT.AMTT.2.223 | B74: =ROUND('2.Outflows'!C41,5) -> 0
A75: .AGG.OUT.AMTT.2.2241 | B75: =ROUND('2.Outflows'!C43,5) -> 0
A76: .AGG.OUT.AMTT.2.2242 | B76: =ROUND('2.Outflows'!C44,5) -> 0
A77: .AGG.OUT.AMTT.2.2251 | B77: =ROUND('2.Outflows'!C46,5) -> 0
A78: .AGG.OUT.AMTT.2.2252 | B78: =ROUND('2.Outflows'!C47,5) -> 0
A79: .AGG.OUT.AMTT.2.226 | B79: =ROUND('2.Outflows'!C48,5) -> 0
A80: .AGG.OUT.AMTT.2.227 | B80: =ROUND('2.Outflows'!C49,5) -> 0
A81: .AGG.OUT.AMTT.2.228 | B81: =ROUND('2.Outflows'!C51,5) -> 0
A82: .AGG.OUT.AMTT.2.229 | B82: =ROUND('2.Outflows'!C52,5) -> 0
A83: .AGG.OUT.AMTT.2.230 | B83: =ROUND('2.Outflows'!C53,5) -> 0
A84: .AGG.OUT.AMTT.2.231 | B84: =ROUND('2.Outflows'!C54,5) -> 0
A85: .AGG.OUT.AMTT.2.232 | B85: =ROUND('2.Outflows'!C55,5) -> 0
A86: .AGG.OUT.AMTT.2.233 | B86: =ROUND('2.Outflows'!C56,5) -> 0
A87: .AGG.OUT.AMTT.2.234 | B87: =ROUND('2.Outflows'!C57,5) -> 0
A88: .AGG.OUT.AMTT.3.231 | B88: =ROUND('2.Outflows'!C59,5) -> 0
A89: .AGG.OUT.AMTT.3.232 | B89: =ROUND('2.Outflows'!C60,5) -> 0
A90: .AGG.OUT.AMTT.3.233 | B90: =ROUND('2.Outflows'!C61,5) -> 0
A91: .AGG.OUT.AMTT.3.234 | B91: =ROUND('2.Outflows'!C62,5) -> 0
A92: .AGG.OUT.AMTT.3.235 | B92: =ROUND('2.Outflows'!C63,5) -> 0
A93: .AGG.OUT.AMTT.3.236 | B93: =ROUND('2.Outflows'!C64,5) -> 0
A94: .AGG.OUT.AMTT.3.237 | B94: =ROUND('2.Outflows'!C65,5) -> 0
A95: .AGG.OUT.AMTT.3.238 | B95: =ROUND('2.Outflows'!C66,5) -> 0
A96: .AGG.OUT.AMTT.3.239 | B96: =ROUND('2.Outflows'!C67,5) -> 0
A97: .AGG.OUT.AMTT.3.240 | B97: =ROUND('2.Outflows'!C68,5) -> 0
A98: .AGG.OUT.AMTT.4.241 | B98: =ROUND('2.Outflows'!C70,5) -> 0
A99: .AGG.OUT.AMTT.4.242 | B99: =ROUND('2.Outflows'!C71,5) -> 0
A100: .AGG.OUT.AMTT.4.243 | B100: =ROUND('2.Outflows'!C72,5) -> 0
A101: .AGG.OUT.AMTT.4.244 | B101: =ROUND('2.Outflows'!C73,5) -> 0
A102: .AGG.OUT.AMTT.4.245 | B102: =ROUND('2.Outflows'!C74,5) -> 0
A103: .AGG.OUT.AMTT.4.246 | B103: =ROUND('2.Outflows'!C75,5) -> 0
A104: .AGG.OUT.AMTT.4.247 | B104: =ROUND('2.Outflows'!C76,5) -> 0
A105: .AGG.OUT.AMTT.4.248 | B105: =ROUND('2.Outflows'!C77,5) -> 0
A106: .AGG.OUT.AMTT.5.251 | B106: =ROUND('2.Outflows'!C79,5) -> 0
A107: .AGG.OUT.AMTT.6.261 | B107: =ROUND('2.Outflows'!C81,5) -> 0
A108: .AGG.OUT.AMTT.7.271 | B108: =ROUND('2.Outflows'!C83,5) -> 0
A109: .AGG.OUT.AMTT.7.272 | B109: =ROUND('2.Outflows'!C84,5) -> 0
A110: .AGG.OUT.AMTT.7.2731 | B110: =ROUND('2.Outflows'!C86,5) -> 0
A111: .AGG.OUT.AMTT.7.2732 | B111: =ROUND('2.Outflows'!C87,5) -> 0
A112: .AGG.OUT.AMTT.7.2733 | B112: =ROUND('2.Outflows'!C88,5) -> 0
A113: .AGG.OUT.AMTT.7.274 | B113: =ROUND('2.Outflows'!C89,5) -> 0
A114: .AGG.OUT.AMTT.7.275 | B114: =ROUND('2.Outflows'!C90,5) -> 0
A115: .AGG.OUT.AMTT.7.276 | B115: =ROUND('2.Outflows'!C91,5) -> 0
A116: .AGG.OUT.AMTT.8.281 | B116: =ROUND('2.Outflows'!C93,5) -> 0
A117: .AGG.OUT.AMTT.9.TOT | B117: =ROUND('2.Outflows'!C94,5) -> 0
A118: .AGG.OUT.CO.1.211 | B118: =ROUND('2.Outflows'!E9,5) -> 0
A119: .AGG.OUT.CO.1.2121 | B119: =ROUND('2.Outflows'!E11,5) -> 0
A120: .AGG.OUT.CO.1.2122 | B120: =ROUND('2.Outflows'!E12,5) -> 0
A121: .AGG.OUT.CO.1.2123 | B121: =ROUND('2.Outflows'!E13,5) -> 0
A122: .AGG.OUT.CO.1.2124 | B122: =ROUND('2.Outflows'!E14,5) -> 0
A123: .AGG.OUT.CO.1.2125 | B123: =ROUND('2.Outflows'!E15,5) -> 0
A124: .AGG.OUT.CO.1.2126 | B124: =ROUND('2.Outflows'!E16,5) -> 0
A125: .AGG.OUT.CO.1.2131 | B125: =ROUND('2.Outflows'!E18,5) -> 0
A126: .AGG.OUT.CO.1.2132 | B126: =ROUND('2.Outflows'!E19,5) -> 0
A127: .AGG.OUT.CO.1.2133 | B127: =ROUND('2.Outflows'!E20,5) -> 0
A128: .AGG.OUT.CO.1.2134 | B128: =ROUND('2.Outflows'!E21,5) -> 0
A129: .AGG.OUT.CO.1.2135 | B129: =ROUND('2.Outflows'!E22,5) -> 0
A130: .AGG.OUT.CO.1.2136 | B130: =ROUND('2.Outflows'!E23,5) -> 0
A131: .AGG.OUT.CO.1.214 | B131: =ROUND('2.Outflows'!E24,5) -> 0
A132: .AGG.OUT.CO.2.2211 | B132: =ROUND('2.Outflows'!E28,5) -> 0
A133: .AGG.OUT.CO.2.2212 | B133: =ROUND('2.Outflows'!E29,5) -> 0
A134: .AGG.OUT.CO.2.2213 | B134: =ROUND('2.Outflows'!E30,5) -> 0
A135: .AGG.OUT.CO.2.2214 | B135: =ROUND('2.Outflows'!E31,5) -> 0
A136: .AGG.OUT.CO.2.2215 | B136: =ROUND('2.Outflows'!E32,5) -> 0
A137: .AGG.OUT.CO.2.2216 | B137: =ROUND('2.Outflows'!E33,5) -> 0
A138: .AGG.OUT.CO.2.2221 | B138: =ROUND('2.Outflows'!E35,5) -> 0
A139: .AGG.OUT.CO.2.2222 | B139: =ROUND('2.Outflows'!E36,5) -> 0
A140: .AGG.OUT.CO.2.2223 | B140: =ROUND('2.Outflows'!E37,5) -> 0
A141: .AGG.OUT.CO.2.2224 | B141: =ROUND('2.Outflows'!E38,5) -> 0
A142: .AGG.OUT.CO.2.2225 | B142: =ROUND('2.Outflows'!E39,5) -> 0
A143: .AGG.OUT.CO.2.2226 | B143: =ROUND('2.Outflows'!E40,5) -> 0
A144: .AGG.OUT.CO.2.223 | B144: =ROUND('2.Outflows'!E41,5) -> 0
A145: .AGG.OUT.CO.2.2241 | B145: =ROUND('2.Outflows'!E43,5) -> 0
A146: .AGG.OUT.CO.2.2242 | B146: =ROUND('2.Outflows'!E44,5) -> 0
A147: .AGG.OUT.CO.2.2251 | B147: =ROUND('2.Outflows'!E46,5) -> 0
A148: .AGG.OUT.CO.2.2252 | B148: =ROUND('2.Outflows'!E47,5) -> 0
A149: .AGG.OUT.CO.2.226 | B149: =ROUND('2.Outflows'!E48,5) -> 0
A150: .AGG.OUT.CO.2.227 | B150: =ROUND('2.Outflows'!E49,5) -> 0
A151: .AGG.OUT.CO.2.228 | B151: =ROUND('2.Outflows'!E51,5) -> 0
A152: .AGG.OUT.CO.2.229 | B152: =ROUND('2.Outflows'!E52,5) -> 0
A153: .AGG.OUT.CO.2.230 | B153: =ROUND('2.Outflows'!E53,5) -> 0
A154: .AGG.OUT.CO.2.231 | B154: =ROUND('2.Outflows'!E54,5) -> 0
A155: .AGG.OUT.CO.2.232 | B155: =ROUND('2.Outflows'!E55,5) -> 0
A156: .AGG.OUT.CO.2.233 | B156: =ROUND('2.Outflows'!E56,5) -> 0
A157: .AGG.OUT.CO.2.234 | B157: =ROUND('2.Outflows'!E57,5) -> 0
A158: .AGG.OUT.CO.3.231 | B158: =ROUND('2.Outflows'!E59,5) -> 0
A159: .AGG.OUT.CO.3.232 | B159: =ROUND('2.Outflows'!E60,5) -> 0
A160: .AGG.OUT.CO.3.233 | B160: =ROUND('2.Outflows'!E61,5) -> 0
A161: .AGG.OUT.CO.3.234 | B161: =ROUND('2.Outflows'!E62,5) -> 0
A162: .AGG.OUT.CO.3.235 | B162: =ROUND('2.Outflows'!E63,5) -> 0
A163: .AGG.OUT.CO.3.236 | B163: =ROUND('2.Outflows'!E64,5) -> 0
A164: .AGG.OUT.CO.3.237 | B164: =ROUND('2.Outflows'!E65,5) -> 0
A165: .AGG.OUT.CO.3.238 | B165: =ROUND('2.Outflows'!E66,5) -> 0
A166: .AGG.OUT.CO.3.239 | B166: =ROUND('2.Outflows'!E67,5) -> 0
A167: .AGG.OUT.CO.3.240 | B167: =ROUND('2.Outflows'!E68,5) -> 0
A168: .AGG.OUT.CO.4.241 | B168: =ROUND('2.Outflows'!E70,5) -> 0
A169: .AGG.OUT.CO.4.242 | B169: =ROUND('2.Outflows'!E71,5) -> 0
A170: .AGG.OUT.CO.4.243 | B170: =ROUND('2.Outflows'!E72,5) -> 0
A171: .AGG.OUT.CO.4.244 | B171: =ROUND('2.Outflows'!E73,5) -> 0
A172: .AGG.OUT.CO.4.245 | B172: =ROUND('2.Outflows'!E74,5) -> 0
A173: .AGG.OUT.CO.4.246 | B173: =ROUND('2.Outflows'!E75,5) -> 0
A174: .AGG.OUT.CO.4.247 | B174: =ROUND('2.Outflows'!E76,5) -> 0
A175: .AGG.OUT.CO.4.248 | B175: =ROUND('2.Outflows'!E77,5) -> 0
A176: .AGG.OUT.CO.5.251 | B176: =ROUND('2.Outflows'!E79,5) -> 0
A177: .AGG.OUT.CO.6.261 | B177: =ROUND('2.Outflows'!E81,5) -> 0
A178: .AGG.OUT.CO.7.271 | B178: =ROUND('2.Outflows'!E83,5) -> 0
A179: .AGG.OUT.CO.7.272 | B179: =ROUND('2.Outflows'!E84,5) -> 0
A180: .AGG.OUT.CO.7.2731 | B180: =ROUND('2.Outflows'!E86,5) -> 0
A181: .AGG.OUT.CO.7.2732 | B181: =ROUND('2.Outflows'!E87,5) -> 0
A182: .AGG.OUT.CO.7.2733 | B182: =ROUND('2.Outflows'!E88,5) -> 0
A183: .AGG.OUT.CO.7.274 | B183: =ROUND('2.Outflows'!E89,5) -> 0
A184: .AGG.OUT.CO.7.275 | B184: =ROUND('2.Outflows'!E90,5) -> 0
A185: .AGG.OUT.CO.7.276 | B185: =ROUND('2.Outflows'!E91,5) -> 0
A186: .AGG.OUT.CO.8.281 | B186: =ROUND('2.Outflows'!E93,5) -> 0
A187: .AGG.OUT.CO.9.TOT | B187: =ROUND('2.Outflows'!E94,5) -> 0
A188: .AGG.IN.AMTT.1.3111 | B188: =ROUND('3.Inflows'!C10,5) -> 0
A189: .AGG.IN.AMTT.1.3112 | B189: =ROUND('3.Inflows'!C11,5) -> 0
A190: .AGG.IN.AMTT.1.3113 | B190: =ROUND('3.Inflows'!C12,5) -> 0
A191: .AGG.IN.AMTT.1.3114 | B191: =ROUND('3.Inflows'!C13,5) -> 0
A192: .AGG.IN.AMTT.1.3115 | B192: =ROUND('3.Inflows'!C14,5) -> 0
A193: .AGG.IN.AMTT.1.3116 | B193: =ROUND('3.Inflows'!C15,5) -> 0
A194: .AGG.IN.AMTT.1.312 | B194: =ROUND('3.Inflows'!C16,5) -> 0
A195: .AGG.IN.AMTT.2.321 | B195: =ROUND('3.Inflows'!C18,5) -> 0
A196: .AGG.IN.AMTT.2.322 | B196: =ROUND('3.Inflows'!C19,5) -> 0
A197: .AGG.IN.AMTT.3.331 | B197: =ROUND('3.Inflows'!C21,5) -> 0
A198: .AGG.IN.AMTT.3.332 | B198: =ROUND('3.Inflows'!C22,5) -> 0
A199: .AGG.IN.AMTT.3.333 | B199: =ROUND('3.Inflows'!C23,5) -> 0
A200: .AGG.IN.AMTT.3.334 | B200: =ROUND('3.Inflows'!C24,5) -> 0
A201: .AGG.IN.AMTT.3.335 | B201: =ROUND('3.Inflows'!C25,5) -> 0
... 1011 more rows

Sheet Summary LCR
A1: Liquidity Coverage Ratio (LCR)
A2: SUMMARY SHEET
A4: LIQUIDITY COVERAGE RATIOS | B4: CURRENCY | C4: HQLA | D4: OUTFLOWS | E4: INFLOWS | F4: LIQUIDITY COVERAGE RATIO
A5: LCR (all currencies in aggregate) | B5: Aggregate | C5: ='1.HQLA'!E38 -> 0 | D5: ='2.Outflows'!E94 -> 0 | E5: ='3.Inflows'!E32 -> 0 | F5: ='4.LCR calculation'!C33 -> 0
A6: LCR - TTD | B6: ='5.HQLA-TTD'!D2 -> TTD | C6: ='5.HQLA-TTD'!E38 -> 0 | D6: ='6.Outflows-TTD'!E94 -> 0 | E6: ='7.Inflows-TTD'!E32 -> 0 | F6: ='8.LCR Calculation-TTD'!C33 -> 0
A7: LCR - SC1 | B7: ='9.HQLA-SC1'!D2 -> 0 | C7: ='9.HQLA-SC1'!G38 -> 0 | D7: ='10.Outflows-SC1'!G94 -> 0 | E7: ='11.Inflows-SC1'!G32 -> 0 | F7: ='12.LCR calculation-SC1'!C33 -> 0
A8: LCR - SC2 | B8: ='13. HQLA-SC2'!D2 -> 0 | C8: ='13. HQLA-SC2'!G38 -> 0 | D8: ='14.Outflows-SC2'!G94 -> 0 | E8: ='15.Inflows-SC2'!G32 -> 0 | F8: ='16.LCR calculation-SC2'!C33 -> 0

Sheet 1.HQLA
A1: Liquidity Coverage Ratio (LCR)
A2: All items reported in thousand of TT dollars. Separate worksheets are required for each significant currency
A3: Insert data in the white cells only
A4: TT$'000
A6: 1. Stock of high quality liquid assets (HQLA)
A8: Reference | B8: Item | C8: Market Value (TT$'000) | D8: Weight | E8: Weighted Amount (TT$'000) | F8: LCR Guideline Reference -Section:
A9: 1.1. Level 1 assets
A10: 111 | B10: Coins and banknotes (including qualifying cash items in the process of collection) | D10: 1 | E10: =C10*D10 -> 0 | F10: 6.17
A11: 112 | B11: Eligible Reserves held at Central Banks | D11: 1 | E11: =C11*D11 -> 0 | F11: 6.17
A12: 113 | B12: Securities issued or guaranteed by the government of Trinidad and Tobago | D12: 1 | E12: =C12*D12 -> 0 | F12: 6.17
A13: 114 | B13: Securities issued or guaranteed by the Central Bank of Trinidad and Tobago | D13: 1 | E13: =C13*D13 -> 0 | F13: 6.17
A14: 115 | B14: Other eligible securities with a 0% risk weight: | F14: 6.17
A15: 1151 | B15: Issued or guaranteed by sovereigns | D15: 1 | E15: 0 | F15: 6.17
A16: 1152 | B16: Issued or guaranteed by central banks | D16: 1 | E16: 0 | F16: 6.17
A17: 1153 | B17: Issued or guaranteed by PSEs | D17: 1 | E17: 0 | F17: 6.17
A18: 1154 | B18: Issued or guaranteed by BIS, IMF, ECB, European Community, or MDBs | D18: 1 | E18: 0 | F18: 6.17
A19: 116 | B19: Other non-0% risk-weighted eligible sovereign or central bank securities: | F19: 6.17
A20: 1161 | B20: Issued in domestic currencies in the country in which the liquidity risk is being taken or in the licensee’s home country | D20: 1 | E20: 0 | F20: 6.17
A21: 1162 | B21: Issued in foreign currencies, up to the amount of the licensee’s stressed net cash outflows in that specific foreign currency stemming from the licensee’s operations in the jurisdiction where the liquidity risk is taken | D21: 1 | E21: 0 | F21: 6.17
A22: 117 | B22: Total stock of Level 1 assets | C22: =SUM(C10:C13)+SUM(C15:C18)+SUM(C20:C21) -> 0 | E22: =SUM(E10:E13)+SUM(E15:E18)+SUM(E20:E21) -> 0
A23: 1.2. Level 2A assets
A24: 121 | B24: Level 2A qualifying securities issued or guaranteed by: | F24: 6.21
A25: 1211 | B25: Sovereigns | D25: 0.85 | E25: =C25*D25 -> 0 | F25: 6.21
A26: =A25+1 -> 1212 | B26: Central banks | D26: 0.85 | E26: =C26*D26 -> 0 | F26: 6.21
A27: =A26+1 -> 1213 | B27: PSEs | D27: 0.85 | E27: =C27*D27 -> 0 | F27: 6.21
A28: =A27+1 -> 1214 | B28: MDBs | D28: 0.85 | E28: =C28*D28 -> 0 | F28: 6.21
A29: =A24+1 -> 122 | B29: Level 2A qualifying non-financial corporate bonds | D29: 0.85 | E29: =C29*D29 -> 0 | F29: 6.21
A30: =A29+1 -> 123 | B30: Total stock of Level 2A assets | C30: =SUM(C25:C29) -> 0 | E30: =SUM(E25:E29) -> 0
A31: 1.3. Level 2B assets
A32: 131 | B32: Corporate debt securities | D32: 0.5 | E32: =C32*D32 -> 0 | F32: 6.23
A33: =A32+1 -> 132 | B33: Non-financial common equity shares | D33: 0.5 | E33: =C33*D33 -> 0 | F33: 6.23
A34: =A33+1 -> 133 | B34: Total stock of Level 2B assets | C34: =SUM(C32:C33) -> 0 | E34: =SUM(E32:E33) -> 0
A35: 1.4. Stock of HQLA
A36: 141 | B36: Adjustment to stock of HQLA for 15% cap on Level 2B assets | E36: =MAX(E34-15/85*(E22+E30),E34-(15/60*E22),0) -> 0 | F36: 6.14
A37: =A36+1 -> 142 | B37: Adjustment to stock of HQLA for 40% cap on Level 2 assets | E37: =MAX((E30+E34-E36)-2/3*E22,0) -> 0 | F37: 6.14
A38: =A37+1 -> 143 | B38: Stock of HQLA after caps | E38: =E22+E30+E34-E36-E37 -> 0

Sheet 2.Outflows
A1: Liquidity Coverage Ratio (LCR)
A2: All items reported in thousand of TT dollars. A separate worksheet is required for each significant currency
A3: Insert data in the white cells only
A4: TT$'000
A6: 2. Cash outflows
A7: Reference | B7: Item | C7: Amount (TT$'000) | D7: Outflow rate | E7: Cash Outflows | F7: LCR Guideline Reference - Section:
A8: 2.1. Retail deposit run-off
A9: 211 | B9: Retail Term Deposits with residual maturity or withdrawal notice period > 30 days | D9: 0 | E9: =C9*D9 -> 0 | F9: 7.17
A10: 212 | B10: Stable Retail deposits
A11: 2121 | B11: Qualifying demand deposits in TT dollars | D11: 0.05 | E11: =C11*D11 -> 0 | F11: 7.6
A12: =A11+1 -> 2122 | B12: Qualifying demand deposits in foreign currency | D12: 0.05 | E12: 0 | F12: 7.6
A13: =A12+1 -> 2123 | B13: Qualifying saving deposits in TT dollars | D13: 0.05 | E13: 0 | F13: 7.6
A14: =A13+1 -> 2124 | B14: Qualifying saving deposits in foreign currency | D14: 0.05 | E14: 0 | F14: 7.6
A15: =A14+1 -> 2125 | B15: Qualifying time deposits in TT dollars | D15: 0.05 | E15: 0 | F15: 7.6
A16: =A15+1 -> 2126 | B16: Qualifying time deposits in foreign currency | D16: 0.05 | E16: 0 | F16: 7.6
A17: =A10+1 -> 213 | B17: Less Stable Retail deposits
A18: 2131 | B18: Demand deposits in TT dollar | D18: 0.1 | E18: =C18*D18 -> 0 | F18: 7.6
A19: =A18+1 -> 2132 | B19: Demand deposits in foreign currency | D19: 0.1 | E19: 0 | F19: 7.6
A20: =A19+1 -> 2133 | B20: Saving deposits in TT dollar | D20: 0.1 | E20: 0 | F20: 7.6
A21: =A20+1 -> 2134 | B21: Saving deposits in foreign currency | D21: 0.1 | E21: 0 | F21: 7.6
A22: =A21+1 -> 2135 | B22: Time deposits in TT dollar | D22: 0.1 | E22: 0 | F22: 7.6
A23: =A22+1 -> 2136 | B23: Time deposits in foreign currency | D23: 0.1 | E23: 0 | F23: 7.6
A24: =A17+1 -> 214 | B24: Total retail deposits outflows | C24: =SUM(C9:C23) -> 0 | E24: =SUM(E9:E23) -> 0
A25: 2.2.Wholesale Funding
A26: I. | B26: Unsecured wholesale funding
A27: 221 | B27: Stable Small Business Customers
A28: 2211 | B28: Qualifying demand deposits in TT dollars | D28: 0.05 | E28: =C28*D28 -> 0 | F28: 7.23
A29: =A28+1 -> 2212 | B29: Qualifying demand deposits in foreign currency | D29: 0.05 | E29: 0 | F29: 7.23
A30: =A29+1 -> 2213 | B30: Qualifying saving deposits in TT dollars | D30: 0.05 | E30: 0 | F30: 7.23
A31: =A30+1 -> 2214 | B31: Qualifying saving deposits in foreign currency | D31: 0.05 | E31: 0 | F31: 7.23
A32: =A31+1 -> 2215 | B32: Qualifying time deposits in TT dollars | D32: 0.05 | E32: 0 | F32: 7.23
A33: =A32+1 -> 2216 | B33: Qualifying time deposits in foreign currency | D33: 0.05 | E33: 0 | F33: 7.23
A34: =A27+1 -> 222 | B34: Less Stable Small Business Customers
A35: 2221 | B35: Demand deposits in TT dollar | D35: 0.1 | E35: =C35*D35 -> 0 | F35: 7.23
A36: =A35+1 -> 2222 | B36: Demand deposits in foreign currency | D36: 0.1 | E36: =C36*D36 -> 0 | F36: 7.23
A37: =A36+1 -> 2223 | B37: Saving deposits in TT dollar | D37: 0.1 | E37: =C37*D37 -> 0 | F37: 7.23
A38: =A37+1 -> 2224 | B38: Saving deposits in foreign currency | D38: 0.1 | E38: =C38*D38 -> 0 | F38: 7.23
A39: =A38+1 -> 2225 | B39: Time deposits in TT dollar | D39: 0.1 | E39: 0 | F39: 7.23
A40: =A39+1 -> 2226 | B40: Time deposits in foreign currency | D40: 0.1 | E40: 0 | F40: 7.23
A41: =A34+1 -> 223 | B41: Term deposits with a remaining maturity of > 30 days | D41: 0 | E41: 0 | F41: 7.23/7.17
A42: =A41+1 -> 224 | B42: Operational deposits generated by clearing, custody and cash management activities
A43: 2241 | B43: Not covered by deposit insurance | D43: 0.25 | E43: 0 | F43: 7.25
A44: =A43+1 -> 2242 | B44: Covered by deposit insurance | D44: 0.05 | E44: 0 | F44: 7.36
A45: =A42+1 -> 225 | B45: Funding provided by non-financial corporates and sovereigns, central banks, multilateral development banks, and PSEs
A46: 2251 | B46: Fully covered by deposit insurance | D46: 0.2 | E46: 0 | F46: 7.38
A47: =A46+1 -> 2252 | B47: Partially covered or not covered by deposit insurance | D47: 0.4 | E47: 0 | F47: 7.38
A48: =A45+1 -> 226 | B48: Other legal entity customers | D48: 1 | E48: 0 | F48: 7.39
A49: =A48+1 -> 227 | B49: Total Unsecured wholesale funding | C49: =SUM(C28:C48) -> 0 | E49: =SUM(E28:E48) -> 0
A50: II. | B50: Secured Wholesale Funding
A51: =A49+1 -> 228 | B51: Backed by Level 1 assets or with central banks | D51: 0 | E51: =C51*D51 -> 0 | F51: 7.51
A52: =A51+1 -> 229 | B52: Backed by Level 2A assets | D52: 0.15 | E52: =C52*D52 -> 0 | F52: 7.51
A53: 230 | B53: Secured funding transactions with domestic sovereign, PSEs or multilateral development banks, not backed by Level 1 or 2A assets | D53: 0.25 | E53: =C53*D53 -> 0 | F53: 7.51
A54: 231 | B54: Backed by Level 2B assets | D54: 0.5 | E54: =C54*D54 -> 0 | F54: 7.51
A55: 232 | B55: All other Secured Funding Transactions | D55: 1 | E55: =C55*D55 -> 0 | F55: 7.51
A56: 233 | B56: Total Secured Wholesale Funding | C56: =SUM(C51:C55) -> 0 | E56: =SUM(E51:E55) -> 0
A57: 234 | B57: Total Outflows Wholesale Funding | C57: =C49+C56 -> 0 | E57: =E49+E56 -> 0
A58: 2.3. Additional requirements
A59: 231 | B59: Derivative Cash Outflows | D59: 1 | E59: =C59*D59 -> 0 | F59: 7.52
A60: =A59+1 -> 232 | B60: Liquidity needs related to downgrade triggers embedded in financing transactions, derivatives and other contracts | D60: 1 | E60: 0 | F60: 7.56
A61: =A60+1 -> 233 | B61: Liquidity needs related to the potential for valuation changes on posted collateral securing derivative and other transactions, Level 1 assets | D61: 0 | E61: 0 | F61: 7.60
A62: 234 | B62: Liquidity needs related to the potential for valuation changes on posted collateral securing derivative and other transactions, other assets | D62: 0.2 | E62: 0 | F62: 7.61
A63: 235 | B63: Liquidity needs related to excess non-segregated collateral held by the licensee that could contractually be called at any time by the counterparty | D63: 1 | E63: 0 | F63: 7.64
A64: 236 | B64: Liquidity needs related to contractually required collateral on transactions for which the counterparty has not yet demanded the collateral be posted | D64: 1 | E64: 0 | F64: 7.65
A65: 237 | B65: Liquidity needs related to contracts that allow collateral substitution to non-HQLA assets | D65: 1 | E65: 0 | F65: 7.66
A66: 238 | B66: Loss of funding on asset-backed securities , covered bonds and other structured financing instruments | D66: 1 | E66: 0 | F66: 7.72
A67: 239 | B67: Loss of funding on asset-backed commercial paper, conduits, securities investment vehicles and other such financing facilities | D67: 1 | E67: 0 | F67: 7.73
A68: 240 | B68: Total additional requirements | C68: =SUM(C59:C67) -> 0 | E68: =SUM(E59:E67) -> 0
A69: 2.4. Drawdowns on committed credit and liquidity facilities
A70: 241 | B70: Committed credit and liquidity facilities to retail and small business customers | D70: 0.05 | E70: =C70*D70 -> 0 | F70: 7.84 a.
A71: =A70+1 -> 242 | B71: Committed credit facilities to non-financial corporates, sovereigns and central banks, PSEs and MDBs | D71: 0.1 | E71: =C71*D71 -> 0 | F71: 7.84 b.
A72: =A71+1 -> 243 | B72: Committed liquidity facilities to non-financial corporates, sovereigns and central banks, PSEs, and MDBs | D72: 0.3 | E72: 0 | F72: 7.84 c.
A73: 244 | B73: Committed credit and liquidity facilities extended to banks subject to prudential supervision | D73: 0.4 | E73: 0 | F73: 7.84 d.
A74: 245 | B74: Committed credit facilities to other financial institutions including securities firms, insurance companies, fiduciaries and beneficiaries | D74: 0.4 | E74: 0 | F74: 7.84 e.
A75: 246 | B75: Committed liquidity facilities to other financial institutions including securities firms, insurance companies, fiduciaries, and beneficiaries | D75: 1 | E75: 0 | F75: 7.84 f.
A76: 247 | B76: Committed credit and liquidity facilities to other legal entities (including SPVs), conduits and special purpose vehicles and other entities not included in the prior categories | D76: 1 | E76: 0 | F76: 7.84 g.
A77: 248 | B77: Total committed credit and liquidity facilities | C77: =SUM(C70:C76) -> 0 | E77: =SUM(E70:E76) -> 0
A78: 2.5. Contractual obligations to extend funds within a 30-day period
A79: 251 | B79: Obligations to financial institutions not captured elsewhere | D79: 1 | E79: =C79*D79 -> 0 | F79: 7.85
A80: 2.6. Trade Finance Instruments-Contingent Funding Obligations
A81: 261 | B81: Contingent funding obligations stemming from trade finance instruments | D81: 0.05 | E81: =C81*D81 -> 0 | F81: 7.87
A82: 2.7. Other contingent funding obligations | F82: 7.9
A83: 271 | B83: Unconditionally revocable "uncommitted" credit and liquidity facilities | D83: 0.5 | E83: =C83*D83 -> 0 | F83: 7.95 a.
A84: =A83+1 -> 272 | B84: Guarantees and letters of credit unrelated to trade finance obligations | D84: 0.5 | E84: 0 | F84: 7.95 b.
A85: =A84+1 -> 273 | B85: Non-contractual obligations such as: | F85: 7.95 c.
A86: 2731 | B86: a. potential requests for debt repurchases | D86: 0.5 | E86: 0 | F86: 7.95 c. i.
A87: =A86+1 -> 2732 | B87: b. structured products where customers anticipate ready marketability | D87: 0.5 | E87: 0 | F87: 7.95 c. ii.
A88: 2733 | B88: c. managed funds that are marketed with the objective of maintaining a stable value | D88: 0.5 | E88: 0 | F88: 7.95 c. iii.
A89: =A85+1 -> 274 | B89: Outflows from potential repurchases of outstanding debt obligations of issues with an affiliated dealer or market maker | D89: 0.5 | E89: 0 | F89: 7.95 d.
A90: 275 | B90: Non-contractual obligations where customer short positions are covered by other customers’ collateral | D90: 0.5 | E90: 0 | F90: 7.95 e.
A91: 276 | B91: Total other contingent funding obligations | C91: =SUM(C83:C90) -> 0 | E91: =SUM(E83:E90) -> 0
A92: 2.8. Other contractual cash flows
A93: 281 | B93: Any other contractual cash outflows | D93: 1 | E93: =C93*D93 -> 0 | F93: 7.96
A94: 2.9. Total Cash Outflows | C94: =C24+C57+C68+C77+C79+C81+C91+C93 -> 0 | E94: =E24+E57+E68+E77+E79+E81+E91+E93 -> 0

Sheet 3.Inflows
A1: Liquidity Coverage Ratio (LCR)
A2: All items reported in thousand of TT dollars. A separate worksheet is required for each significant currency
A3: Insert data in the white cells only
A4: TT$'000
A6: 3. Cash Inflows
A7: Reference | B7: Item | C7: Amount (TT$'000) | D7: Inflow rate | E7: Cash Inflows | F7: LCR Guideline Reference - Section:
A8: 3.1. Secured Lending
A9: 311 | B9: Maturing secured lending transactions backed by the following collateral:
A10: 3111 | B10: Level 1 assets | D10: 0 | E10: =C10*D10 -> 0 | F10: 8.4 a.
A11: =A10+1 -> 3112 | B11: Level 2A assets | D11: 0.15 | E11: 0 | F11: 8.4 a.
A12: =A11+1 -> 3113 | B12: Level 2B assets | D12: 0.5 | E12: 0 | F12: 8.4 a.
A13: =A12+1 -> 3114 | B13: Margin lending backed by all other collateral | D13: 0.5 | E13: 0 | F13: 8.4 a.
A14: =A13+1 -> 3115 | B14: All other collateral | D14: 1 | E14: 0 | F14: 8.4 a.
A15: =A14+1 -> 3116 | B15: Collateral is used to cover short positions | D15: 0 | E15: 0 | F15: 8.4 a.
A16: =A9+1 -> 312 | B16: Total secured lending inflows | C16: =SUM(C10:C15) -> 0 | E16: =SUM(E10:E15) -> 0
A17: 3.2. Committed facilities
A18: 321 | B18: Credit facilities, liquidity facilities and contingent funding facilities that an institution holds at other institutions | D18: 0 | E18: =C18*D18 -> 0 | F18: 8.4 b.
A19: 322 | B19: Total committed facilities | C19: =C18 -> 0 | E19: =E18 -> 0
A20: 3.3. Inflows by counterparty
A21: 331 | B21: Retail and small business customer inflows | D21: 0.5 | E21: =C21*D21 -> 0 | F21: 8.4 c. iv.
A22: =A21+1 -> 332 | B22: Wholesale inflows: non-financial counterparties (including non-financial corporates, sovereigns, MDBs, and PSEs) | D22: 0.5 | E22: 0 | F22: 8.4 c. v. 2.
A23: 333 | B23: Wholesale inflows: financial institution and central bank counterparties | D23: 1 | E23: 0 | F23: 8.4 c. v. 1.
A24: 334 | B24: Inflows from securities not included in the stock of HQLA | D24: 1 | E24: 0 | F24: 8.4 c. vi.
A25: 335 | B25: Operational deposits held at other financial institutions for clearing, custody, and cash management purposes | D25: 0 | E25: 0 | F25: 8.4 c. vii.
A26: 336 | B26: Balances held at other financial institutions in excess of operational deposits (“excess balances”) | D26: 1 | E26: 0 | F26: 8.4 c. viii.
A27: 337 | B27: Total inflows by counterparty | C27: =SUM(C21:C26) -> 0 | E27: =SUM(E21:E26) -> 0
A28: 3.4. Other cash inflows
A29: 341 | B29: Derivatives net cash inflows | D29: 1 | E29: =C29*D29 -> 0 | F29: 8.4 d. i.
A30: =A29+1 -> 342 | B30: Other contractual cash inflows | D30: 0.5 | E30: =C30*D30 -> 0 | F30: 8.4 d. iv.
A31: =A30+1 -> 343 | B31: Total other cash inflows | C31: =SUM(C29:C30) -> 0 | E31: =SUM(E29:E30) -> 0
A32: 3.5. Total Cash Inflows | C32: =C16+C19+C27+C31 -> 0 | E32: =E16+E19+E27+E31 -> 0

Sheet 4.LCR calculation
A1: Liquidity Coverage Ratio (LCR)
A2: All items reported in thousand of TT dollars. A separate worksheet is required for each significant currency
A3: TT$'000
A5: 4. The LCR calculation
A6: Reference | B6: Item | C6: Amount (TT$'000)
A7: 4.1. HQLAs
A8: 411 | B8: Level 1 Assets | C8: ='1.HQLA'!E22 -> 0
A9: =A8+1 -> 412 | B9: Level 2 Assets | C9: =C10+C11 -> 0
A10: 413 | B10: Level 2A Assets | C10: ='1.HQLA'!E30 -> 0
A11: 414 | B11: Level 2B Assets | C11: ='1.HQLA'!E34 -> 0
A12: 415 | B12: Adjustment to stock of HQLA for 15% cap on Level 2B assets | C12: ='1.HQLA'!E36 -> 0
A13: 416 | B13: Adjustment to stock of HQLA for 40% cap on Level 2 assets | C13: ='1.HQLA'!E37 -> 0
A14: 417 | B14: Total adjusted stock of HQLA | C14: =C8+C9-C12-C13 -> 0
A15: 4.2. Cash Outflows
A16: 421 | B16: Retail deposits | C16: ='2.Outflows'!E24 -> 0
A17: =A16+1 -> 422 | B17: Wholesale Funding | C17: ='2.Outflows'!E57 -> 0
A18: =A17+1 -> 423 | B18: Additional requirements | C18: ='2.Outflows'!E68 -> 0
A19: 424 | B19: Committed credit and liquidity facilities | C19: ='2.Outflows'!E77 -> 0
A20: 425 | B20: Contractual obligations to financial institutions | C20: ='2.Outflows'!E79 -> 0
A21: 426 | B21: Trade Finance Instruments | C21: ='2.Outflows'!E81 -> 0
A22: 427 | B22: Total other contingent funding obligations | C22: ='2.Outflows'!E91 -> 0
A23: 428 | B23: Any other contractual cash outflows | C23: ='2.Outflows'!E93 -> 0
A24: 429 | B24: Total Cash Outflows | C24: =SUM(C16:C23) -> 0
A25: 4.3. Cash Inflows
A26: 431 | B26: Secured lending inflows | C26: ='3.Inflows'!E16 -> 0
A27: =A26+1 -> 432 | B27: Committed facilities | C27: ='3.Inflows'!E19 -> 0
A28: =A27+1 -> 433 | B28: Inflows by counterparty | C28: ='3.Inflows'!E27 -> 0
A29: =A28+1 -> 434 | B29: Other cash inflows | C29: ='3.Inflows'!E31 -> 0
A30: =A29+1 -> 435 | B30: Total Cash Inflows | C30: =SUM(C26:C29) -> 0
A31: 4.4. Net Cash Outflows | C31: =C24-MIN(C30,0.75*C24) -> 0
A33: 4.5. Liquidity Coverage Ratio (%) | C33: =IFERROR(C14/C31,0) -> 0

Sheet 5.HQLA-TTD
A1: Liquidity Coverage Ratio (LCR)
A2: Significant Currency - TTD | C2: Significant Currency Type: | D2: TTD
A3: Separate worksheets are required for each significant currency
A4: Insert data in the white cells only
A5: TT$'000
A6: 1. Stock of high quality liquid assets (HQLA)
A8: Reference | B8: Item | C8: Market Value TT$'000 | D8: Weight | E8: Weighted Amount (TT$'000) | F8: LCR Guideline Reference -Section:
A9: 1.1. Level 1 assets
A10: 111 | B10: Coins and banknotes (including qualifying cash items in the process of collection) | C10: 0 | D10: 1 | E10: =C10*D10 -> 0 | F10: 6.17
A11: 112 | B11: Eligible Reserves held at Central Banks | C11: 0 | D11: 1 | E11: =C11*D11 -> 0 | F11: 6.17
A12: 113 | B12: Securities issued or guaranteed by the government of Trinidad and Tobago | C12: 0 | D12: 1 | E12: =C12*D12 -> 0 | F12: 6.17
A13: 114 | B13: Securities issued or guaranteed by the Central Bank of Trinidad and Tobago | C13: 0 | D13: 1 | E13: =C13*D13 -> 0 | F13: 6.17
A14: 115 | B14: Other eligible securities with a 0% risk weight: | F14: 6.17
A15: 1151 | B15: Issued or guaranteed by sovereigns | C15: 0 | D15: 1 | E15: =C15*D15 -> 0 | F15: 6.17
A16: 1152 | B16: Issued or guaranteed by central banks | C16: 0 | D16: 1 | E16: =C16*D16 -> 0 | F16: 6.17
A17: 1153 | B17: Issued or guaranteed by PSEs | C17: 0 | D17: 1 | E17: =C17*D17 -> 0 | F17: 6.17
A18: 1154 | B18: Issued or guaranteed by BIS, IMF, ECB, European Community, or MDBs | C18: 0 | D18: 1 | E18: =C18*D18 -> 0 | F18: 6.17
A19: 116 | B19: Other non-0% risk-weighted eligible sovereign or central bank securities: | F19: 6.17
A20: 1161 | B20: Issued in domestic currencies in the country in which the liquidity risk is being taken or in the licensee’s home country | C20: 0 | D20: 1 | E20: =C20*D20 -> 0 | F20: 6.17
A21: 1162 | B21: Issued in foreign currencies, up to the amount of the licensee’s stressed net cash outflows in that specific foreign currency stemming from the licensee’s operations in the jurisdiction where the liquidity risk is taken | C21: 0 | D21: 1 | E21: =C21*D21 -> 0 | F21: 6.17
A22: 117 | B22: Total stock of Level 1 assets | C22: =SUM(C10:C13)+SUM(C15:C18)+SUM(C20:C21) -> 0 | E22: =SUM(E10:E13)+SUM(E15:E18)+SUM(E20:E21) -> 0
A23: 1.2. Level 2A assets
A24: 121 | B24: Level 2A qualifying securities issued or guaranteed by: | F24: 6.21
A25: 1211 | B25: Sovereigns | C25: 0 | D25: 0.85 | E25: =C25*D25 -> 0 | F25: 6.21
A26: =A25+1 -> 1212 | B26: Central banks | C26: 0 | D26: 0.85 | E26: =C26*D26 -> 0 | F26: 6.21
A27: =A26+1 -> 1213 | B27: PSEs | C27: 0 | D27: 0.85 | E27: =C27*D27 -> 0 | F27: 6.21
A28: =A27+1 -> 1214 | B28: MDBs | C28: 0 | D28: 0.85 | E28: =C28*D28 -> 0 | F28: 6.21
A29: =A24+1 -> 122 | B29: Level 2A qualifying non-financial corporate bonds | C29: 0 | D29: 0.85 | E29: =C29*D29 -> 0 | F29: 6.21
A30: =A29+1 -> 123 | B30: Total stock of Level 2A assets | C30: =SUM(C25:C29) -> 0 | E30: =SUM(E25:E29) -> 0
A31: 1.3. Level 2B assets
A32: 131 | B32: Corporate debt securities | C32: 0 | D32: 0.5 | E32: =C32*D32 -> 0 | F32: 6.23
A33: =A32+1 -> 132 | B33: Non-financial common equity shares | C33: 0 | D33: 0.5 | E33: =C33*D33 -> 0 | F33: 6.23
A34: =A33+1 -> 133 | B34: Total stock of Level 2B assets | C34: =SUM(C32:C33) -> 0 | E34: =SUM(E32:E33) -> 0
A35: 1.4. Stock of HQLA
A36: 141 | B36: Adjustment to stock of HQLA for 15% cap on Level 2B assets | E36: =MAX(E34-15/85*(E22+E30),E34-15/60*E22,0) -> 0 | F36: 6.14
A37: =A36+1 -> 142 | B37: Adjustment to stock of HQLA for 40% cap on Level 2 assets | E37: =MAX((E30+E34-E36)-2/3*E22,0) -> 0 | F37: 6.14
A38: =A37+1 -> 143 | B38: Stock of HQLA after caps | E38: =E22+E30+E34-E36-E37 -> 0

Sheet 6.Outflows-TTD
A1: Liquidity Coverage Ratio (LCR)
A2: Significant Currency - TTD | C2: Significant Currency Type: | D2: TTD
A3: Separate worksheets are required for each significant currency
A4: Insert data in the white cells only
A5: TT$'000
A6: 2. Cash outflows
A7: Reference | B7: Item | C7: Amount TT$'000 | D7: Outflow rate | E7: Cash Outflows | F7: LCR Guideline Reference - Section:
A8: 2.1. Retail deposit run-off
A9: 211 | B9: Retail Term Deposits with residual maturity or withdrawal notice period > 30 days | C9: 0 | D9: 0 | E9: =C9*D9 -> 0 | F9: 7.17
A10: 212 | B10: Stable Retail deposits
A11: 2121 | B11: Qualifying demand deposits in TT dollars | C11: 0 | D11: 0.05 | E11: =C11*D11 -> 0 | F11: 7.6
A12: =A11+1 -> 2122 | B12: Qualifying demand deposits in foreign currency | C12: 0 | D12: 0.05 | E12: 0 | F12: 7.6
A13: =A12+1 -> 2123 | B13: Qualifying saving deposits in TT dollars | C13: 0 | D13: 0.05 | E13: 0 | F13: 7.6
A14: =A13+1 -> 2124 | B14: Qualifying saving deposits in foreign currency | C14: 0 | D14: 0.05 | E14: 0 | F14: 7.6
A15: =A14+1 -> 2125 | B15: Qualifying time deposits in TT dollars | C15: 0 | D15: 0.05 | E15: 0 | F15: 7.6
A16: =A15+1 -> 2126 | B16: Qualifying time deposits in foreign currency | C16: 0 | D16: 0.05 | E16: 0 | F16: 7.6
A17: =A10+1 -> 213 | B17: Less Stable Retail deposits
A18: 2131 | B18: Demand deposits in TT dollar | C18: 0 | D18: 0.1 | E18: =C18*D18 -> 0 | F18: 7.6
A19: =A18+1 -> 2132 | B19: Demand deposits in foreign currency | C19: 0 | D19: 0.1 | E19: 0 | F19: 7.6
A20: =A19+1 -> 2133 | B20: Saving deposits in TT dollar | C20: 0 | D20: 0.1 | E20: 0 | F20: 7.6
A21: =A20+1 -> 2134 | B21: Saving deposits in foreign currency | C21: 0 | D21: 0.1 | E21: 0 | F21: 7.6
A22: =A21+1 -> 2135 | B22: Time deposits in TT dollar | C22: 0 | D22: 0.1 | E22: 0 | F22: 7.6
A23: =A22+1 -> 2136 | B23: Time deposits in foreign currency | C23: 0 | D23: 0.1 | E23: 0 | F23: 7.6
A24: =A17+1 -> 214 | B24: Total retail deposits outflows | C24: =SUM(C9:C23) -> 0 | E24: =SUM(E9:E23) -> 0
A25: 2.2.Wholesale Funding
A26: I. | B26: Unsecured wholesale funding
A27: 221 | B27: Stable Small Business Customers
A28: 2211 | B28: Qualifying demand deposits in TT dollars | C28: 0 | D28: 0.05 | E28: =C28*D28 -> 0 | F28: 7.23
A29: =A28+1 -> 2212 | B29: Qualifying demand deposits in foreign currency | C29: 0 | D29: 0.05 | E29: 0 | F29: 7.23
A30: =A29+1 -> 2213 | B30: Qualifying saving deposits in TT dollars | C30: 0 | D30: 0.05 | E30: 0 | F30: 7.23
A31: =A30+1 -> 2214 | B31: Qualifying saving deposits in foreign currency | C31: 0 | D31: 0.05 | E31: 0 | F31: 7.23
A32: =A31+1 -> 2215 | B32: Qualifying time deposits in TT dollars | C32: 0 | D32: 0.05 | E32: 0 | F32: 7.23
A33: =A32+1 -> 2216 | B33: Qualifying time deposits in foreign currency | C33: 0 | D33: 0.05 | E33: 0 | F33: 7.23
A34: =A27+1 -> 222 | B34: Less Stable Small Business Customers
A35: 2221 | B35: Demand deposits in TT dollar | C35: 0 | D35: 0.1 | E35: =C35*D35 -> 0 | F35: 7.23
A36: =A35+1 -> 2222 | B36: Demand deposits in foreign currency | C36: 0 | D36: 0.1 | E36: 0 | F36: 7.23
A37: =A36+1 -> 2223 | B37: Saving deposits in TT dollar | C37: 0 | D37: 0.1 | E37: 0 | F37: 7.23
A38: =A37+1 -> 2224 | B38: Saving deposits in foreign currency | C38: 0 | D38: 0.1 | E38: 0 | F38: 7.23
A39: =A38+1 -> 2225 | B39: Time deposits in TT dollar | C39: 0 | D39: 0.1 | E39: 0 | F39: 7.23
A40: =A39+1 -> 2226 | B40: Time deposits in foreign currency | C40: 0 | D40: 0.1 | E40: 0 | F40: 7.23
A41: =A34+1 -> 223 | B41: Term deposits with a remaining maturity of > 30 days | C41: 0 | D41: 0 | E41: 0 | F41: 7.23/7.17
A42: =A41+1 -> 224 | B42: Operational deposits generated by clearing, custody and cash management activities
A43: 2241 | B43: Not covered by deposit insurance | C43: 0 | D43: 0.25 | E43: 0 | F43: 7.25
A44: =A43+1 -> 2242 | B44: Covered by deposit insurance | C44: 0 | D44: 0.05 | E44: 0 | F44: 7.36
A45: =A42+1 -> 225 | B45: Funding provided by non-financial corporates and sovereigns, central banks, multilateral development banks, and PSEs
A46: 2251 | B46: Fully covered by deposit insurance | C46: 0 | D46: 0.2 | E46: 0 | F46: 7.38
A47: =A46+1 -> 2252 | B47: Partially covered or not covered by deposit insurance | C47: 0 | D47: 0.4 | E47: 0 | F47: 7.38
A48: =A45+1 -> 226 | B48: Other legal entity customers | C48: 0 | D48: 1 | E48: 0 | F48: 7.39
A49: =A48+1 -> 227 | B49: Total Unsecured wholesale funding | C49: =SUM(C28:C48) -> 0 | E49: =SUM(E28:E48) -> 0
A50: II. | B50: Secured Wholesale Funding
A51: =A49+1 -> 228 | B51: Backed by Level 1 assets or with central banks | C51: 0 | D51: 0 | E51: =C51*D51 -> 0 | F51: 7.51
A52: =A51+1 -> 229 | B52: Backed by Level 2A assets | C52: 0 | D52: 0.15 | E52: =C52*D52 -> 0 | F52: 7.51
A53: 230 | B53: Secured funding transactions with domestic sovereign, PSEs or multilateral development banks, not backed by Level 1 or 2A assets | C53: 0 | D53: 0.25 | E53: =C53*D53 -> 0 | F53: 7.51
A54: 231 | B54: Backed by Level 2B assets | C54: 0 | D54: 0.5 | E54: =C54*D54 -> 0 | F54: 7.51
A55: 232 | B55: All other Secured Funding Transactions | C55: 0 | D55: 1 | E55: =C55*D55 -> 0 | F55: 7.51
A56: 233 | B56: Total Secured Wholesale Funding | C56: =SUM(C51:C55) -> 0 | E56: =SUM(E51:E55) -> 0
A57: 234 | B57: Total Outflows Wholesale Funding | C57: =C49+C56 -> 0 | E57: =E49+E56 -> 0
A58: 2.3. Additional requirements
A59: 231 | B59: Derivative Cash Outflows | C59: 0 | D59: 1 | E59: =C59*D59 -> 0 | F59: 7.52
A60: =A59+1 -> 232 | B60: Liquidity needs related to downgrade triggers embedded in financing transactions, derivatives and other contracts | C60: 0 | D60: 1 | E60: =C60*D60 -> 0 | F60: 7.56
A61: =A60+1 -> 233 | B61: Liquidity needs related to the potential for valuation changes on posted collateral securing derivative and other transactions, Level 1 assets | C61: 0 | D61: 0 | E61: 0 | F61: 7.60
A62: 234 | B62: Liquidity needs related to the potential for valuation changes on posted collateral securing derivative and other transactions, other assets | C62: 0 | D62: 0.2 | E62: 0 | F62: 7.61
A63: 235 | B63: Liquidity needs related to excess non-segregated collateral held by the licensee that could contractually be called at any time by the counterparty | C63: 0 | D63: 1 | E63: 0 | F63: 7.64
A64: 236 | B64: Liquidity needs related to contractually required collateral on transactions for which the counterparty has not yet demanded the collateral be posted | C64: 0 | D64: 1 | E64: 0 | F64: 7.65
A65: 237 | B65: Liquidity needs related to contracts that allow collateral substitution to non-HQLA assets | C65: 0 | D65: 1 | E65: 0 | F65: 7.66
A66: 238 | B66: Loss of funding on asset-backed securities , covered bonds and other structured financing instruments | C66: 0 | D66: 1 | E66: 0 | F66: 7.72
A67: 239 | B67: Loss of funding on asset-backed commercial paper, conduits, securities investment vehicles and other such financing facilities | C67: 0 | D67: 1 | E67: 0 | F67: 7.73
A68: 240 | B68: Total additional requirements | C68: =SUM(C59:C67) -> 0 | E68: =SUM(E59:E67) -> 0
A69: 2.4. Drawdowns on committed credit and liquidity facilities
A70: 241 | B70: Committed credit and liquidity facilities to retail and small business customers | C70: 0 | D70: 0.05 | E70: =C70*D70 -> 0 | F70: 7.84 a.
A71: =A70+1 -> 242 | B71: Committed credit facilities to non-financial corporates, sovereigns and central banks, PSEs and MDBs | C71: 0 | D71: 0.1 | E71: =C71*D71 -> 0 | F71: 7.84 b.
A72: =A71+1 -> 243 | B72: Committed liquidity facilities to non-financial corporates, sovereigns and central banks, PSEs, and MDBs | C72: 0 | D72: 0.3 | E72: 0 | F72: 7.84 c.
A73: 244 | B73: Committed credit and liquidity facilities extended to banks subject to prudential supervision | C73: 0 | D73: 0.4 | E73: 0 | F73: 7.84 d.
A74: 245 | B74: Committed credit facilities to other financial institutions including securities firms, insurance companies, fiduciaries and beneficiaries | C74: 0 | D74: 0.4 | E74: 0 | F74: 7.84 e.
A75: 246 | B75: Committed liquidity facilities to other financial institutions including securities firms, insurance companies, fiduciaries, and beneficiaries | C75: 0 | D75: 1 | E75: 0 | F75: 7.84 f.
A76: 247 | B76: Committed credit and liquidity facilities to other legal entities (including SPVs), conduits and special purpose vehicles and other entities not included in the prior categories | C76: 0 | D76: 1 | E76: 0 | F76: 7.84 g.
A77: 248 | B77: Total committed credit and liquidity facilities | C77: =SUM(C70:C76) -> 0 | E77: =SUM(E70:E76) -> 0
A78: 2.5. Contractual obligations to extend funds within a 30-day period
A79: 251 | B79: Obligations to financial institutions not captured elsewhere | C79: 0 | D79: 1 | E79: =C79*D79 -> 0 | F79: 7.85
A80: 2.6. Trade Finance Instruments-Contingent Funding Obligations
A81: 261 | B81: Contingent funding obligations stemming from trade finance instruments | C81: 0 | D81: 0.05 | E81: =C81*D81 -> 0 | F81: 7.87
A82: 2.7. Other contingent funding obligations | F82: 7.9
A83: 271 | B83: Unconditionally revocable "uncommitted" credit and liquidity facilities | C83: 0 | D83: 0.5 | E83: =C83*D83 -> 0 | F83: 7.95 a.
A84: =A83+1 -> 272 | B84: Guarantees and letters of credit unrelated to trade finance obligations | C84: 0 | D84: 0.5 | E84: 0 | F84: 7.95 b.
A85: =A84+1 -> 273 | B85: Non-contractual obligations such as: | F85: 7.95 c.
A86: 2731 | B86: a. potential requests for debt repurchases | C86: 0 | D86: 0.5 | E86: 0 | F86: 7.95 c. i.
A87: =A86+1 -> 2732 | B87: b. structured products where customers anticipate ready marketability | C87: 0 | D87: 0.5 | E87: 0 | F87: 7.95 c. ii.
A88: 2733 | B88: c. managed funds that are marketed with the objective of maintaining a stable value | C88: 0 | D88: 0.5 | E88: 0 | F88: 7.95 c. iii.
A89: =A85+1 -> 274 | B89: Outflows from potential repurchases of outstanding debt obligations of issues with an affiliated dealer or market maker | C89: 0 | D89: 0.5 | E89: 0 | F89: 7.95 d.
A90: 275 | B90: Non-contractual obligations where customer short positions are covered by other customers’ collateral | C90: 0 | D90: 0.5 | E90: 0 | F90: 7.95 e.
A91: 276 | B91: Total other contingent funding obligations | C91: =SUM(C83:C90) -> 0 | E91: =SUM(E83:E90) -> 0
A92: 2.8. Other contractual cash flows
A93: 281 | B93: Any other contractual cash outflows | C93: 0 | D93: 1 | E93: =C93*D93 -> 0 | F93: 7.96
A94: 2.9. Total Cash Outflows | C94: =C24+C57+C68+C77+C79+C81+C91+C93 -> 0 | E94: =E24+E57+E68+E77+E79+E81+E91+E93 -> 0

Sheet 7.Inflows-TTD
A1: Liquidity Coverage Ratio (LCR)
A2: Significant Currency - TTD | C2: Significant Currency Type: | D2: TTD
A3: A separate worksheet is required for each significant currency
A4: Insert data in the white cells only
A5: TT$'000
A6: 3. Cash Inflows
A7: Reference | B7: Item | C7: Amount TT$'000 | D7: Inflow rate | E7: Cash Inflows | F7: LCR Guideline Reference - Section:
A8: 3.1. Secured Lending
A9: 311 | B9: Maturing secured lending transactions backed by the following collateral:
A10: 3111 | B10: Level 1 assets | C10: 0 | D10: 0 | E10: =C10*D10 -> 0 | F10: 8.4 a.
A11: =A10+1 -> 3112 | B11: Level 2A assets | C11: 0 | D11: 0.15 | E11: 0 | F11: 8.4 a.
A12: =A11+1 -> 3113 | B12: Level 2B assets | C12: 0 | D12: 0.5 | E12: 0 | F12: 8.4 a.
A13: =A12+1 -> 3114 | B13: Margin lending backed by all other collateral | C13: 0 | D13: 0.5 | E13: 0 | F13: 8.4 a.
A14: =A13+1 -> 3115 | B14: All other collateral | C14: 0 | D14: 1 | E14: 0 | F14: 8.4 a.
A15: =A14+1 -> 3116 | B15: Collateral is used to cover short positions | C15: 0 | D15: 0 | E15: 0 | F15: 8.4 a.
A16: =A9+1 -> 312 | B16: Total secured lending inflows | C16: =SUM(C10:C15) -> 0 | E16: =SUM(E10:E15) -> 0
A17: 3.2. Committed facilities
A18: 321 | B18: Credit facilities, liquidity facilities and contingent funding facilities that an institution holds at other institutions | C18: 0 | D18: 0 | E18: =C18*D18 -> 0 | F18: 8.4 b.
A19: 322 | B19: Total committed facilities | C19: =C18 -> 0 | E19: =E18 -> 0
A20: 3.3. Inflows by counterparty
A21: 331 | B21: Retail and small business customer inflows | C21: 0 | D21: 0.5 | E21: =C21*D21 -> 0 | F21: 8.4 c. iv.
A22: =A21+1 -> 332 | B22: Wholesale inflows: non-financial counterparties (including non-financial corporates, sovereigns, MDBs, and PSEs) | C22: 0 | D22: 0.5 | E22: 0 | F22: 8.4 c. v. 2.
A23: 333 | B23: Wholesale inflows: financial institution and central bank counterparties | C23: 0 | D23: 1 | E23: 0 | F23: 8.4 c. v. 1.
A24: 334 | B24: Inflows from securities not included in the stock of HQLA | C24: 0 | D24: 1 | E24: 0 | F24: 8.4 c. vi.
A25: 335 | B25: Operational deposits held at other financial institutions for clearing, custody, and cash management purposes | C25: 0 | D25: 0 | E25: 0 | F25: 8.4 c. vii.
A26: 336 | B26: Balances held at other financial institutions in excess of operational deposits (“excess balances”) | C26: 0 | D26: 1 | E26: 0 | F26: 8.4 c. viii.
A27: 337 | B27: Total inflows by counterparty | C27: =SUM(C21:C26) -> 0 | E27: =SUM(E21:E26) -> 0
A28: 3.4. Other cash inflows
A29: 341 | B29: Derivatives net cash inflows | C29: 0 | D29: 1 | E29: =C29*D29 -> 0 | F29: 8.4 d. i.
A30: =A29+1 -> 342 | B30: Other contractual cash inflows | C30: 0 | D30: 0.5 | E30: =C30*D30 -> 0 | F30: 8.4 d. iv.
A31: =A30+1 -> 343 | B31: Total other cash inflows | C31: =SUM(C29:C30) -> 0 | E31: =SUM(E29:E30) -> 0
A32: 3.5. Total Cash Inflows | C32: =C16+C19+C27+C31 -> 0 | E32: =E16+E19+E27+E31 -> 0

Sheet 8.LCR Calculation-TTD
A1: Liquidity Coverage Ratio (LCR)
A2: Significant Currency - TTD | C2: Significant Currency Type: | D2: TTD
A3: A separate worksheet is required for each significant currency
A4: TT$'000
A5: 4. The LCR calculation
A6: Reference | B6: Item | C6: Amount (TT$'000)
A7: 4.1. HQLAs
A8: 411 | B8: Level 1 Assets | C8: ='5.HQLA-TTD'!E22 -> 0
A9: =A8+1 -> 412 | B9: Level 2 Assets | C9: =C10+C11 -> 0
A10: 413 | B10: Level 2A Assets | C10: ='5.HQLA-TTD'!E30 -> 0
A11: 414 | B11: Level 2B Assets | C11: ='5.HQLA-TTD'!E34 -> 0
A12: 415 | B12: Adjustment to stock of HQLA for 15% cap on Level 2B assets | C12: ='5.HQLA-TTD'!E36 -> 0
A13: 416 | B13: Adjustment to stock of HQLA for 40% cap on Level 2 assets | C13: ='5.HQLA-TTD'!E37 -> 0
A14: 417 | B14: Total adjusted stock of HQLA | C14: =C8+C9-C12-C13 -> 0
A15: 4.2. Cash Outflows
A16: 421 | B16: Retail deposits | C16: ='6.Outflows-TTD'!E24 -> 0
A17: =A16+1 -> 422 | B17: Wholesale Funding | C17: ='6.Outflows-TTD'!E57 -> 0
A18: =A17+1 -> 423 | B18: Additional requirements | C18: ='6.Outflows-TTD'!E68 -> 0
A19: 424 | B19: Committed credit and liquidity facilities | C19: ='6.Outflows-TTD'!E77 -> 0
A20: 425 | B20: Contractual obligations to financial institutions | C20: ='6.Outflows-TTD'!E79 -> 0
A21: 426 | B21: Trade Finance Instruments | C21: ='6.Outflows-TTD'!E81 -> 0
A22: 427 | B22: Total other contingent funding obligations | C22: ='6.Outflows-TTD'!E91 -> 0
A23: 428 | B23: Any other contractual cash outflows | C23: ='6.Outflows-TTD'!E93 -> 0
A24: 429 | B24: Total Cash Outflows | C24: =SUM(C16:C23) -> 0
A25: 4.3. Cash Inflows
A26: 431 | B26: Secured lending inflows | C26: ='7.Inflows-TTD'!E16 -> 0
A27: =A26+1 -> 432 | B27: Committed facilities | C27: ='7.Inflows-TTD'!E19 -> 0
A28: =A27+1 -> 433 | B28: Inflows by counterparty | C28: ='7.Inflows-TTD'!E27 -> 0
A29: =A28+1 -> 434 | B29: Other cash inflows | C29: ='7.Inflows-TTD'!E31 -> 0
A30: =A29+1 -> 435 | B30: Total Cash Inflows | C30: =SUM(C26:C29) -> 0
A31: 4.4. Net Cash Outflows | C31: =C24-MIN(C30,0.75*C24) -> 0
A33: 4.5. Liquidity Coverage Ratio (%) | C33: =IFERROR(C14/C31,0) -> 0

Sheet 9.HQLA-SC1
A1: Liquidity Coverage Ratio (LCR)
A2: Significant Foreign Currency 1 (SC1) | C2: Significant Currency Type:
A3: Separate worksheets are required for each significant currency
A4: Insert data in the white cells only
A5: TT$'000
A6: 1. Stock of high quality liquid assets (HQLA)
A8: Reference | B8: Item | C8: Market Value ($'000) in foreign currency | D8: Exchange rate | E8: Market Value - In TT$'000 equivalent | F8: Weight | G8: Weighted Amount (TT$'000) | H8: LCR Guideline Reference -Section:
A9: 1.1. Level 1 assets
A10: 111 | B10: Coins and banknotes (including qualifying cash items in the process of collection) | E10: =C10*$D$9 -> 0 | F10: 1 | G10: =E10*F10 -> 0 | H10: 6.17
A11: 112 | B11: Eligible Reserves held at Central Banks | E11: =C11*$D$9 -> 0 | F11: 1 | G11: =E11*F11 -> 0 | H11: 6.17
A12: 113 | B12: Securities issued or guaranteed by the government of Trinidad and Tobago | E12: =C12*$D$9 -> 0 | F12: 1 | G12: =E12*F12 -> 0 | H12: 6.17
A13: 114 | B13: Securities issued or guaranteed by the Central Bank of Trinidad and Tobago | E13: 0 | F13: 1 | G13: =E13*F13 -> 0 | H13: 6.17
A14: 115 | B14: Other eligible securities with a 0% risk weight: | H14: 6.17
A15: 1151 | B15: Issued or guaranteed by sovereigns | E15: =C15*$D$9 -> 0 | F15: 1 | G15: =E15*F15 -> 0 | H15: 6.17
A16: 1152 | B16: Issued or guaranteed by central banks | E16: 0 | F16: 1 | G16: =E16*F16 -> 0 | H16: 6.17
A17: 1153 | B17: Issued or guaranteed by PSEs | E17: 0 | F17: 1 | G17: =E17*F17 -> 0 | H17: 6.17
A18: 1154 | B18: Issued or guaranteed by BIS, IMF, ECB, European Community, or MDBs | E18: 0 | F18: 1 | G18: =E18*F18 -> 0 | H18: 6.17
A19: 116 | B19: Other non-0% risk-weighted eligible sovereign or central bank securities: | H19: 6.17
A20: 1161 | B20: Issued in domestic currencies in the country in which the liquidity risk is being taken or in the licensee’s home country | E20: 0 | F20: 1 | G20: =E20*F20 -> 0 | H20: 6.17
A21: 1162 | B21: Issued in foreign currencies, up to the amount of the licensee’s stressed net cash outflows in that specific foreign currency stemming from the licensee’s operations in the jurisdiction where the liquidity risk is taken | E21: 0 | F21: 1 | G21: =E21*F21 -> 0 | H21: 6.17
A22: 117 | B22: Total stock of Level 1 assets | C22: =SUM(C10:C13)+SUM(C15:C18)+SUM(C20:C21) -> 0 | E22: =SUM(E10:E13)+SUM(E15:E18)+SUM(E20:E21) -> 0 | G22: =SUM(G10:G13)+SUM(G15:G18)+SUM(G20:G21) -> 0
A23: 1.2. Level 2A assets
A24: 121 | B24: Level 2A qualifying securities issued or guaranteed by: | H24: 6.21
A25: 1211 | B25: Sovereigns | E25: =C25*$D$9 -> 0 | F25: 0.85 | G25: =E25*F25 -> 0 | H25: 6.21
A26: =A25+1 -> 1212 | B26: Central banks | E26: =C26*$D$9 -> 0 | F26: 0.85 | G26: =E26*F26 -> 0 | H26: 6.21
A27: =A26+1 -> 1213 | B27: PSEs | E27: =C27*$D$9 -> 0 | F27: 0.85 | G27: =E27*F27 -> 0 | H27: 6.21
A28: =A27+1 -> 1214 | B28: MDBs | E28: =C28*$D$9 -> 0 | F28: 0.85 | G28: =E28*F28 -> 0 | H28: 6.21
A29: =A24+1 -> 122 | B29: Level 2A qualifying non-financial corporate bonds | E29: =C29*$D$9 -> 0 | F29: 0.85 | G29: =E29*F29 -> 0 | H29: 6.21
A30: =A29+1 -> 123 | B30: Total stock of Level 2A assets | C30: =SUM(C25:C29) -> 0 | E30: =SUM(E25:E29) -> 0 | G30: =SUM(G25:G29) -> 0
A31: 1.3. Level 2B assets
A32: 131 | B32: Corporate debt securities | E32: =C32*$D$9 -> 0 | F32: 0.5 | G32: =E32*F32 -> 0 | H32: 6.23
A33: =A32+1 -> 132 | B33: Non-financial common equity shares | E33: =C33*$D$9 -> 0 | F33: 0.5 | G33: =E33*F33 -> 0 | H33: 6.23
A34: =A33+1 -> 133 | B34: Total stock of Level 2B assets | C34: =SUM(C32:C33) -> 0 | E34: =SUM(E32:E33) -> 0 | G34: =SUM(G32:G33) -> 0
A35: 1.4. Stock of HQLA
A36: 141 | B36: Adjustment to stock of HQLA for 15% cap on Level 2B assets | G36: =MAX(G34-15/85*(G22+G30),G34-15/60*G22,0) -> 0 | H36: 6.14
A37: =A36+1 -> 142 | B37: Adjustment to stock of HQLA for 40% cap on Level 2 assets | G37: =MAX((G30+G34-G36)-2/3*G22,0) -> 0 | H37: 6.14
A38: =A37+1 -> 143 | B38: Stock of HQLA after caps | G38: =G22+G30+G34-G36-G37 -> 0

Sheet 10.Outflows-SC1
A1: Liquidity Coverage Ratio (LCR)
A2: Significant Foreign Currency 1 (SC1) | C2: Significant Currency Type: | D2: ='9.HQLA-SC1'!D2 -> 0
A3: Separate worksheets are required for each significant currency
A4: Insert data in the white cells only
A5: TT$'000
A6: 2. Cash outflows
A7: Reference | B7: Item | C7: Amount ($'000) in foreign currency | D7: Exchange Rate | E7: Amount in TT$'000 equivalent | F7: Outflow rate | G7: Cash Outflows | H7: LCR Guideline Reference - Section:
A8: 2.1. Retail deposit run-off
A9: 211 | B9: Retail Term Deposits with residual maturity or withdrawal notice period > 30 days | E9: =C9*$D$8 -> 0 | F9: 0 | G9: =E9*F9 -> 0 | H9: 7.17
A10: 212 | B10: Stable Retail deposits
A11: 2121 | B11: Qualifying demand deposits in TT dollars | E11: =C11*$D$8 -> 0 | F11: 0.05 | G11: =E11*F11 -> 0 | H11: 7.6
A12: =A11+1 -> 2122 | B12: Qualifying demand deposits in foreign currency | E12: 0 | F12: 0.05 | G12: 0 | H12: 7.6
A13: =A12+1 -> 2123 | B13: Qualifying saving deposits in TT dollars | E13: 0 | F13: 0.05 | G13: 0 | H13: 7.6
A14: =A13+1 -> 2124 | B14: Qualifying saving deposits in foreign currency | E14: 0 | F14: 0.05 | G14: 0 | H14: 7.6
A15: =A14+1 -> 2125 | B15: Qualifying time deposits in TT dollars | E15: 0 | F15: 0.05 | G15: 0 | H15: 7.6
A16: =A15+1 -> 2126 | B16: Qualifying time deposits in foreign currency | E16: 0 | F16: 0.05 | G16: 0 | H16: 7.6
A17: =A10+1 -> 213 | B17: Less Stable Retail deposits
A18: 2131 | B18: Demand deposits in TT dollar | E18: 0 | F18: 0.1 | G18: =E18*F18 -> 0 | H18: 7.6
A19: =A18+1 -> 2132 | B19: Demand deposits in foreign currency | E19: 0 | F19: 0.1 | G19: 0 | H19: 7.6
A20: =A19+1 -> 2133 | B20: Saving deposits in TT dollar | E20: 0 | F20: 0.1 | G20: 0 | H20: 7.6
A21: =A20+1 -> 2134 | B21: Saving deposits in foreign currency | E21: 0 | F21: 0.1 | G21: 0 | H21: 7.6
A22: =A21+1 -> 2135 | B22: Time deposits in TT dollar | E22: 0 | F22: 0.1 | G22: 0 | H22: 7.6
A23: =A22+1 -> 2136 | B23: Time deposits in foreign currency | E23: 0 | F23: 0.1 | G23: 0 | H23: 7.6
A24: =A17+1 -> 214 | B24: Total retail deposits outflows | C24: =C9+SUM(C11:C16)+SUM(C18:C23) -> 0 | E24: =SUM(E9:E23) -> 0 | G24: =SUM(G9:G23) -> 0
A25: 2.2.Wholesale Funding
A26: I. | B26: Unsecured wholesale funding
A27: 221 | B27: Stable Small Business Customers
A28: 2211 | B28: Qualifying demand deposits in TT dollars | E28: =C28*$D$8 -> 0 | F28: 0.05 | G28: =E28*F28 -> 0 | H28: 7.23
A29: =A28+1 -> 2212 | B29: Qualifying demand deposits in foreign currency | E29: =C29*$D$8 -> 0 | F29: 0.05 | G29: 0 | H29: 7.23
A30: =A29+1 -> 2213 | B30: Qualifying saving deposits in TT dollars | E30: 0 | F30: 0.05 | G30: 0 | H30: 7.23
A31: =A30+1 -> 2214 | B31: Qualifying saving deposits in foreign currency | E31: 0 | F31: 0.05 | G31: 0 | H31: 7.23
A32: =A31+1 -> 2215 | B32: Qualifying time deposits in TT dollars | E32: 0 | F32: 0.05 | G32: 0 | H32: 7.23
A33: =A32+1 -> 2216 | B33: Qualifying time deposits in foreign currency | E33: 0 | F33: 0.05 | G33: 0 | H33: 7.23
A34: =A27+1 -> 222 | B34: Less Stable Small Business Customers
A35: 2221 | B35: Demand deposits in TT dollar | E35: 0 | F35: 0.1 | G35: =E35*F35 -> 0 | H35: 7.23
A36: =A35+1 -> 2222 | B36: Demand deposits in foreign currency | E36: 0 | F36: 0.1 | G36: 0 | H36: 7.23
A37: =A36+1 -> 2223 | B37: Saving deposits in TT dollar | E37: 0 | F37: 0.1 | G37: 0 | H37: 7.23
A38: =A37+1 -> 2224 | B38: Saving deposits in foreign currency | E38: 0 | F38: 0.1 | G38: 0 | H38: 7.23
A39: =A38+1 -> 2225 | B39: Time deposits in TT dollar | E39: 0 | F39: 0.1 | G39: 0 | H39: 7.23
A40: =A39+1 -> 2226 | B40: Time deposits in foreign currency | E40: 0 | F40: 0.1 | G40: 0 | H40: 7.23
A41: =A34+1 -> 223 | B41: Term deposits with a remaining maturity of > 30 days | E41: 0 | F41: 0 | G41: 0 | H41: 7.23/7.17
A42: =A41+1 -> 224 | B42: Operational deposits generated by clearing, custody and cash management activities
A43: 2241 | B43: Not covered by deposit insurance | E43: 0 | F43: 0.25 | G43: 0 | H43: 7.25
A44: =A43+1 -> 2242 | B44: Covered by deposit insurance | E44: 0 | F44: 0.05 | G44: 0 | H44: 7.36
A45: =A42+1 -> 225 | B45: Funding provided by non-financial corporates and sovereigns, central banks, multilateral development banks, and PSEs
A46: 2251 | B46: Fully covered by deposit insurance | E46: 0 | F46: 0.2 | G46: 0 | H46: 7.38
A47: =A46+1 -> 2252 | B47: Partially covered or not covered by deposit insurance | E47: 0 | F47: 0.4 | G47: 0 | H47: 7.38
A48: =A45+1 -> 226 | B48: Other legal entity customers | E48: 0 | F48: 1 | G48: 0 | H48: 7.39
A49: =A48+1 -> 227 | B49: Total Unsecured wholesale funding | C49: =SUM(C28:C33)+SUM(C35:C41)+SUM(C43:C44)+SUM(C46:C48) -> 0 | E49: =SUM(E28:E48) -> 0 | G49: =SUM(G28:G48) -> 0
A50: II. | B50: Secured Wholesale Funding
A51: =A49+1 -> 228 | B51: Backed by Level 1 assets or with central banks | E51: =C51*$D$8 -> 0 | F51: 0 | G51: =E51*F51 -> 0 | H51: 7.51
A52: =A51+1 -> 229 | B52: Backed by Level 2A assets | E52: =C52*$D$8 -> 0 | F52: 0.15 | G52: =E52*F52 -> 0 | H52: 7.51
A53: 230 | B53: Secured funding transactions with domestic sovereign, PSEs or multilateral development banks, not backed by Level 1 or 2A assets | E53: 0 | F53: 0.25 | G53: =E53*F53 -> 0 | H53: 7.51
A54: 231 | B54: Backed by Level 2B assets | E54: 0 | F54: 0.5 | G54: =E54*F54 -> 0 | H54: 7.51
A55: 232 | B55: All other Secured Funding Transactions | E55: 0 | F55: 1 | G55: =E55*F55 -> 0 | H55: 7.51
A56: 233 | B56: Total Secured Wholesale Funding | C56: =SUM(C51:C55) -> 0 | E56: =SUM(E51:E55) -> 0 | G56: =SUM(G51:G55) -> 0
A57: 234 | B57: Total Outflows Wholesale Funding | C57: =C49+C56 -> 0 | E57: =E49+E56 -> 0 | G57: =G49+G56 -> 0
A58: 2.3. Additional requirements
A59: 231 | B59: Derivative Cash Outflows | E59: =C59*$D$8 -> 0 | F59: 1 | G59: =E59*F59 -> 0 | H59: 7.52
A60: =A59+1 -> 232 | B60: Liquidity needs related to downgrade triggers embedded in financing transactions, derivatives and other contracts | E60: =C60*$D$8 -> 0 | F60: 1 | G60: =E60*F60 -> 0 | H60: 7.56
A61: =A60+1 -> 233 | B61: Liquidity needs related to the potential for valuation changes on posted collateral securing derivative and other transactions, Level 1 assets | E61: 0 | F61: 0 | G61: 0 | H61: 7.60
A62: 234 | B62: Liquidity needs related to the potential for valuation changes on posted collateral securing derivative and other transactions, other assets | E62: 0 | F62: 0.2 | G62: 0 | H62: 7.61
A63: 235 | B63: Liquidity needs related to excess non-segregated collateral held by the licensee that could contractually be called at any time by the counterparty | E63: 0 | F63: 1 | G63: 0 | H63: 7.64
A64: 236 | B64: Liquidity needs related to contractually required collateral on transactions for which the counterparty has not yet demanded the collateral be posted | E64: 0 | F64: 1 | G64: 0 | H64: 7.65
A65: 237 | B65: Liquidity needs related to contracts that allow collateral substitution to non-HQLA assets | E65: 0 | F65: 1 | G65: 0 | H65: 7.66
A66: 238 | B66: Loss of funding on asset-backed securities , covered bonds and other structured financing instruments | E66: 0 | F66: 1 | G66: 0 | H66: 7.72
A67: 239 | B67: Loss of funding on asset-backed commercial paper, conduits, securities investment vehicles and other such financing facilities | E67: 0 | F67: 1 | G67: 0 | H67: 7.73
A68: 240 | B68: Total additional requirements | C68: =SUM(C59:C67) -> 0 | E68: =SUM(E59:E67) -> 0 | G68: =SUM(G59:G67) -> 0
A69: 2.4. Drawdowns on committed credit and liquidity facilities
A70: 241 | B70: Committed credit and liquidity facilities to retail and small business customers | E70: =C70*$D$8 -> 0 | F70: 0.05 | G70: =E70*F70 -> 0 | H70: 7.84 a.
A71: =A70+1 -> 242 | B71: Committed credit facilities to non-financial corporates, sovereigns and central banks, PSEs and MDBs | E71: =C71*$D$8 -> 0 | F71: 0.1 | G71: =E71*F71 -> 0 | H71: 7.84 b.
A72: =A71+1 -> 243 | B72: Committed liquidity facilities to non-financial corporates, sovereigns and central banks, PSEs, and MDBs | E72: 0 | F72: 0.3 | G72: 0 | H72: 7.84 c.
A73: 244 | B73: Committed credit and liquidity facilities extended to banks subject to prudential supervision | E73: 0 | F73: 0.4 | G73: 0 | H73: 7.84 d.
A74: 245 | B74: Committed credit facilities to other financial institutions including securities firms, insurance companies, fiduciaries and beneficiaries | E74: 0 | F74: 0.4 | G74: 0 | H74: 7.84 e.
A75: 246 | B75: Committed liquidity facilities to other financial institutions including securities firms, insurance companies, fiduciaries, and beneficiaries | E75: 0 | F75: 1 | G75: 0 | H75: 7.84 f.
A76: 247 | B76: Committed credit and liquidity facilities to other legal entities (including SPVs), conduits and special purpose vehicles and other entities not included in the prior categories | E76: 0 | F76: 1 | G76: 0 | H76: 7.84 g.
A77: 248 | B77: Total committed credit and liquidity facilities | C77: =SUM(C70:C76) -> 0 | E77: =SUM(E70:E76) -> 0 | G77: =SUM(G70:G76) -> 0
A78: 2.5. Contractual obligations to extend funds within a 30-day period
A79: 251 | B79: Obligations to financial institutions not captured elsewhere | E79: =C79*$D$8 -> 0 | F79: 1 | G79: =E79*F79 -> 0 | H79: 7.85
A80: 2.6. Trade Finance Instruments-Contingent Funding Obligations
A81: 261 | B81: Contingent funding obligations stemming from trade finance instruments | E81: =C81*$D$8 -> 0 | F81: 0.05 | G81: =E81*F81 -> 0 | H81: 7.87
A82: 2.7. Other contingent funding obligations | H82: 7.9
A83: 271 | B83: Unconditionally revocable "uncommitted" credit and liquidity facilities | E83: =C83*$D$8 -> 0 | F83: 0.5 | G83: =E83*F83 -> 0 | H83: 7.95 a.
A84: =A83+1 -> 272 | B84: Guarantees and letters of credit unrelated to trade finance obligations | E84: =C84*$D$8 -> 0 | F84: 0.5 | G84: 0 | H84: 7.95 b.
A85: =A84+1 -> 273 | B85: Non-contractual obligations such as: | H85: 7.95 c.
A86: 2731 | B86: a. potential requests for debt repurchases | E86: 0 | F86: 0.5 | G86: 0 | H86: 7.95 c. i.
A87: =A86+1 -> 2732 | B87: b. structured products where customers anticipate ready marketability | E87: 0 | F87: 0.5 | G87: 0 | H87: 7.95 c. ii.
A88: 2733 | B88: c. managed funds that are marketed with the objective of maintaining a stable value | E88: 0 | F88: 0.5 | G88: 0 | H88: 7.95 c. iii.
A89: =A85+1 -> 274 | B89: Outflows from potential repurchases of outstanding debt obligations of issues with an affiliated dealer or market maker | E89: 0 | F89: 0.5 | G89: 0 | H89: 7.95 d.
A90: 275 | B90: Non-contractual obligations where customer short positions are covered by other customers’ collateral | E90: 0 | F90: 0.5 | G90: 0 | H90: 7.95 e.
A91: 276 | B91: Total other contingent funding obligations | C91: =SUM(C83:C90) -> 0 | E91: =SUM(E83:E90) -> 0 | G91: =SUM(G83:G90) -> 0
A92: 2.8. Other contractual cash flows
A93: 281 | B93: Any other contractual cash outflows | E93: =C93*$D$8 -> 0 | F93: 1 | G93: =E93*F93 -> 0 | H93: 7.96
A94: 2.9. Total Cash Outflows | C94: =C24+C57+C68+C77+C79+C81+C91+C93 -> 0 | E94: =E24+E57+E68+E77+E79+E81+E91+E93 -> 0 | G94: =G24+G57+G68+G77+G79+G81+G91+G93 -> 0

Sheet 11.Inflows-SC1
A1: Liquidity Coverage Ratio (LCR)
A2: Significant Foreign Currency 1 (SC1) | C2: Significant Currency Type: | D2: ='9.HQLA-SC1'!D2 -> 0
A3: A separate worksheet is required for each significant currency
A4: Insert data in the white cells only
A5: TT$'000
A6: 3. Cash Inflows
A7: Reference | B7: Item | C7: Amount ($'000) in foreign currency | D7: Exchange rate | E7: Amount in TT$'000 equivalent | F7: Inflow rate | G7: Cash Inflows | H7: LCR Guideline Reference - Section:
A8: 3.1. Secured Lending
A9: 311 | B9: Maturing secured lending transactions backed by the following collateral:
A10: 3111 | B10: Level 1 assets | E10: =C10*$D$8 -> 0 | F10: 0 | G10: =E10*F10 -> 0 | H10: 8.4 a.
A11: =A10+1 -> 3112 | B11: Level 2A assets | E11: =C11*$D$8 -> 0 | F11: 0.15 | G11: 0 | H11: 8.4 a.
A12: =A11+1 -> 3113 | B12: Level 2B assets | E12: 0 | F12: 0.5 | G12: 0 | H12: 8.4 a.
A13: =A12+1 -> 3114 | B13: Margin lending backed by all other collateral | E13: 0 | F13: 0.5 | G13: 0 | H13: 8.4 a.
A14: =A13+1 -> 3115 | B14: All other collateral | E14: 0 | F14: 1 | G14: 0 | H14: 8.4 a.
A15: =A14+1 -> 3116 | B15: Collateral is used to cover short positions | E15: 0 | F15: 0 | G15: 0 | H15: 8.4 a.
A16: =A9+1 -> 312 | B16: Total secured lending inflows | C16: =SUM(C10:C15) -> 0 | E16: =SUM(E10:E15) -> 0 | G16: =SUM(G10:G15) -> 0
A17: 3.2. Committed facilities
A18: 321 | B18: Credit facilities, liquidity facilities and contingent funding facilities that an institution holds at other institutions | E18: =C18*$D$8 -> 0 | F18: 0 | G18: =E18*F18 -> 0 | H18: 8.4 b.
A19: 322 | B19: Total committed facilities | C19: =C18 -> 0 | E19: =E18 -> 0 | G19: =G18 -> 0
A20: 3.3. Inflows by counterparty
A21: 331 | B21: Retail and small business customer inflows | E21: =C21*$D$8 -> 0 | F21: 0.5 | G21: =E21*F21 -> 0 | H21: 8.4 c. iv.
A22: =A21+1 -> 332 | B22: Wholesale inflows: non-financial counterparties (including non-financial corporates, sovereigns, MDBs, and PSEs) | E22: 0 | F22: 0.5 | G22: 0 | H22: 8.4 c. v. 2.
A23: 333 | B23: Wholesale inflows: financial institution and central bank counterparties | E23: 0 | F23: 1 | G23: 0 | H23: 8.4 c. v. 1.
A24: 334 | B24: Inflows from securities not included in the stock of HQLA | E24: 0 | F24: 1 | G24: 0 | H24: 8.4 c. vi.
A25: 335 | B25: Operational deposits held at other financial institutions for clearing, custody, and cash management purposes | E25: 0 | F25: 0 | G25: 0 | H25: 8.4 c. vii.
A26: 336 | B26: Balances held at other financial institutions in excess of operational deposits (“excess balances”) | E26: 0 | F26: 1 | G26: 0 | H26: 8.4 c. viii.
A27: 337 | B27: Total inflows by counterparty | C27: =SUM(C21:C26) -> 0 | E27: =SUM(E21:E26) -> 0 | G27: =SUM(G21:G26) -> 0
A28: 3.4. Other cash inflows
A29: 341 | B29: Derivatives net cash inflows | E29: =C29*$D$8 -> 0 | F29: 1 | G29: =E29*F29 -> 0 | H29: 8.4 d. i.
A30: =A29+1 -> 342 | B30: Other contractual cash inflows | E30: 0 | F30: 0.5 | G30: =E30*F30 -> 0 | H30: 8.4 d. iv.
A31: =A30+1 -> 343 | B31: Total other cash inflows | C31: =SUM(C29:C30) -> 0 | E31: =SUM(E29:E30) -> 0 | G31: =SUM(G29:G30) -> 0
A32: 3.5. Total Cash Inflows | C32: =C16+C19+C27+C31 -> 0 | E32: =E16+E19+E27+E31 -> 0 | G32: =G16+G19+G27+G31 -> 0

Sheet 12.LCR calculation-SC1
A1: Liquidity Coverage Ratio (LCR)
A2: Significant Foreign Currency 1 (SC1) | C2: Significant Currency Type: | D2: ='9.HQLA-SC1'!D2 -> 0
A3: A separate worksheet is required for each significant currency
A4: TT$'000
A5: 4. The LCR calculation
A6: Reference | B6: Item | C6: Amount (TT$'000)
A7: 4.1. HQLAs
A8: 411 | B8: Level 1 Assets | C8: ='9.HQLA-SC1'!G22 -> 0
A9: =A8+1 -> 412 | B9: Level 2 Assets | C9: =C10+C11 -> 0
A10: 413 | B10: Level 2A Assets | C10: ='9.HQLA-SC1'!G30 -> 0
A11: 414 | B11: Level 2B Assets | C11: ='9.HQLA-SC1'!G34 -> 0
A12: 415 | B12: Adjustment to stock of HQLA for 15% cap on Level 2B assets | C12: ='9.HQLA-SC1'!G36 -> 0
A13: 416 | B13: Adjustment to stock of HQLA for 40% cap on Level 2 assets | C13: ='9.HQLA-SC1'!G37 -> 0
A14: 417 | B14: Total adjusted stock of HQLA | C14: =C8+C9-C12-C13 -> 0
A15: 4.2. Cash Outflows
A16: 421 | B16: Retail deposits | C16: ='10.Outflows-SC1'!G24 -> 0
A17: =A16+1 -> 422 | B17: Wholesale Funding | C17: ='10.Outflows-SC1'!G57 -> 0
A18: =A17+1 -> 423 | B18: Additional requirements | C18: ='10.Outflows-SC1'!G68 -> 0
A19: 424 | B19: Committed credit and liquidity facilities | C19: ='10.Outflows-SC1'!G77 -> 0
A20: 425 | B20: Contractual obligations to financial institutions | C20: ='10.Outflows-SC1'!G79 -> 0
A21: 426 | B21: Trade Finance Instruments | C21: ='10.Outflows-SC1'!G81 -> 0
A22: 427 | B22: Total other contingent funding obligations | C22: ='10.Outflows-SC1'!G91 -> 0
A23: 428 | B23: Any other contractual cash outflows | C23: ='10.Outflows-SC1'!G93 -> 0
A24: 429 | B24: Total Cash Outflows | C24: =SUM(C16:C23) -> 0
A25: 4.3. Cash Inflows
A26: 431 | B26: Secured lending inflows | C26: ='11.Inflows-SC1'!G16 -> 0
A27: =A26+1 -> 432 | B27: Committed facilities | C27: ='11.Inflows-SC1'!G19 -> 0
A28: =A27+1 -> 433 | B28: Inflows by counterparty | C28: ='11.Inflows-SC1'!G27 -> 0
A29: =A28+1 -> 434 | B29: Other cash inflows | C29: ='11.Inflows-SC1'!G31 -> 0
A30: =A29+1 -> 435 | B30: Total Cash Inflows | C30: =SUM(C26:C29) -> 0
A31: 4.4. Net Cash Outflows | C31: =C24-MIN(C30,0.75*C24) -> 0
A33: 4.5. Liquidity Coverage Ratio (%) | C33: =IFERROR(C14/C31,0) -> 0

Sheet 13. HQLA-SC2
A1: Liquidity Coverage Ratio (LCR)
A2: Significant Foreign Currency 2 (SC2) | C2: Significant Currency Type:
A3: Separate worksheets are required for each significant currency
A4: Insert data in the white cells only
A5: TT$'000
A6: 1. Stock of high quality liquid assets (HQLA)
A8: Reference | B8: Item | C8: Market Value ($'000) in foreign currency | D8: Exchange rate | E8: Market Value - In TT$'000 equivalent | F8: Weight | G8: Weighted Amount (TT$'000) | H8: LCR Guideline Reference -Section:
A9: 1.1. Level 1 assets
A10: 111 | B10: Coins and banknotes (including qualifying cash items in the process of collection) | E10: =C10*$D$9 -> 0 | F10: 1 | G10: =E10*F10 -> 0 | H10: 6.17
A11: 112 | B11: Eligible Reserves held at Central Banks | E11: =C11*$D$9 -> 0 | F11: 1 | G11: =E11*F11 -> 0 | H11: 6.17
A12: 113 | B12: Securities issued or guaranteed by the government of Trinidad and Tobago | E12: 0 | F12: 1 | G12: =E12*F12 -> 0 | H12: 6.17
A13: 114 | B13: Securities issued or guaranteed by the Central Bank of Trinidad and Tobago | E13: 0 | F13: 1 | G13: =E13*F13 -> 0 | H13: 6.17
A14: 115 | B14: Other eligible securities with a 0% risk weight: | H14: 6.17
A15: 1151 | B15: Issued or guaranteed by sovereigns | E15: 0 | F15: 1 | G15: =E15*F15 -> 0 | H15: 6.17
A16: 1152 | B16: Issued or guaranteed by central banks | E16: 0 | F16: 1 | G16: =E16*F16 -> 0 | H16: 6.17
A17: 1153 | B17: Issued or guaranteed by PSEs | E17: 0 | F17: 1 | G17: =E17*F17 -> 0 | H17: 6.17
A18: 1154 | B18: Issued or guaranteed by BIS, IMF, ECB, European Community, or MDBs | E18: 0 | F18: 1 | G18: =E18*F18 -> 0 | H18: 6.17
A19: 116 | B19: Other non-0% risk-weighted eligible sovereign or central bank securities: | H19: 6.17
A20: 1161 | B20: Issued in domestic currencies in the country in which the liquidity risk is being taken or in the licensee’s home country | E20: 0 | F20: 1 | G20: =E20*F20 -> 0 | H20: 6.17
A21: 1162 | B21: Issued in foreign currencies, up to the amount of the licensee’s stressed net cash outflows in that specific foreign currency stemming from the licensee’s operations in the jurisdiction where the liquidity risk is taken | E21: 0 | F21: 1 | G21: =E21*F21 -> 0 | H21: 6.17
A22: 117 | B22: Total stock of Level 1 assets | C22: =SUM(C10:C13)+SUM(C15:C18)+SUM(C20:C21) -> 0 | E22: =SUM(E10:E13)+SUM(E15:E18)+SUM(E20:E21) -> 0 | G22: =SUM(G10:G13)+SUM(G15:G18)+SUM(G20:G21) -> 0
A23: 1.2. Level 2A assets
A24: 121 | B24: Level 2A qualifying securities issued or guaranteed by: | H24: 6.21
A25: 1211 | B25: Sovereigns | E25: =C25*$D$9 -> 0 | F25: 0.85 | G25: =E25*F25 -> 0 | H25: 6.21
A26: =A25+1 -> 1212 | B26: Central banks | E26: =C26*$D$9 -> 0 | F26: 0.85 | G26: =E26*F26 -> 0 | H26: 6.21
A27: =A26+1 -> 1213 | B27: PSEs | E27: 0 | F27: 0.85 | G27: =E27*F27 -> 0 | H27: 6.21
A28: =A27+1 -> 1214 | B28: MDBs | E28: 0 | F28: 0.85 | G28: =E28*F28 -> 0 | H28: 6.21
A29: =A24+1 -> 122 | B29: Level 2A qualifying non-financial corporate bonds | E29: 0 | F29: 0.85 | G29: =E29*F29 -> 0 | H29: 6.21
A30: =A29+1 -> 123 | B30: Total stock of Level 2A assets | C30: =SUM(C25:C29) -> 0 | E30: =SUM(E25:E29) -> 0 | G30: =SUM(G25:G29) -> 0
A31: 1.3. Level 2B assets
A32: 131 | B32: Corporate debt securities | E32: =C32*$D$9 -> 0 | F32: 0.5 | G32: =E32*F32 -> 0 | H32: 6.23
A33: =A32+1 -> 132 | B33: Non-financial common equity shares | E33: =C33*$D$9 -> 0 | F33: 0.5 | G33: =E33*F33 -> 0 | H33: 6.23
A34: =A33+1 -> 133 | B34: Total stock of Level 2B assets | C34: =SUM(C32:C33) -> 0 | E34: =SUM(E32:E33) -> 0 | G34: =SUM(G32:G33) -> 0
A35: 1.4. Stock of HQLA
A36: 141 | B36: Adjustment to stock of HQLA for 15% cap on Level 2B assets | G36: =MAX(G34-15/85*(G22+G30),G34-15/60*G22,0) -> 0 | H36: 6.14
A37: =A36+1 -> 142 | B37: Adjustment to stock of HQLA for 40% cap on Level 2 assets | G37: =MAX((G30+G34-G36)-2/3*G22,0) -> 0 | H37: 6.14
A38: =A37+1 -> 143 | B38: Stock of HQLA after caps | G38: =G22+G30+G34-G36-G37 -> 0

Sheet 14.Outflows-SC2
A1: Liquidity Coverage Ratio (LCR)
A2: Significant Foreign Currency 2 (SC2) | C2: Significant Currency Type: | D2: ='13. HQLA-SC2'!D2 -> 0
A3: Separate worksheets are required for each significant currency
A4: Insert data in the white cells only
A5: TT$'000
A6: 2. Cash outflows
A7: Reference | B7: Item | C7: Amount ($'000) in foreign currency | D7: Exchange Rate | E7: Amount in TT$'000 equivalent | F7: Outflow rate | G7: Cash Outflows | H7: LCR Guideline Reference - Section:
A8: 2.1. Retail deposit run-off
A9: 211 | B9: Retail Term Deposits with residual maturity or withdrawal notice period > 30 days | E9: =C9*$D$8 -> 0 | F9: 0 | G9: =E9*F9 -> 0 | H9: 7.17
A10: 212 | B10: Stable Retail deposits
A11: 2121 | B11: Qualifying demand deposits in TT dollars | E11: =C11*$D$8 -> 0 | F11: 0.05 | G11: =E11*F11 -> 0 | H11: 7.6
A12: =A11+1 -> 2122 | B12: Qualifying demand deposits in foreign currency | E12: 0 | F12: 0.05 | G12: 0 | H12: 7.6
A13: =A12+1 -> 2123 | B13: Qualifying saving deposits in TT dollars | E13: 0 | F13: 0.05 | G13: 0 | H13: 7.6
A14: =A13+1 -> 2124 | B14: Qualifying saving deposits in foreign currency | E14: 0 | F14: 0.05 | G14: 0 | H14: 7.6
A15: =A14+1 -> 2125 | B15: Qualifying time deposits in TT dollars | E15: 0 | F15: 0.05 | G15: 0 | H15: 7.6
A16: =A15+1 -> 2126 | B16: Qualifying time deposits in foreign currency | E16: 0 | F16: 0.05 | G16: 0 | H16: 7.6
A17: =A10+1 -> 213 | B17: Less Stable Retail deposits
A18: 2131 | B18: Demand deposits in TT dollar | E18: 0 | F18: 0.1 | G18: =E18*F18 -> 0 | H18: 7.6
A19: =A18+1 -> 2132 | B19: Demand deposits in foreign currency | E19: 0 | F19: 0.1 | G19: 0 | H19: 7.6
A20: =A19+1 -> 2133 | B20: Saving deposits in TT dollar | E20: 0 | F20: 0.1 | G20: 0 | H20: 7.6
A21: =A20+1 -> 2134 | B21: Saving deposits in foreign currency | E21: 0 | F21: 0.1 | G21: 0 | H21: 7.6
A22: =A21+1 -> 2135 | B22: Time deposits in TT dollar | E22: 0 | F22: 0.1 | G22: 0 | H22: 7.6
A23: =A22+1 -> 2136 | B23: Time deposits in foreign currency | E23: 0 | F23: 0.1 | G23: 0 | H23: 7.6
A24: =A17+1 -> 214 | B24: Total retail deposits outflows | C24: =C9+SUM(C11:C16)+SUM(C18:C23) -> 0 | E24: =SUM(E9:E23) -> 0 | G24: =SUM(G9:G23) -> 0
A25: 2.2.Wholesale Funding
A26: I. | B26: Unsecured wholesale funding
A27: 221 | B27: Stable Small Business Customers
A28: 2211 | B28: Qualifying demand deposits in TT dollars | E28: =C28*$D$8 -> 0 | F28: 0.05 | G28: =E28*F28 -> 0 | H28: 7.23
A29: =A28+1 -> 2212 | B29: Qualifying demand deposits in foreign currency | E29: 0 | F29: 0.05 | G29: 0 | H29: 7.23
A30: =A29+1 -> 2213 | B30: Qualifying saving deposits in TT dollars | E30: 0 | F30: 0.05 | G30: 0 | H30: 7.23
A31: =A30+1 -> 2214 | B31: Qualifying saving deposits in foreign currency | E31: 0 | F31: 0.05 | G31: 0 | H31: 7.23
A32: =A31+1 -> 2215 | B32: Qualifying time deposits in TT dollars | E32: 0 | F32: 0.05 | G32: 0 | H32: 7.23
A33: =A32+1 -> 2216 | B33: Qualifying time deposits in foreign currency | E33: 0 | F33: 0.05 | G33: 0 | H33: 7.23
A34: =A27+1 -> 222 | B34: Less Stable Small Business Customers
A35: 2221 | B35: Demand deposits in TT dollar | E35: 0 | F35: 0.1 | G35: =E35*F35 -> 0 | H35: 7.23
A36: =A35+1 -> 2222 | B36: Demand deposits in foreign currency | E36: 0 | F36: 0.1 | G36: 0 | H36: 7.23
A37: =A36+1 -> 2223 | B37: Saving deposits in TT dollar | E37: 0 | F37: 0.1 | G37: 0 | H37: 7.23
A38: =A37+1 -> 2224 | B38: Saving deposits in foreign currency | E38: 0 | F38: 0.1 | G38: 0 | H38: 7.23
A39: =A38+1 -> 2225 | B39: Time deposits in TT dollar | E39: 0 | F39: 0.1 | G39: 0 | H39: 7.23
A40: =A39+1 -> 2226 | B40: Time deposits in foreign currency | E40: 0 | F40: 0.1 | G40: 0 | H40: 7.23
A41: =A34+1 -> 223 | B41: Term deposits with a remaining maturity of > 30 days | E41: 0 | F41: 0 | G41: 0 | H41: 7.23/7.17
A42: =A41+1 -> 224 | B42: Operational deposits generated by clearing, custody and cash management activities
A43: 2241 | B43: Not covered by deposit insurance | E43: 0 | F43: 0.25 | G43: 0 | H43: 7.25
A44: =A43+1 -> 2242 | B44: Covered by deposit insurance | E44: 0 | F44: 0.05 | G44: 0 | H44: 7.36
A45: =A42+1 -> 225 | B45: Funding provided by non-financial corporates and sovereigns, central banks, multilateral development banks, and PSEs
A46: 2251 | B46: Fully covered by deposit insurance | E46: 0 | F46: 0.2 | G46: 0 | H46: 7.38
A47: =A46+1 -> 2252 | B47: Partially covered or not covered by deposit insurance | E47: 0 | F47: 0.4 | G47: 0 | H47: 7.38
A48: =A45+1 -> 226 | B48: Other legal entity customers | E48: 0 | F48: 1 | G48: 0 | H48: 7.39
A49: =A48+1 -> 227 | B49: Total Unsecured wholesale funding | C49: =SUM(C28:C33)+SUM(C35:C41)+SUM(C43:C44)+SUM(C46:C48) -> 0 | E49: =SUM(E28:E48) -> 0 | G49: =SUM(G28:G48) -> 0
A50: II. | B50: Secured Wholesale Funding
A51: =A49+1 -> 228 | B51: Backed by Level 1 assets or with central banks | E51: =C51*$D$8 -> 0 | F51: 0 | G51: =E51*F51 -> 0 | H51: 7.51
A52: =A51+1 -> 229 | B52: Backed by Level 2A assets | E52: 0 | F52: 0.15 | G52: =E52*F52 -> 0 | H52: 7.51
A53: 230 | B53: Secured funding transactions with domestic sovereign, PSEs or multilateral development banks, not backed by Level 1 or 2A assets | E53: 0 | F53: 0.25 | G53: =E53*F53 -> 0 | H53: 7.51
A54: 231 | B54: Backed by Level 2B assets | E54: 0 | F54: 0.5 | G54: =E54*F54 -> 0 | H54: 7.51
A55: 232 | B55: All other Secured Funding Transactions | E55: 0 | F55: 1 | G55: =E55*F55 -> 0 | H55: 7.51
A56: 233 | B56: Total Secured Wholesale Funding | C56: =SUM(C51:C55) -> 0 | E56: =SUM(E51:E55) -> 0 | G56: =SUM(G51:G55) -> 0
A57: 234 | B57: Total Outflows Wholesale Funding | C57: =C49+C56 -> 0 | E57: =E49+E56 -> 0 | G57: =G49+G56 -> 0
A58: 2.3. Additional requirements
A59: 231 | B59: Derivative Cash Outflows | E59: =C59*$D$8 -> 0 | F59: 1 | G59: =E59*F59 -> 0 | H59: 7.52
A60: =A59+1 -> 232 | B60: Liquidity needs related to downgrade triggers embedded in financing transactions, derivatives and other contracts | E60: 0 | F60: 1 | G60: =E60*F60 -> 0 | H60: 7.56
A61: =A60+1 -> 233 | B61: Liquidity needs related to the potential for valuation changes on posted collateral securing derivative and other transactions, Level 1 assets | E61: 0 | F61: 0 | G61: 0 | H61: 7.60
A62: 234 | B62: Liquidity needs related to the potential for valuation changes on posted collateral securing derivative and other transactions, other assets | E62: 0 | F62: 0.2 | G62: 0 | H62: 7.61
A63: 235 | B63: Liquidity needs related to excess non-segregated collateral held by the licensee that could contractually be called at any time by the counterparty | E63: 0 | F63: 1 | G63: 0 | H63: 7.64
A64: 236 | B64: Liquidity needs related to contractually required collateral on transactions for which the counterparty has not yet demanded the collateral be posted | E64: 0 | F64: 1 | G64: 0 | H64: 7.65
A65: 237 | B65: Liquidity needs related to contracts that allow collateral substitution to non-HQLA assets | E65: 0 | F65: 1 | G65: 0 | H65: 7.66
A66: 238 | B66: Loss of funding on asset-backed securities , covered bonds and other structured financing instruments | E66: 0 | F66: 1 | G66: 0 | H66: 7.72
A67: 239 | B67: Loss of funding on asset-backed commercial paper, conduits, securities investment vehicles and other such financing facilities | E67: 0 | F67: 1 | G67: 0 | H67: 7.73
A68: 240 | B68: Total additional requirements | C68: =SUM(C59:C67) -> 0 | E68: =SUM(E59:E67) -> 0 | G68: =SUM(G59:G67) -> 0
A69: 2.4. Drawdowns on committed credit and liquidity facilities
A70: 241 | B70: Committed credit and liquidity facilities to retail and small business customers | E70: =C70*$D$8 -> 0 | F70: 0.05 | G70: =E70*F70 -> 0 | H70: 7.84 a.
A71: =A70+1 -> 242 | B71: Committed credit facilities to non-financial corporates, sovereigns and central banks, PSEs and MDBs | E71: 0 | F71: 0.1 | G71: =E71*F71 -> 0 | H71: 7.84 b.
A72: =A71+1 -> 243 | B72: Committed liquidity facilities to non-financial corporates, sovereigns and central banks, PSEs, and MDBs | E72: 0 | F72: 0.3 | G72: 0 | H72: 7.84 c.
A73: 244 | B73: Committed credit and liquidity facilities extended to banks subject to prudential supervision | E73: 0 | F73: 0.4 | G73: 0 | H73: 7.84 d.
A74: 245 | B74: Committed credit facilities to other financial institutions including securities firms, insurance companies, fiduciaries and beneficiaries | E74: 0 | F74: 0.4 | G74: 0 | H74: 7.84 e.
A75: 246 | B75: Committed liquidity facilities to other financial institutions including securities firms, insurance companies, fiduciaries, and beneficiaries | E75: 0 | F75: 1 | G75: 0 | H75: 7.84 f.
A76: 247 | B76: Committed credit and liquidity facilities to other legal entities (including SPVs), conduits and special purpose vehicles and other entities not included in the prior categories | E76: 0 | F76: 1 | G76: 0 | H76: 7.84 g.
A77: 248 | B77: Total committed credit and liquidity facilities | C77: =SUM(C70:C76) -> 0 | E77: =SUM(E70:E76) -> 0 | G77: =SUM(G70:G76) -> 0
A78: 2.5. Contractual obligations to extend funds within a 30-day period
A79: 251 | B79: Obligations to financial institutions not captured elsewhere | E79: =C79*$D$8 -> 0 | F79: 1 | G79: =E79*F79 -> 0 | H79: 7.85
A80: 2.6. Trade Finance Instruments-Contingent Funding Obligations
A81: 261 | B81: Contingent funding obligations stemming from trade finance instruments | E81: =C81*$D$8 -> 0 | F81: 0.05 | G81: =E81*F81 -> 0 | H81: 7.87
A82: 2.7. Other contingent funding obligations | H82: 7.9
A83: 271 | B83: Unconditionally revocable "uncommitted" credit and liquidity facilities | E83: =C83*$D$8 -> 0 | F83: 0.5 | G83: =E83*F83 -> 0 | H83: 7.95 a.
A84: =A83+1 -> 272 | B84: Guarantees and letters of credit unrelated to trade finance obligations | E84: 0 | F84: 0.5 | G84: 0 | H84: 7.95 b.
A85: =A84+1 -> 273 | B85: Non-contractual obligations such as: | H85: 7.95 c.
A86: 2731 | B86: a. potential requests for debt repurchases | E86: 0 | F86: 0.5 | G86: 0 | H86: 7.95 c. i.
A87: =A86+1 -> 2732 | B87: b. structured products where customers anticipate ready marketability | E87: 0 | F87: 0.5 | G87: 0 | H87: 7.95 c. ii.
A88: 2733 | B88: c. managed funds that are marketed with the objective of maintaining a stable value | E88: 0 | F88: 0.5 | G88: 0 | H88: 7.95 c. iii.
A89: =A85+1 -> 274 | B89: Outflows from potential repurchases of outstanding debt obligations of issues with an affiliated dealer or market maker | E89: 0 | F89: 0.5 | G89: 0 | H89: 7.95 d.
A90: 275 | B90: Non-contractual obligations where customer short positions are covered by other customers’ collateral | E90: 0 | F90: 0.5 | G90: 0 | H90: 7.95 e.
A91: 276 | B91: Total other contingent funding obligations | C91: =SUM(C83:C84)+SUM(C86:C90) -> 0 | E91: =SUM(E83:E90) -> 0 | G91: =SUM(G83:G90) -> 0
A92: 2.8. Other contractual cash flows
A93: 281 | B93: Any other contractual cash outflows | E93: =C93*$D$8 -> 0 | F93: 1 | G93: =E93*F93 -> 0 | H93: 7.96
A94: 2.9. Total Cash Outflows | C94: =C24+C57+C68+C77+C79+C81+C91+C93 -> 0 | E94: =E24+E57+E68+E77+E79+E81+E91+E93 -> 0 | G94: =G24+G57+G68+G77+G79+G81+G91+G93 -> 0

Sheet 15.Inflows-SC2
A1: Liquidity Coverage Ratio (LCR)
A2: Significant Foreign Currency 2 (SC2) | C2: Significant Currency Type: | D2: ='13. HQLA-SC2'!D2 -> 0
A3: A separate worksheet is required for each significant currency
A4: Insert data in the white cells only
A5: TT$'000
A6: 3. Cash Inflows
A7: Reference | B7: Item | C7: Amount ($'000) in foreign currency | D7: Exchange rate | E7: Amount in TT$'000 equivalent | F7: Inflow rate | G7: Cash Inflows | H7: LCR Guideline Reference - Section:
A8: 3.1. Secured Lending
A9: 311 | B9: Maturing secured lending transactions backed by the following collateral:
A10: 3111 | B10: Level 1 assets | E10: =C10*$D$8 -> 0 | F10: 0 | G10: =E10*F10 -> 0 | H10: 8.4 a.
A11: =A10+1 -> 3112 | B11: Level 2A assets | E11: =C11*$D$8 -> 0 | F11: 0.15 | G11: 0 | H11: 8.4 a.
A12: =A11+1 -> 3113 | B12: Level 2B assets | E12: 0 | F12: 0.5 | G12: 0 | H12: 8.4 a.
A13: =A12+1 -> 3114 | B13: Margin lending backed by all other collateral | E13: 0 | F13: 0.5 | G13: 0 | H13: 8.4 a.
A14: =A13+1 -> 3115 | B14: All other collateral | E14: 0 | F14: 1 | G14: 0 | H14: 8.4 a.
A15: =A14+1 -> 3116 | B15: Collateral is used to cover short positions | E15: 0 | F15: 0 | G15: 0 | H15: 8.4 a.
A16: =A9+1 -> 312 | B16: Total secured lending inflows | C16: =SUM(C10:C15) -> 0 | E16: =SUM(E10:E15) -> 0 | G16: =SUM(G10:G15) -> 0
A17: 3.2. Committed facilities
A18: 321 | B18: Credit facilities, liquidity facilities and contingent funding facilities that an institution holds at other institutions | E18: =C18*$D$8 -> 0 | F18: 0 | G18: =E18*F18 -> 0 | H18: 8.4 b.
A19: 322 | B19: Total committed facilities | C19: =C18 -> 0 | E19: =E18 -> 0 | G19: =G18 -> 0
A20: 3.3. Inflows by counterparty
A21: 331 | B21: Retail and small business customer inflows | E21: =C21*$D$8 -> 0 | F21: 0.5 | G21: =E21*F21 -> 0 | H21: 8.4 c. iv.
A22: =A21+1 -> 332 | B22: Wholesale inflows: non-financial counterparties (including non-financial corporates, sovereigns, MDBs, and PSEs) | E22: 0 | F22: 0.5 | G22: 0 | H22: 8.4 c. v. 2.
A23: 333 | B23: Wholesale inflows: financial institution and central bank counterparties | E23: 0 | F23: 1 | G23: 0 | H23: 8.4 c. v. 1.
A24: 334 | B24: Inflows from securities not included in the stock of HQLA | E24: 0 | F24: 1 | G24: 0 | H24: 8.4 c. vi.
A25: 335 | B25: Operational deposits held at other financial institutions for clearing, custody, and cash management purposes | E25: 0 | F25: 0 | G25: 0 | H25: 8.4 c. vii.
A26: 336 | B26: Balances held at other financial institutions in excess of operational deposits (“excess balances”) | E26: 0 | F26: 1 | G26: 0 | H26: 8.4 c. viii.
A27: 337 | B27: Total inflows by counterparty | C27: =SUM(C21:C26) -> 0 | E27: =SUM(E21:E26) -> 0 | G27: =SUM(G21:G26) -> 0
A28: 3.4. Other cash inflows
A29: 341 | B29: Derivatives net cash inflows | E29: =C29*$D$8 -> 0 | F29: 1 | G29: =E29*F29 -> 0 | H29: 8.4 d. i.
A30: =A29+1 -> 342 | B30: Other contractual cash inflows | E30: 0 | F30: 0.5 | G30: =E30*F30 -> 0 | H30: 8.4 d. iv.
A31: =A30+1 -> 343 | B31: Total other cash inflows | C31: =SUM(C29:C30) -> 0 | E31: =SUM(E29:E30) -> 0 | G31: =SUM(G29:G30) -> 0
A32: 3.5. Total Cash Inflows | C32: =C16+C19+C27+C31 -> 0 | E32: =E16+E19+E27+E31 -> 0 | G32: =G16+G19+G27+G31 -> 0

Sheet 16.LCR calculation-SC2
A1: Liquidity Coverage Ratio (LCR)
A2: Significant Foreign Currency 2 (SC2) | C2: Significant Currency Type: | D2: ='13. HQLA-SC2'!D2 -> 0
A3: A separate worksheet is required for each significant currency
A4: TT$'000
A5: 4. The LCR calculation
A6: Reference | B6: Item | C6: Amount (TT$'000)
A7: 4.1. HQLAs
A8: 411 | B8: Level 1 Assets | C8: ='13. HQLA-SC2'!G22 -> 0
A9: =A8+1 -> 412 | B9: Level 2 Assets | C9: =C10+C11 -> 0
A10: 413 | B10: Level 2A Assets | C10: ='13. HQLA-SC2'!G30 -> 0
A11: 414 | B11: Level 2B Assets | C11: ='13. HQLA-SC2'!G34 -> 0
A12: 415 | B12: Adjustment to stock of HQLA for 15% cap on Level 2B assets | C12: ='13. HQLA-SC2'!G36 -> 0
A13: 416 | B13: Adjustment to stock of HQLA for 40% cap on Level 2 assets | C13: ='13. HQLA-SC2'!G37 -> 0
A14: 417 | B14: Total adjusted stock of HQLA | C14: =C8+C9-C12-C13 -> 0
A15: 4.2. Cash Outflows
A16: 421 | B16: Retail deposits | C16: ='14.Outflows-SC2'!G24 -> 0
A17: =A16+1 -> 422 | B17: Wholesale Funding | C17: ='14.Outflows-SC2'!G57 -> 0
A18: =A17+1 -> 423 | B18: Additional requirements | C18: ='14.Outflows-SC2'!G68 -> 0
A19: 424 | B19: Committed credit and liquidity facilities | C19: ='14.Outflows-SC2'!G77 -> 0
A20: 425 | B20: Contractual obligations to financial institutions | C20: ='14.Outflows-SC2'!G79 -> 0
A21: 426 | B21: Trade Finance Instruments | C21: ='14.Outflows-SC2'!G81 -> 0
A22: 427 | B22: Total other contingent funding obligations | C22: ='14.Outflows-SC2'!G91 -> 0
A23: 428 | B23: Any other contractual cash outflows | C23: ='14.Outflows-SC2'!G93 -> 0
A24: 429 | B24: Total Cash Outflows | C24: =SUM(C16:C23) -> 0
A25: 4.3. Cash Inflows
A26: 431 | B26: Secured lending inflows | C26: ='15.Inflows-SC2'!G16 -> 0
A27: =A26+1 -> 432 | B27: Committed facilities | C27: ='15.Inflows-SC2'!G19 -> 0
A28: =A27+1 -> 433 | B28: Inflows by counterparty | C28: ='15.Inflows-SC2'!G27 -> 0
A29: =A28+1 -> 434 | B29: Other cash inflows | C29: ='15.Inflows-SC2'!G31 -> 0
A30: =A29+1 -> 435 | B30: Total Cash Inflows | C30: =SUM(C26:C29) -> 0
A31: 4.4. Net Cash Outflows | C31: =C24-MIN(C30,0.75*C24) -> 0
A33: 4.5. Liquidity Coverage Ratio (%) | C33: =IFERROR(C14/C31,0) -> 0

Sheet Signature
B6: Name of Person Completing Form | D6: Signature of Person Completing Form
B7: (Block Letters)
B12: Name of Authorised Official | D12: Signature of Authorised Official
B13: (Block Letters)
B18: Position/Office Held | D18: Date
B19: (Place Company Stamp)
B22: I hereby certify that data submitted in the e-copy submission are the exact values in the hard-copy return for this period.
B25: Name of Authorised Official
B28: Position/Office Held
B31: Date

Sheet Validations
A1: Liquidity Coverage Ratio Return – Basel III | F1: FALSE COUNT | G1: Date Check | H1: =(TEXT(MID(RIGHT(MID(CELL("filename",'Cover Page'!A1),FIND("[",CELL("filename",'Cover Page'!A1))+1,FIND("]", CELL("filename",'Cover Page'!A1))-FIND("[",CELL("filename",'Cover Page'!A1))-1),LEN(MID(CELL("filename",'Cover Page'!A1),FIND("[",CELL("filename",'Cover Page'!A1))+1,FIND("]", CELL("filename",'Cover Page'!A1))-FIND("[",CELL("filename",'Cover Page'!A1))-1))-FIND("~",SUBSTITUTE(MID(CELL("filename",'Cover Page'!A1),FIND("[",CELL("filename",'Cover Page'!A1))+1,FIND("]", CELL("filename",'Cover Page'!A1))-FIND("[",CELL("filename",'Cover Page'!A1))-1),"_","~",3))),1,7),"yyyy-MM-dd"))=(TEXT(TEXT(DATE('Cover Page'!F10,MONTH(DATEVALUE('Cover Page'!F9 & 1)),"1"),"MMM-YYYY"),"yyyy-MM-dd")) ->  | I1: =COUNTIF(Institution_Codes!$B$2:$B$35,'Cover Page'!$K$7) -> 0
A2: Set of rules ID/Description | B2: Rule type | C2: Text rule | D2: Description | E2: Rule ID | F2: =COUNTIF(F4:F807,FALSE) +COUNTIF($H$1,FALSE)+COUNTIF($I$1,0) -> 1 | G2: Name Check | H2: =IF($I$1=0,"FALSE","TRUE") -> FALSE | I2: =IF($I$1=0,"Please select your institution on the Cover Page.","") -> Please select your institution on the Cover Page.
A3: Schedule 1 - HQLA
A4: Coins and banknotes (including qualifying cash items in the process of collection) | B4: In-schedule | C4: S01.DP01*1=S01.DP21 | D4: 1.HQLA!C10*1.HQLA!D10=1.HQLA!E10 | E4: 1 | F4: =IF(('1.HQLA'!C10*'1.HQLA'!D10='1.HQLA'!E10),TRUE,FALSE) -> TRUE
A5: Eligible Reserves held at Central Banks | B5: In-schedule | C5: S01.DP02*1=S01.DP22 | D5: 1.HQLA!C11*1.HQLA!D11=1.HQLA!E11 | E5: =E4+1 -> 2 | F5: =IF(('1.HQLA'!C11*'1.HQLA'!D11='1.HQLA'!E11),TRUE,FALSE) -> TRUE
A6: Securities issued or guaranteed by the government of Trinidad and Tobago | B6: In-schedule | C6: S01.DP03*1=S01.DP23 | D6: 1.HQLA!C12*1.HQLA!D12=1.HQLA!E12 | E6: =E5+1 -> 3 | F6: =IF(('1.HQLA'!C12*'1.HQLA'!D12='1.HQLA'!E12),TRUE,FALSE) -> TRUE
A7: Securities issued or guaranteed by the Central Bank of Trinidad and Tobago | B7: In-schedule | C7: S01.DP04*1=S01.DP24 | D7: 1.HQLA!C13*1.HQLA!D13=1.HQLA!E13 | E7: =E6+1 -> 4 | F7: =IF(('1.HQLA'!C13*'1.HQLA'!D13='1.HQLA'!E13),TRUE,FALSE) -> TRUE
A8: Other eligible securities with a 0% risk weight: Issued or guaranteed by sovereigns | B8: In-schedule | C8: S01.DP05*1=S01.DP25 | D8: 1.HQLA!C15*1.HQLA!D15=1.HQLA!E15 | E8: =E7+1 -> 5 | F8: =IF(('1.HQLA'!C15*'1.HQLA'!D15='1.HQLA'!E15),TRUE,FALSE) -> TRUE
A9: Other eligible securities with a 0% risk weight: Issued or guaranteed by central banks | B9: In-schedule | C9: S01.DP06*1=S01.DP26 | D9: 1.HQLA!C16*1.HQLA!D16=1.HQLA!E16 | E9: 6 | F9: =IF(('1.HQLA'!C16*'1.HQLA'!D16='1.HQLA'!E16),TRUE,FALSE) -> TRUE
A10: Other eligible securities with a 0% risk weight: Issued or guaranteed by PSEs | B10: In-schedule | C10: S01.DP07*1=S01.DP27 | D10: 1.HQLA!C17*1.HQLA!D17=1.HQLA!E17 | E10: 7 | F10: =IF(('1.HQLA'!C17*'1.HQLA'!D17='1.HQLA'!E17),TRUE,FALSE) -> TRUE
A11: Other eligible securities with a 0% risk weight: Issued or guaranteed by BIS, IMF, ECB, European Community, or MDBs | B11: In-schedule | C11: S01.DP08*1=S01.DP28 | D11: 1.HQLA!C18*1.HQLA!D18=1.HQLA!E18 | E11: 8 | F11: =IF(('1.HQLA'!C18*'1.HQLA'!D18='1.HQLA'!E18),TRUE,FALSE) -> TRUE
A12: Other non-0% risk-weighted eligible sovereign or central bank securities: Issued in domestic currencies in the country in which the liquidity risk is being taken or in the licensee’s home country | B12: In-schedule | C12: S01.DP09*1=S01.DP29 | D12: 1.HQLA!C20*1.HQLA!D20=1.HQLA!E20 | E12: 9 | F12: =IF(('1.HQLA'!C20*'1.HQLA'!D20='1.HQLA'!E20),TRUE,FALSE) -> TRUE
A13: Other non-0% risk-weighted eligible sovereign or central bank securities: Issued in foreign currencies, up to the amount of the licensee’s stressed net cash outflows in that specific foreign currency stemming from the licensee’s operations in the jurisdiction where the liquidity risk is taken | B13: In-schedule | C13: S01.DP10*1=S01.DP30 | D13: 1.HQLA!C21*1.HQLA!D21=1.HQLA!E21 | E13: =E12+1 -> 10 | F13: =IF(('1.HQLA'!C21*'1.HQLA'!D21='1.HQLA'!E21),TRUE,FALSE) -> TRUE
A14: Stock of level 1 assets Market value | B14: In-schedule | C14: S01.DP11=SUM(S01.DP01:DP04)+SUM(S01.DP05:DP08)+SUM(S01.DP09:DP10) | D14: 1.HQLA!C22=SUM(1.HQLA!C10:C13)+SUM(1.HQLA!C15:C18)+SUM(1.HQLA!C20:C21) | E14: =E13+1 -> 11 | F14: =IF('1.HQLA'!C22=SUM('1.HQLA'!C10:C13)+SUM('1.HQLA'!C15:C18)+SUM('1.HQLA'!C20:C21),TRUE,FALSE) -> TRUE
A15: Level 2A qualifying securities issued or guaranteed by: Sovereigns | B15: In-schedule | C15: S01.DP12* 0.85= S01.DP32 | D15: 1.HQLA!C25*1.HQLA!D25=1.HQLA!E25 | E15: =E14+1 -> 12 | F15: =IF(('1.HQLA'!C25*'1.HQLA'!D25='1.HQLA'!E25),TRUE,FALSE) -> TRUE
A16: Level 2A qualifying securities issued or guaranteed by: Central banks | B16: In-schedule | C16: S01.DP13* 0.85= S01.DP33 | D16: 1.HQLA!C26*1.HQLA!D26=1.HQLA!E26 | E16: 13 | F16: =IF(('1.HQLA'!C26*'1.HQLA'!D26='1.HQLA'!E26),TRUE,FALSE) -> TRUE
A17: Level 2A qualifying securities issued or guaranteed by: PSEs | B17: In-schedule | C17: S01.DP14* 0.85= S01.DP34 | D17: 1.HQLA!C27*1.HQLA!D27=1.HQLA!E27 | E17: 14 | F17: =IF(('1.HQLA'!C27*'1.HQLA'!D27='1.HQLA'!E27),TRUE,FALSE) -> TRUE
A18: Level 2A qualifying securities issued or guaranteed by: MDBs | B18: In-schedule | C18: S01.DP15* 0.85= S01.DP35 | D18: 1.HQLA!C28*1.HQLA!D28=1.HQLA!E28 | E18: 15 | F18: =IF(('1.HQLA'!C28*'1.HQLA'!D28='1.HQLA'!E28),TRUE,FALSE) -> TRUE
A19: Level 2A qualifying non-financial corporate bonds | B19: In-schedule | C19: S01.DP16* 0.85= S01.DP36 | D19: 1.HQLA!C29*1.HQLA!D29=1.HQLA!E29 | E19: 16 | F19: =IF(('1.HQLA'!C29*'1.HQLA'!D29='1.HQLA'!E29),TRUE,FALSE) -> TRUE
A20: Stock of level 2A assets Market value | B20: In-schedule | C20: S01.DP17=SUM( S01.DP12:DP16) | D20: 1.HQLA!C30=SUM(1.HQLA!C25:C29) | E20: 17 | F20: =IF('1.HQLA'!C30=SUM('1.HQLA'!C25:C29),TRUE,FALSE) -> TRUE
A21: Corporate debt securities | B21: In-schedule | C21: S01.DP18* 0.5= S01.DP38 | D21: 1.HQLA!C32*1.HQLA!D32=1.HQLA!E32 | E21: =E20+1 -> 18 | F21: =IF(('1.HQLA'!C32*'1.HQLA'!D32='1.HQLA'!E32),TRUE,FALSE) -> TRUE
A22: Non-financial common equity shares | B22: In-schedule | C22: S01.DP19* 0.5= S01.DP39 | D22: 1.HQLA!C33*1.HQLA!D33=1.HQLA!E33 | E22: 19 | F22: =IF(('1.HQLA'!C33*'1.HQLA'!D33='1.HQLA'!E33),TRUE,FALSE) -> TRUE
A23: Stock of level 1 assets Weighted amount | B23: In-schedule | C23: S01.DP31=SUM( S01.DP21:DP24)+SUM( S01.DP25:DP28)+SUM( S01.DP29:DP30) | D23: 1.HQLA!E22=SUM(1.HQLA!E10:E13)+SUM(1.HQLA!E15:E18)+SUM(1.HQLA!E20:E21) | E23: 20 | F23: =IF('1.HQLA'!E22=SUM('1.HQLA'!E10:E13)+SUM('1.HQLA'!E15:E18)+SUM('1.HQLA'!E20:E21),TRUE,FALSE) -> TRUE
A24: Stock of level 2A assets Weighted amount | B24: In-schedule | C24: S01.DP37=SUM( S01.DP32:DP36) | D24: 1.HQLA!E30=SUM(1.HQLA!E25:E29) | E24: =E23+1 -> 21 | F24: =IF('1.HQLA'!E30=SUM('1.HQLA'!E25:E29),TRUE,FALSE) -> TRUE
A25: Stock of level 2B assets Weighted amount | B25: In-schedule | C25: S01.DP40=SUM( S01.DP38:DP39) | D25: 1.HQLA!E34=SUM(1.HQLA!E32:E33) | E25: =E24+1 -> 22 | F25: =IF('1.HQLA'!E34=SUM('1.HQLA'!E32:E33),TRUE,FALSE) -> TRUE
A26: Adjustment to stock of HQLA for 15% cap on Level 2B assets | B26: In-schedule | C26: S01.DP41=MAX(S01.DP40-15/85*(S01.DP31+S01.DP37),S01.DP40-(15/60*S01.DP31),0) | D26: 1.HQLA!E36=MAX(1.HQLA!E34-15/85*(1.HQLA!E22+1.HQLA!E30),1.HQLA!E34-(15/60*1.HQLA!E22),0) | E26: 23 | F26: =IF('1.HQLA'!E36=MAX('1.HQLA'!E34-15/85*('1.HQLA'!E22+'1.HQLA'!E30),'1.HQLA'!E34-(15/60*'1.HQLA'!E22),0), TRUE,FALSE) -> TRUE
A27: Adjustment to stock of HQLA for 40% cap on Level 2 assets | B27: In-schedule | C27: S01.DP42=MAX((S01.DP37+S01.DP40-S01.DP41)-2/3*S01.DP31,0) | D27: 1.HQLA'!E37=MAX(('1.HQLA'!E30+'1.HQLA'!E34-'1.HQLA'!E36)-2/3*'1.HQLA'!E22,0 | E27: 24 | F27: =IF('1.HQLA'!E37=MAX(('1.HQLA'!E30+'1.HQLA'!E34-'1.HQLA'!E36)-2/3*'1.HQLA'!E22,0), TRUE, FALSE) -> TRUE
A28: Stock of HQLA after caps | B28: In-schedule | C28: S01.DP43=S01.DP31+S01.DP37+S01.DP40-S01.DP41-S01.DP42 | D28: 1.HQLA!E38=1.HQLA!E22+1.HQLA!E30+1.HQLA!E34-1.HQLA!E36-1.HQLA!E37 | E28: 25 | F28: =IF(('1.HQLA'!E38='1.HQLA'!E22+'1.HQLA'!E30+'1.HQLA'!E34-'1.HQLA'!E36-'1.HQLA'!E37),TRUE,FALSE) -> TRUE
A29: Schedule 2 - Outflows
A30: Retail Term Deposits with residual maturity or withdrawal notice period > 30 days | B30: In-schedule | C30: S02.DP01*0=S02.DP71 | D30: 2.Outflows!C9*2.Outflows!D9=2.Outflows!E9 | E30: =E28+1 -> 26 | F30: =IF(('2.Outflows'!C9*'2.Outflows'!D9='2.Outflows'!E9),TRUE,FALSE) -> TRUE
A31: Stable deposits: Qualifying demand deposits in TT dollars | B31: In-schedule | C31: S02.DP02*0.05=S02.DP72 | D31: 2.Outflows!C11*2.Outflows!D11=2.Outflows!E11 | E31: =E30+1 -> 27 | F31: =IF(('2.Outflows'!C11*'2.Outflows'!D11='2.Outflows'!E11),TRUE,FALSE) -> TRUE
A32: Stable deposits: Qualifying demand deposits in foreign currency | B32: In-schedule | C32: S02.DP03*0.05=S02.DP73 | D32: 2.Outflows!C12*2.Outflows!D12=2.Outflows!E12 | E32: =E31+1 -> 28 | F32: =IF(('2.Outflows'!C12*'2.Outflows'!D12='2.Outflows'!E12),TRUE,FALSE) -> TRUE
A33: Stable deposits: Qualifying saving deposits in TT dollars | B33: In-schedule | C33: S02.DP04*0.05=S02.DP74 | D33: 2.Outflows!C13*2.Outflows!D13=2.Outflows!E13 | E33: 29 | F33: =IF(('2.Outflows'!C13*'2.Outflows'!D13='2.Outflows'!E13),TRUE,FALSE) -> TRUE
A34: Stable deposits: Qualifying saving deposits in foreign currency | B34: In-schedule | C34: S02.DP05*0.05=S02.DP75 | D34: 2.Outflows!C14*2.Outflows!D14=2.Outflows!E14 | E34: 30 | F34: =IF(('2.Outflows'!C14*'2.Outflows'!D14='2.Outflows'!E14),TRUE,FALSE) -> TRUE
A35: Stable deposits: Qualifying time deposits in TT dollars | B35: In-schedule | C35: S02.DP06*0.05=S02.DP76 | D35: 2.Outflows!C15*2.Outflows!D15=2.Outflows!E15 | E35: 31 | F35: =IF(('2.Outflows'!C15*'2.Outflows'!D15='2.Outflows'!E15),TRUE,FALSE) -> TRUE
A36: Stable deposits: Qualifying time deposits in foreign currency | B36: In-schedule | C36: S02.DP07*0.05=S02.DP77 | D36: 2.Outflows!C16*2.Outflows!D16=2.Outflows!E16 | E36: 32 | F36: =IF(('2.Outflows'!C16*'2.Outflows'!D16='2.Outflows'!E16),TRUE,FALSE) -> TRUE
A37: Less stable deposits: Demand deposits in TT dollar | B37: In-schedule | C37: S02.DP08*0.1=S02.DP78 | D37: 2.Outflows!C18*2.Outflows!D18=2.Outflows!E18 | E37: 33 | F37: =IF(('2.Outflows'!C18*'2.Outflows'!D18='2.Outflows'!E18),TRUE,FALSE) -> TRUE
A38: Less stable deposits: Demand deposits in foreign currency | B38: In-schedule | C38: S02.DP09*0.1=S02.DP79 | D38: 2.Outflows!C19*2.Outflows!D19=2.Outflows!E19 | E38: 34 | F38: =IF(('2.Outflows'!C19*'2.Outflows'!D19='2.Outflows'!E19),TRUE,FALSE) -> TRUE
A39: Less stable deposits: Saving deposits in TT dollar | B39: In-schedule | C39: S02.DP10*0.1=S02.DP80 | D39: 2.Outflows!C20*2.Outflows!D20=2.Outflows!E20 | E39: 35 | F39: =IF(('2.Outflows'!C20*'2.Outflows'!D20='2.Outflows'!E20),TRUE,FALSE) -> TRUE
A40: Less stable deposits: Saving deposits in foreign currency | B40: In-schedule | C40: S02.DP11*0.1=S02.DP81 | D40: 2.Outflows!C21*2.Outflows!D21=2.Outflows!E21 | E40: 36 | F40: =IF(('2.Outflows'!C21*'2.Outflows'!D21='2.Outflows'!E21),TRUE,FALSE) -> TRUE
A41: Less stable deposits: Time deposits in TT dollar | B41: In-schedule | C41: S02.DP12*0.1=S02.DP82 | D41: 2.Outflows!C22*2.Outflows!D22=2.Outflows!E22 | E41: 37 | F41: =IF(('2.Outflows'!C22*'2.Outflows'!D22='2.Outflows'!E22),TRUE,FALSE) -> TRUE
A42: Less stable deposits: Time deposits in foreign currency | B42: In-schedule | C42: S02.DP13*0.1=S02.DP83 | D42: 2.Outflows!C23*2.Outflows!D23=2.Outflows!E23 | E42: 38 | F42: =IF(('2.Outflows'!C23*'2.Outflows'!D23='2.Outflows'!E23),TRUE,FALSE) -> TRUE
A43: Total retail deposits outflows | B43: In-schedule | C43: S02.DP84=SUM(S02.DP71:DP83) | D43: 2.Outflows!E24=SUM(2.Outflows!E9:E23) | E43: 39 | F43: =IF('2.Outflows'!E24=SUM('2.Outflows'!E9:E23),TRUE,FALSE) -> TRUE
A44: Stable small business: Qualifying demand deposits in TT dollars | B44: In-schedule | C44: S02.DP15*0.05=S02.DP85 | D44: 2.Outflows!C28*2.Outflows!D28=2.Outflows!E28 | E44: 40 | F44: =IF(('2.Outflows'!C28*'2.Outflows'!D28='2.Outflows'!E28),TRUE,FALSE) -> TRUE
A45: Stable small business: Qualifying demand deposits in foreign currency | B45: In-schedule | C45: S02.DP16*0.05=S02.DP86 | D45: 2.Outflows!C29*2.Outflows!D29=2.Outflows!E29 | E45: 41 | F45: =IF(('2.Outflows'!C29*'2.Outflows'!D29='2.Outflows'!E29),TRUE,FALSE) -> TRUE
A46: Stable small business: Qualifying saving deposits in TT dollars | B46: In-schedule | C46: S02.DP17*0.05=S02.DP87 | D46: 2.Outflows!C30*2.Outflows!D30=2.Outflows!E30 | E46: 42 | F46: =IF(('2.Outflows'!C30*'2.Outflows'!D30='2.Outflows'!E30),TRUE,FALSE) -> TRUE
A47: Stable small business: Qualifying saving deposits in foreign currency | B47: In-schedule | C47: S02.DP18*0.05=S02.DP88 | D47: 2.Outflows!C31*2.Outflows!D31=2.Outflows!E31 | E47: 43 | F47: =IF(('2.Outflows'!C31*'2.Outflows'!D31='2.Outflows'!E31),TRUE,FALSE) -> TRUE
A48: Stable small business: Qualifying time deposits in TT dollars | B48: In-schedule | C48: S02.DP19*0.05=S02.DP89 | D48: 2.Outflows!C32*2.Outflows!D32=2.Outflows!E32 | E48: 44 | F48: =IF(('2.Outflows'!C32*'2.Outflows'!D32='2.Outflows'!E32),TRUE,FALSE) -> TRUE
A49: Stable small business: Qualifying time deposits in foreign currency | B49: In-schedule | C49: S02.DP20*0.05=S02.DP90 | D49: 2.Outflows!C33*2.Outflows!D33=2.Outflows!E33 | E49: 45 | F49: =IF(('2.Outflows'!C33*'2.Outflows'!D33='2.Outflows'!E33),TRUE,FALSE) -> TRUE
A50: Less stable small business: Demand deposits in TT dollar | B50: In-schedule | C50: S02.DP21*0.1=S02.DP91 | D50: 2.Outflows!C35*2.Outflows!D35=2.Outflows!E35 | E50: 46 | F50: =IF(('2.Outflows'!C35*'2.Outflows'!D35='2.Outflows'!E35),TRUE,FALSE) -> TRUE
A51: Less stable small business: Demand deposits in foreign currency | B51: In-schedule | C51: S02.DP22*0.1=S02.DP92 | D51: 2.Outflows!C36*2.Outflows!D36=2.Outflows!E36 | E51: 47 | F51: =IF(('2.Outflows'!C36*'2.Outflows'!D36='2.Outflows'!E36),TRUE,FALSE) -> TRUE
A52: Less stable small business: Saving deposits in TT dollar | B52: In-schedule | C52: S02.DP23*0.1=S02.DP93 | D52: 2.Outflows!C37*2.Outflows!D37=2.Outflows!E37 | E52: 48 | F52: =IF(('2.Outflows'!C37*'2.Outflows'!D37='2.Outflows'!E37),TRUE,FALSE) -> TRUE
A53: Less stable small business: Saving deposits in foreign currency | B53: In-schedule | C53: S02.DP24*0.1=S02.DP94 | D53: 2.Outflows!C38*2.Outflows!D38=2.Outflows!E38 | E53: 49 | F53: =IF(('2.Outflows'!C38*'2.Outflows'!D38='2.Outflows'!E38),TRUE,FALSE) -> TRUE
A54: Less stable small business: Time deposits in TT dollar | B54: In-schedule | C54: S02.DP25*0.1=S02.DP95 | D54: 2.Outflows!C39*2.Outflows!D39=2.Outflows!E39 | E54: 50 | F54: =IF(('2.Outflows'!C39*'2.Outflows'!D39='2.Outflows'!E39),TRUE,FALSE) -> TRUE
A55: Less stable small business: Time deposits in foreign currency | B55: In-schedule | C55: S02.DP26*0.1=S02.DP96 | D55: 2.Outflows!C40*2.Outflows!D40=2.Outflows!E40 | E55: 51 | F55: =IF(('2.Outflows'!C40*'2.Outflows'!D40='2.Outflows'!E40),TRUE,FALSE) -> TRUE
A56: Term deposits with a remaining maturity of > 30 days | B56: In-schedule | C56: S02.DP27*0.0=S02.DP97 | D56: 2.Outflows!C41*2.Outflows!D41=2.Outflows!E41 | E56: 52 | F56: =IF(('2.Outflows'!C41*'2.Outflows'!D41='2.Outflows'!E41),TRUE,FALSE) -> TRUE
A57: Operational deposits: Not covered by deposit insurance | B57: In-schedule | C57: S02.DP28*0.25=S02.DP98 | D57: 2.Outflows!C43*2.Outflows!D43=2.Outflows!E43 | E57: 53 | F57: =IF(('2.Outflows'!C43*'2.Outflows'!D43='2.Outflows'!E43),TRUE,FALSE) -> TRUE
A58: Operational deposits: Covered by deposit insurance | B58: In-schedule | C58: S02.DP29*0.05=S02.DP99 | D58: 2.Outflows!C44*2.Outflows!D44=2.Outflows!E44 | E58: 54 | F58: =IF(('2.Outflows'!C44*'2.Outflows'!D44='2.Outflows'!E44),TRUE,FALSE) -> TRUE
A59: Finding provided by non-financial corporates and sovereigns, etc: Fully covered by deposit insurance | B59: In-schedule | C59: S02.DP30*0.2=S02.DP100 | D59: 2.Outflows!C46*2.Outflows!D46=2.Outflows!E46 | E59: 55 | F59: =IF(('2.Outflows'!C46*'2.Outflows'!D46='2.Outflows'!E46),TRUE,FALSE) -> TRUE
A60: Finding provided by non-financial corporates and sovereigns, etc: Partially covered or not covered by deposit insurance | B60: In-schedule | C60: S02.DP31*0.4=S02.DP101 | D60: 2.Outflows!C47*2.Outflows!D47=2.Outflows!E47 | E60: 56 | F60: =IF(('2.Outflows'!C47*'2.Outflows'!D47='2.Outflows'!E47),TRUE,FALSE) -> TRUE
A61: Other legal entity customers | B61: In-schedule | C61: S02.DP32*1=S02.DP102 | D61: 2.Outflows!C48*2.Outflows!D48=2.Outflows!E48 | E61: 57 | F61: =IF(('2.Outflows'!C48*'2.Outflows'!D48='2.Outflows'!E48),TRUE,FALSE) -> TRUE
A62: Total Unsecured wholesale funding | B62: In-schedule | C62: S02.DP103=SUM(S02.DP85:DP102) | D62: 2.Outflows!E49=SUM(2.Outflows!E28:E48 | E62: =E61+1 -> 58 | F62: =IF('2.Outflows'!E49=SUM('2.Outflows'!E28:E48),TRUE,FALSE) -> TRUE
A63: Secured Wholesale Funding: Backed by Level 1 assets or with central banks | B63: In-schedule | C63: S02.DP34*0=S02.DP104 | D63: 2.Outflows!C51*2.Outflows!D51=2.Outflows!E51 | E63: =E62+1 -> 59 | F63: =IF(('2.Outflows'!C51*'2.Outflows'!D51='2.Outflows'!E51),TRUE,FALSE) -> TRUE
A64: Secured Wholesale Funding: Backed by Level 2A assets | B64: In-schedule | C64: S02.DP35*0.15=S02.DP105 | D64: 2.Outflows!C52*2.Outflows!D52=2.Outflows!E52 | E64: 60 | F64: =IF(('2.Outflows'!C52*'2.Outflows'!D52='2.Outflows'!E52),TRUE,FALSE) -> TRUE
A65: Secured funding transactions with domestic sovereign, PSEs or multilateral development banks, not backed by Level 1 or 2A assets | B65: In-schedule | C65: S02.DP36*0.25=S02.DP106 | D65: 2.Outflows!C53*2.Outflows!D53=2.Outflows!E53 | E65: 61 | F65: =IF(('2.Outflows'!C53*'2.Outflows'!D53='2.Outflows'!E53),TRUE,FALSE) -> TRUE
A66: Secured Wholesale Funding: Backed by Level 2B assets | B66: In-schedule | C66: S02.DP37*0.5=S02.DP107 | D66: 2.Outflows!C54*2.Outflows!D54=2.Outflows!E54 | E66: 62 | F66: =IF(('2.Outflows'!C54*'2.Outflows'!D54='2.Outflows'!E54),TRUE,FALSE) -> TRUE
A67: Secured Wholesale Funding: All other Secured Funding Transactions | B67: In-schedule | C67: S02.DP38*1=S02.DP108 | D67: 2.Outflows!C55*2.Outflows!D55=2.Outflows!E55 | E67: 63 | F67: =IF(('2.Outflows'!C55*'2.Outflows'!D55='2.Outflows'!E55),TRUE,FALSE) -> TRUE
A68: Total Secured Wholesale Funding | B68: In-schedule | C68: S02.DP109=SUM(S02.DP104:DP108) | D68: 2.Outflows!E56=SUM(2.Outflows!E51:E55) | E68: 64 | F68: =IF('2.Outflows'!E56=SUM('2.Outflows'!E51:E55),TRUE,FALSE) -> TRUE
A69: Total Outflows Wholesale Funding | B69: In-schedule | C69: S02.DP110=S02.DP103+S02.DP109 | D69: 2.Outflows!E57=2.Outflows!E49+2.Outflows!E56 | E69: =E68+1 -> 65 | F69: =IF(('2.Outflows'!E57='2.Outflows'!E49+'2.Outflows'!E56),TRUE,FALSE) -> TRUE
A70: Additional requirements: Derivative Cash Outflows | B70: In-schedule | C70: S02.DP41*1=S02.DP111 | D70: 2.Outflows!C59*2.Outflows!D59=2.Outflows!E59 | E70: 66 | F70: =IF(('2.Outflows'!C59*'2.Outflows'!D59='2.Outflows'!E59),TRUE,FALSE) -> TRUE
A71: Additional requirements: Liquidity needs related to downgrade triggers embedded in financing transactions, derivatives and other contracts | B71: In-schedule | C71: S02.DP42*1=S02.DP112 | D71: 2.Outflows!C60*2.Outflows!D60=2.Outflows!E60 | E71: 67 | F71: =IF(('2.Outflows'!C60*'2.Outflows'!D60='2.Outflows'!E60),TRUE,FALSE) -> TRUE
A72: Additional requirements: Liquidity needs related to the potential for valuation changes on posted collateral securing derivative and other transactions, Level 1 assets | B72: In-schedule | C72: S02.DP43*0=S02.DP113 | D72: 2.Outflows!C61*2.Outflows!D61=2.Outflows!E61 | E72: 68 | F72: =IF(('2.Outflows'!C61*'2.Outflows'!D61='2.Outflows'!E61),TRUE,FALSE) -> TRUE
A73: Additional requirements: Liquidity needs related to the potential for valuation changes on posted collateral securing derivative and other transactions, other assets | B73: In-schedule | C73: S02.DP44*0.2=S02.DP114 | D73: 2.Outflows!C62*2.Outflows!D62=2.Outflows!E62 | E73: 69 | F73: =IF(('2.Outflows'!C62*'2.Outflows'!D62='2.Outflows'!E62),TRUE,FALSE) -> TRUE
A74: Additional requirements: Liquidity needs related to excess non-segregated collateral held by the licensee that could contractually be called at any time by the counterparty | B74: In-schedule | C74: S02.DP45*1=S02.DP115 | D74: 2.Outflows!C63*2.Outflows!D63=2.Outflows!E63 | E74: 70 | F74: =IF(('2.Outflows'!C63*'2.Outflows'!D63='2.Outflows'!E63),TRUE,FALSE) -> TRUE
A75: Additional requirements: Liquidity needs related to contractually required collateral on transactions for which the counterparty has not yet demanded the collateral be posted | B75: In-schedule | C75: S02.DP46*1=S02.DP116 | D75: 2.Outflows!C64*2.Outflows!D64=2.Outflows!E64 | E75: 71 | F75: =IF(('2.Outflows'!C64*'2.Outflows'!D64='2.Outflows'!E64),TRUE,FALSE) -> TRUE
A76: Additional requirements: Liquidity needs related to contracts that allow collateral substitution to non-HQLA assets | B76: In-schedule | C76: S02.DP47*1=S02.DP117 | D76: 2.Outflows!C65*2.Outflows!D65=2.Outflows!E65 | E76: 72 | F76: =IF(('2.Outflows'!C65*'2.Outflows'!D65='2.Outflows'!E65),TRUE,FALSE) -> TRUE
A77: Additional requirements: Loss of funding on asset-backed securities , covered bonds and other structured financing instruments | B77: In-schedule | C77: S02.DP48*1=S02.DP118 | D77: 2.Outflows!C66*2.Outflows!D66=2.Outflows!E66 | E77: 73 | F77: =IF(('2.Outflows'!C66*'2.Outflows'!D66='2.Outflows'!E66),TRUE,FALSE) -> TRUE
A78: Additional requirements: Loss of funding on asset-backed commercial paper, conduits, securities investment vehicles and other such financing facilities | B78: In-schedule | C78: S02.DP49*1=S02.DP119 | D78: 2.Outflows!C67*2.Outflows!D67=2.Outflows!E67 | E78: 74 | F78: =IF(('2.Outflows'!C67*'2.Outflows'!D67='2.Outflows'!E67),TRUE,FALSE) -> TRUE
A79: Total additional requirements | B79: In-schedule | C79: S02.DP120=SUM(S02.DP111:DP119) | D79: 2.Outflows!E68=SUM(2.Outflows!E59:E67) | E79: 75 | F79: =IF('2.Outflows'!E68=SUM('2.Outflows'!E59:E67),TRUE,FALSE) -> TRUE
A80: Drawdowns: Committed credit and liquidity facilities to retail and small business customers | B80: In-schedule | C80: S02.DP51*0.05=S02.DP121 | D80: 2.Outflows!C70*2.Outflows!D70=2.Outflows!E70 | E80: 76 | F80: =IF(('2.Outflows'!C70*'2.Outflows'!D70='2.Outflows'!E70),TRUE,FALSE) -> TRUE
A81: Drawdowns: Committed credit facilities to non-financial corporates, sovereigns and central banks, PSEs and MDBs | B81: In-schedule | C81: S02.DP52*0.1=DP122 | D81: 2.Outflows!C71*2.Outflows!D71=2.Outflows!E71 | E81: 77 | F81: =IF(('2.Outflows'!C71*'2.Outflows'!D71='2.Outflows'!E71),TRUE,FALSE) -> TRUE
A82: Drawdowns: Committed liquidity facilities to non-financial corporates, sovereigns and central banks, PSEs, and MDBs | B82: In-schedule | C82: S02.DP53*0.3=S02.DP123 | D82: 2.Outflows!C72*2.Outflows!D72=2.Outflows!E72 | E82: 78 | F82: =IF(('2.Outflows'!C72*'2.Outflows'!D72='2.Outflows'!E72),TRUE,FALSE) -> TRUE
A83: Drawdowns: Committed credit and liquidity facilities extended to banks subject to prudential supervision | B83: In-schedule | C83: S02.DP54*0.4=S02.DP124 | D83: 2.Outflows!C73*2.Outflows!D73=2.Outflows!E73 | E83: 79 | F83: =IF(('2.Outflows'!C73*'2.Outflows'!D73='2.Outflows'!E73),TRUE,FALSE) -> TRUE
A84: Drawdowns: Committed credit facilities to other financial institutions including securities firms, insurance companies, fiduciaries and beneficiaries | B84: In-schedule | C84: S02.DP55*0.4=S02.DP125 | D84: 2.Outflows!C74*2.Outflows!D74=2.Outflows!E74 | E84: 80 | F84: =IF(('2.Outflows'!C74*'2.Outflows'!D74='2.Outflows'!E74),TRUE,FALSE) -> TRUE
A85: Drawdowns: Committed liquidity facilities to other financial institutions including securities firms, insurance companies, fiduciaries, and beneficiaries | B85: In-schedule | C85: S02.DP56*1=S02.DP126 | D85: 2.Outflows!C75*2.Outflows!D75=2.Outflows!E75 | E85: 81 | F85: =IF(('2.Outflows'!C75*'2.Outflows'!D75='2.Outflows'!E75),TRUE,FALSE) -> TRUE
A86: Drawdowns: Committed credit and liquidity facilities to other legal entities (including SPVs), conduits and special purpose vehicles and other entities not included in the prior categories | B86: In-schedule | C86: S02.DP57*1=S02.DP127 | D86: 2.Outflows!C76*2.Outflows!D76=2.Outflows!E76 | E86: 82 | F86: =IF(('2.Outflows'!C76*'2.Outflows'!D76='2.Outflows'!E76),TRUE,FALSE) -> TRUE
A87: Total committed credit and liquid facilities | B87: In-schedule | C87: S02.DP128=SUM(S02.DP121:DP127) | D87: 2.Outflows!E77=SUM(2.Outflows!E70:E76) | E87: 83 | F87: =IF('2.Outflows'!E77=SUM('2.Outflows'!E70:E76),TRUE,FALSE) -> TRUE
A88: Contractual obligation to financial institutions not captured elsewhere | B88: In-schedule | C88: S02.DP59*1=S02.DP129 | D88: 2.Outflows!C79*2.Outflows!D79=2.Outflows!E79 | E88: 84 | F88: =IF(('2.Outflows'!C79*'2.Outflows'!D79='2.Outflows'!E79),TRUE,FALSE) -> TRUE
A89: Contingent funding obligations stemming from trade finance instruments | B89: In-schedule | C89: S02.DP60*0.05=S02.DP130 | D89: 2.Outflows!C81*2.Outflows!D81=2.Outflows!E81 | E89: 85 | F89: =IF(('2.Outflows'!C81*'2.Outflows'!D81='2.Outflows'!E81),TRUE,FALSE) -> TRUE
A90: Unconditionally revocable "uncommitted" credit and liquidity facilities | B90: In-schedule | C90: S02.DP61*0.5=S02.DP131 | D90: 2.Outflows!C83*2.Outflows!D83=2.Outflows!E83 | E90: 86 | F90: =IF(('2.Outflows'!C83*'2.Outflows'!D83='2.Outflows'!E83),TRUE,FALSE) -> TRUE
A91: Guarantees and letters of credit unrelated to trade finance obligations | B91: In-schedule | C91: S02.DP62*0.5=S02.DP132 | D91: 2.Outflows!C84*2.Outflows!D84=2.Outflows!E84 | E91: 87 | F91: =IF(('2.Outflows'!C84*'2.Outflows'!D84='2.Outflows'!E84),TRUE,FALSE) -> TRUE
A92: Non-contractual obligations: potential requests for debt repurchases | B92: In-schedule | C92: S02.DP63*0.5=S02.DP133 | D92: 2.Outflows!C86*2.Outflows!D86=2.Outflows!E86 | E92: 88 | F92: =IF(('2.Outflows'!C86*'2.Outflows'!D86='2.Outflows'!E86),TRUE,FALSE) -> TRUE
A93: Non-contractual obligations: structured products where customers anticipate ready marketability | B93: In-schedule | C93: S02.DP64*0.5=S02.DP134 | D93: 2.Outflows!C87*2.Outflows!D87=2.Outflows!E87 | E93: 89 | F93: =IF(('2.Outflows'!C87*'2.Outflows'!D87='2.Outflows'!E87),TRUE,FALSE) -> TRUE
A94: Non-contractual obligations: managed funds that are marketed with the objective of maintaining a stable value | B94: In-schedule | C94: S02.DP65*0.5=S02.DP135 | D94: 2.Outflows!C88*2.Outflows!D88=2.Outflows!E88 | E94: 90 | F94: =IF(('2.Outflows'!C88*'2.Outflows'!D88='2.Outflows'!E88),TRUE,FALSE) -> TRUE
A95: Outflows from potential repurchases of outstanding debt obligations of issues with an affiliated dealer or market maker | B95: In-schedule | C95: S02.DP66*0.5=S02.DP136 | D95: 2.Outflows!C89*2.Outflows!D89=2.Outflows!E89 | E95: 91 | F95: =IF(('2.Outflows'!C89*'2.Outflows'!D89='2.Outflows'!E89),TRUE,FALSE) -> TRUE
A96: Non-contractual obligations where customer short positions are covered by other customers’ collateral | B96: In-schedule | C96: S02.DP67*0.5=S02.DP137 | D96: 2.Outflows!C90*2.Outflows!D90=2.Outflows!E90 | E96: 92 | F96: =IF(('2.Outflows'!C90*'2.Outflows'!D90='2.Outflows'!E90),TRUE,FALSE) -> TRUE
A97: Total other contingent funding obligations | B97: In-schedule | C97: S02.DP138=SUM(S02.D131:DP137) | D97: 2.Outflows!E91=SUM(2.Outflows!E83:E90) | E97: 93 | F97: =IF('2.Outflows'!E91=SUM('2.Outflows'!E83:E90),TRUE,FALSE) -> TRUE
A98: Any other contractual outflows | B98: In-schedule | C98: S02.DP69*1=S02.DP139 | D98: 2.Outflows!C93*2.Outflows!D93=2.Outflows!E93 | E98: 94 | F98: =IF(('2.Outflows'!C93*'2.Outflows'!D93='2.Outflows'!E93),TRUE,FALSE) -> TRUE
A99: Total cash outflows | B99: In-schedule | C99: S02.DP140=S02.DP84+S02.DP110+S02.DP120+S02.DP128+S02.DP129+S02.DP130+S02.DP138+S02.DP139 | D99: 2.Outflows!E94=2.Outflows!E24+2.Outflows!E57+2.Outflows!E68+2.Outflows!E77+2.Outflows!E79+2.Outflows!E81+2.Outflows!E91+2.Outflows!E93 | E99: 95 | F99: =IF(('2.Outflows'!E94='2.Outflows'!E24+'2.Outflows'!E57+'2.Outflows'!E68+'2.Outflows'!E77+'2.Outflows'!E79+'2.Outflows'!E81+'2.Outflows'!E91+'2.Outflows'!E93),TRUE,FALSE) -> TRUE
A100: Schedule 3 - Inflows
A101: Maturing secured lending backed by: Level 1 assets | B101: In-schedule | C101: S03.DP1*0=S03.DP21 | D101: 3.Inflows!C10*3.Inflows!D10=3.Inflows!E10 | E101: 92 | F101: =IF(('3.Inflows'!C10*'3.Inflows'!D10='3.Inflows'!E10),TRUE,FALSE) -> TRUE
A102: Maturing secured lending backed by: Level 2A assets | B102: In-schedule | C102: S03.DP2*0.15=S0322 | D102: 3.Inflows!C11*3.Inflows!D11=3.Inflows!E11 | E102: =E101+1 -> 93 | F102: =IF(('3.Inflows'!C11*'3.Inflows'!D11='3.Inflows'!E11),TRUE,FALSE) -> TRUE
A103: Maturing secured lending backed by: Level 2B assets | B103: In-schedule | C103: S03.DP03.*0.5=S03.DP23 | D103: 3.Inflows!C12*3.Inflows!D12=3.Inflows!E12 | E103: =E102+1 -> 94 | F103: =IF(('3.Inflows'!C12*'3.Inflows'!D12='3.Inflows'!E12),TRUE,FALSE) -> TRUE
A104: Maturing secured lending backed by: Margin lending backed by all other collateral | B104: In-schedule | C104: S03.DP04*0.5=S03.DP24 | D104: 3.Inflows!C13*3.Inflows!D13=3.Inflows!E13 | E104: 95 | F104: =IF(('3.Inflows'!C13*'3.Inflows'!D13='3.Inflows'!E13),TRUE,FALSE) -> TRUE
A105: Maturing secured lending backed by: All other collateral | B105: In-schedule | C105: S03.DP05*1=S03.DP25 | D105: 3.Inflows!C14*3.Inflows!D14=3.Inflows!E14 | E105: 96 | F105: =IF(('3.Inflows'!C14*'3.Inflows'!D14='3.Inflows'!E14),TRUE,FALSE) -> TRUE
A106: Maturing secured lending backed by: Collateral is used to cover short positions | B106: In-schedule | C106: S03.DP06*0=S03.DP26 | D106: 3.Inflows!C15*3.Inflows!D15=3.Inflows!E15 | E106: 97 | F106: =IF(('3.Inflows'!C15*'3.Inflows'!D15='3.Inflows'!E15),TRUE,FALSE) -> TRUE
A107: Total secured lending inflows | B107: In-schedule | C107: S03.DP27=SUM(S03.DP21:DP26) | D107: 3.Inflows!E16=SUM(3.Inflows!E10:E15) | E107: 98 | F107: =IF('3.Inflows'!E16=SUM('3.Inflows'!E10:E15),TRUE,FALSE) -> TRUE
A108: Committed facilities: Credit facilities, liquidity facilities and contingent funding facilities that an institution holds at other institutions | B108: In-schedule | C108: S03.DP08*0=S03.DP28 | D108: 3.Inflows!C18*3.Inflows!D18=3.Inflows!E18 | E108: 99 | F108: =IF(('3.Inflows'!C18*'3.Inflows'!D18='3.Inflows'!E18),TRUE,FALSE) -> TRUE
A109: Total committed facilities | B109: In-schedule | C109: S03.DP29=S03.DP28 | D109: 3.Inflows!E19=3.Inflows!E18 | E109: 100 | F109: =IF(('3.Inflows'!E18='3.Inflows'!E18),TRUE,FALSE) -> TRUE
A110: Retail and small business customer inflows | B110: In-schedule | C110: S03.DP10*0.5=S03.DP30 | D110: 3.Inflows!C21*3.Inflows!D21=3.Inflows!E21 | E110: 101 | F110: =IF(('3.Inflows'!C21*'3.Inflows'!D21='3.Inflows'!E21),TRUE,FALSE) -> TRUE
A111: Wholesale inflows: non-financial counterparties (including non-financial corporates, sovereigns, MDBs, and PSEs) | B111: In-schedule | C111: S03.DP11*0.5=S03.DP31 | D111: 3.Inflows!C22*3.Inflows!D22=3.Inflows!E22 | E111: 102 | F111: =IF(('3.Inflows'!C22*'3.Inflows'!D22='3.Inflows'!E22),TRUE,FALSE) -> TRUE
A112: Wholesale inflows: financial institution and central bank counterparties | B112: In-schedule | C112: S03.DP12*1=S03.DP32 | D112: 3.Inflows!C23*3.Inflows!D23=3.Inflows!E23 | E112: 103 | F112: =IF(('3.Inflows'!C23*'3.Inflows'!D23='3.Inflows'!E23),TRUE,FALSE) -> TRUE
A113: Inflows from securities not included in the stock of HQLA | B113: In-schedule | C113: S03.DP13*1=S03.DP33 | D113: 3.Inflows!C24*3.Inflows!D24=3.Inflows!E24 | E113: 104 | F113: =IF(('3.Inflows'!C24*'3.Inflows'!D24='3.Inflows'!E24),TRUE,FALSE) -> TRUE
A114: Operational deposits held at other financial institutions for clearing, custody, and cash management purposes | B114: In-schedule | C114: S03.DP14*0=S03.DP34 | D114: 3.Inflows!C25*3.Inflows!D25=3.Inflows!E25 | E114: 105 | F114: =IF(('3.Inflows'!C25*'3.Inflows'!D25='3.Inflows'!E25),TRUE,FALSE) -> TRUE
A115: Balances held at other financial institutions in excess of operational deposits (“excess balances”) | B115: In-schedule | C115: S03.DP15*1=S03.DP35 | D115: 3.Inflows!C26*3.Inflows!D26=3.Inflows!E26 | E115: 106 | F115: =IF(('3.Inflows'!C26*'3.Inflows'!D26='3.Inflows'!E26),TRUE,FALSE) -> TRUE
A116: Total inflows by counterparty | B116: In-schedule | C116: S03.DP36=SUM(S03.DP30:DP35) | D116: 3.Inflows!E27=SUM(3.Inflows!E21:E26) | E116: 107 | F116: =IF('3.Inflows'!E27=SUM('3.Inflows'!E21:E26),TRUE,FALSE) -> TRUE
A117: Derivatives net cash inflows | B117: In-schedule | C117: S03.DP17*1=S03.DP37 | D117: 3.Inflows!C29*3.Inflows!D29=3.Inflows!E29 | E117: 108 | F117: =IF(('3.Inflows'!C29*'3.Inflows'!D29='3.Inflows'!E29),TRUE,FALSE) -> TRUE
A118: Other contractual cash inflows | B118: In-schedule | C118: S03.DP18*0.5=S03.DP38 | D118: 3.Inflows!C30*3.Inflows!D30=3.Inflows!E30 | E118: 109 | F118: =IF(('3.Inflows'!C30*'3.Inflows'!D30='3.Inflows'!E30),TRUE,FALSE) -> TRUE
A119: Total other cash inflows | B119: In-schedule | C119: S03.DP39=SUM(S03.DP37:DP38) | D119: 3.Inflows!E31=SUM(3.Inflows!E29:E30) | E119: 110 | F119: =IF('3.Inflows'!E31=SUM('3.Inflows'!E29:E30),TRUE,FALSE) -> TRUE
A120: Total cash inflows | B120: In-schedule | C120: S03.DP40=S03.DP27+S03.DP29+S03.DP36+S03.DP39 | D120: 3.Inflows!E32=3.Inflows!E16+3.Inflows!E19+3.Inflows!E27+3.Inflows!E31 | E120: 111 | F120: =IF(('3.Inflows'!E32='3.Inflows'!E16+'3.Inflows'!E19+'3.Inflows'!E27+'3.Inflows'!E31),TRUE,FALSE) -> TRUE
A121: Schedule 4 - LCR Calculation
A122: Level 1 Assets | B122: Cross-schedule | C122: S04.DP01= S01.DP31 | D122: 4.LCR calculation!C8=1.HQLA!E22 | E122: 112 | F122: =IF('4.LCR calculation'!C8='1.HQLA'!E22,TRUE,FALSE) -> TRUE
A123: Level 2 Assets | B123: In-schedule | C123: S04.DP02=S04.DP03+S04.DP04 | D123: 4.LCR calculation!C9=4.LCR calculation!C10+4.LCR calculation!C11 | E123: =E122+1 -> 113 | F123: =IF(('4.LCR calculation'!C9='4.LCR calculation'!C10+'4.LCR calculation'!C11),TRUE,FALSE) -> TRUE
A124: Level 2A Assets | B124: Cross-schedule | C124: S04.DP03= S01.DP37 | D124: 4.LCR calculation!C10=1.HQLA!E30 | E124: =E123+1 -> 114 | F124: =IF(('4.LCR calculation'!C10='1.HQLA'!E30),TRUE,FALSE) -> TRUE
A125: Level 2B Assets | B125: Cross-schedule | C125: S04.DP04= S01.DP40 | D125: 4.LCR calculation!C11=1.HQLA!E34 | E125: 115 | F125: =IF(('4.LCR calculation'!C11='1.HQLA'!E34),TRUE,FALSE) -> TRUE
A126: Adjustment to stock of HQLA for 15% cap on Level 2B assets | B126: Cross-schedule | C126: S04.DP05= S01.DP41 | D126: 4.LCR calculation!C12=1.HQLA!E36 | E126: 116 | F126: =IF(('4.LCR calculation'!C12='1.HQLA'!E36),TRUE,FALSE) -> TRUE
A127: Adjustment to stock of HQLA for 40% cap on Level 2 assets | B127: Cross-schedule | C127: S04.DP06= S01.DP42 | D127: 4.LCR calculation!C13=1.HQLA!E37 | E127: 117 | F127: =IF(('4.LCR calculation'!C13='1.HQLA'!E37),TRUE,FALSE) -> TRUE
A128: Total adjusted stock of HQLA | B128: In-schedule | C128: S04.DP07=S04.DP01+S04.DP02-S04.DP05-S04.DP06 | D128: 4.LCR calculation!C14=4.LCR calculation!C8+4.LCR calculation!C9-4.LCR calculation!C12-4.LCR calculation!C13 | E128: 117 | F128: =IF(('4.LCR calculation'!C14='4.LCR calculation'!C8+'4.LCR calculation'!C9-'4.LCR calculation'!C12-'4.LCR calculation'!C13),TRUE,FALSE) -> TRUE
A129: Retail deposits | B129: Cross-schedule | C129: S04.DP08=S02.DP84 | D129: 4.LCR calculation!C16=2.Outflows!E24 | E129: =E128+1 -> 118 | F129: =IF(('4.LCR calculation'!C16='2.Outflows'!E24),TRUE,FALSE) -> TRUE
A130: Wholesale Funding | B130: Cross-schedule | C130: S04.DP09=S02.DP110 | D130: 4.LCR calculation!C17=2.Outflows!E57 | E130: 119 | F130: =IF(('4.LCR calculation'!C17='2.Outflows'!E57),TRUE,FALSE) -> TRUE
A131: Additional requirements | B131: Cross-schedule | C131: S04.DP10=S02.DP120 | D131: 4.LCR calculation!C18=2.Outflows!E68 | E131: 120 | F131: =IF(('4.LCR calculation'!C18='2.Outflows'!E68),TRUE,FALSE) -> TRUE
A132: Committed credit and liquidity facilities | B132: Cross-schedule | C132: S04.DP11=S02.DP128 | D132: 4.LCR calculation!C19=2.Outflows!E77 | E132: 121 | F132: =IF(('4.LCR calculation'!C19='2.Outflows'!E77),TRUE,FALSE) -> TRUE
A133: Contractual obligations to financial institutions | B133: Cross-schedule | C133: S04.DP12=S02.DP129 | D133: 4.LCR calculation!C20=2.Outflows!E79 | E133: 122 | F133: =IF(('4.LCR calculation'!C20='2.Outflows'!E79),TRUE,FALSE) -> TRUE
A134: Trade Finance Instruments | B134: Cross-schedule | C134: S04.DP13=S02.DP130 | D134: 4.LCR calculation!C21=2.Outflows!E81 | E134: 123 | F134: =IF(('4.LCR calculation'!C21='2.Outflows'!E81),TRUE,FALSE) -> TRUE
A135: Total other contingent funding obligations | B135: Cross-schedule | C135: S04.DP14=S02.DP138 | D135: 4.LCR calculation!C22=2.Outflows!E91 | E135: 124 | F135: =IF(('4.LCR calculation'!C22='2.Outflows'!E91),TRUE,FALSE) -> TRUE
A136: Any other contractual cash outflows | B136: Cross-schedule | C136: S04.DP15=S02.DP139 | D136: 4.LCR calculation!C23=2.Outflows!E93 | E136: 125 | F136: =IF(('4.LCR calculation'!C23='2.Outflows'!E93),TRUE,FALSE) -> TRUE
A137: Total cash outflows | B137: In-schedule | C137: S04.DP16=SUM(S04.DP08:DP15) | D137: 4.LCR calculation!C24=SUM(4.LCR calculation!C16:C23) | E137: =E136+1 -> 126 | F137: =IF('4.LCR calculation'!C24=SUM('4.LCR calculation'!C16:C23),TRUE,FALSE) -> TRUE
A138: Secured lending inflows | B138: Cross-schedule | C138: S04.DP17=S03.DP27 | D138: 4.LCR calculation!C26=3.Inflows!E16 | E138: =E137+1 -> 127 | F138: =IF(('4.LCR calculation'!C26='3.Inflows'!E16),TRUE,FALSE) -> TRUE
A139: Committed facilities | B139: Cross-schedule | C139: S04.DP18=S03.DP29 | D139: 4.LCR calculation!C27=3.Inflows!E19 | E139: 128 | F139: =IF(('4.LCR calculation'!C27='3.Inflows'!E19),TRUE,FALSE) -> TRUE
A140: Inflows by counterparty | B140: Cross-schedule | C140: S04.DP19=S03.DP36 | D140: 4.LCR calculation!C28=3.Inflows!E27 | E140: 129 | F140: =IF(('4.LCR calculation'!C28='3.Inflows'!E27),TRUE,FALSE) -> TRUE
A141: Other cash inflows | B141: Cross-schedule | C141: S04.DP20=S03.DP39 | D141: 4.LCR calculation!C29=3.Inflows!E31 | E141: 130 | F141: =IF(('4.LCR calculation'!C29='3.Inflows'!E31),TRUE,FALSE) -> TRUE
A142: Total cash inflows | B142: In-schedule | C142: S04.DP21=SUM(S04.DP17:DP20) | D142: 4.LCR calculation!C30=SUM(4.LCR calculation!C26:C29) | E142: 131 | F142: =IF('4.LCR calculation'!C30=SUM('4.LCR calculation'!C26:C29),TRUE,FALSE) -> TRUE
A143: Net cash outflows | B143: In-schedule | C143: S04.DP22=S04.DP16-MIN(S04.DP21*S04.DP16) | D143: 4.LCR calculation!C31=4.LCR calculation!C24-MIN(4.LCR calculation!C30,0.75*4.LCR calculation!C24) | E143: 132 | F143: =IF('4.LCR calculation'!C31='4.LCR calculation'!C24-MIN('4.LCR calculation'!C30,0.75*'4.LCR calculation'!C24),TRUE,FALSE) -> TRUE
A144: Liquidity Coverage Ratio | B144: In-schedule | C144: S04.DP23=IFERROR(S04.DP07/S04.DP22) | D144: 4.LCR calculation!C33=IFERROR(4.LCR calculation!C14/4.LCR calculation!C31,0 | E144: 133 | F144: =IF('4.LCR calculation'!C33=IFERROR('4.LCR calculation'!C14/'4.LCR calculation'!C31,0),TRUE,FALSE) -> TRUE
A145: Schedule 5 - HQLATTD
A146: Coins and banknotes (including qualifying cash items in the process of collection) | B146: In-schedule | C146: S05.DP01*1=S05.DP21 | D146: 5.HQLA-TTD!C10*5.HQLA-TTD!D10=5.HQLA-TTD!E10 | E146: =E144+1 -> 134 | F146: =IF(('5.HQLA-TTD'!C10*'5.HQLA-TTD'!D10='5.HQLA-TTD'!E10),TRUE,FALSE) -> TRUE
A147: Eligible Reserves held at Central Banks | B147: In-schedule | C147: S05.DP02*1=S05.DP22 | D147: 5.HQLA-TTD!C11*5.HQLA-TTD!D11=5.HQLA-TTD!E11 | E147: =E146+1 -> 135 | F147: =IF(('5.HQLA-TTD'!C11*'5.HQLA-TTD'!D11='5.HQLA-TTD'!E11),TRUE,FALSE) -> TRUE
A148: Securities issued or guaranteed by the government of Trinidad and Tobago | B148: In-schedule | C148: S05.DP03*1=S05.DP23 | D148: 5.HQLA-TTD!C12*5.HQLA-TTD!D12=5.HQLA-TTD!E12 | E148: =E147+1 -> 136 | F148: =IF(('5.HQLA-TTD'!C12*'5.HQLA-TTD'!D12='5.HQLA-TTD'!E12),TRUE,FALSE) -> TRUE
A149: Securities issued or guaranteed by the Central Bank of Trinidad and Tobago | B149: In-schedule | C149: S05.DP04*1=S05.DP24 | D149: 5.HQLA-TTD!C13*5.HQLA-TTD!D13=5.HQLA-TTD!E13 | E149: 137 | F149: =IF(('5.HQLA-TTD'!C13*'5.HQLA-TTD'!D13='5.HQLA-TTD'!E13),TRUE,FALSE) -> TRUE
A150: Other eligible securities with a 0% risk weight: Issued or guaranteed by sovereigns | B150: In-schedule | C150: S05.DP05*1=S05.DP25 | D150: 5.HQLA-TTD!C15*5.HQLA-TTD!D15=5.HQLA-TTD!E15 | E150: 138 | F150: =IF(('5.HQLA-TTD'!C15*'5.HQLA-TTD'!D15='5.HQLA-TTD'!E15),TRUE,FALSE) -> TRUE
A151: Other eligible securities with a 0% risk weight: Issued or guaranteed by central banks | B151: In-schedule | C151: S05.DP06*1=S05.DP26 | D151: 5.HQLA-TTD!C16*5.HQLA-TTD!D16=5.HQLA-TTD!E16 | E151: 139 | F151: =IF(('5.HQLA-TTD'!C16*'5.HQLA-TTD'!D16='5.HQLA-TTD'!E16),TRUE,FALSE) -> TRUE
A152: Other eligible securities with a 0% risk weight: Issued or guaranteed by PSEs | B152: In-schedule | C152: S05.DP07*1=S05.DP27 | D152: 5.HQLA-TTD!C17*5.HQLA-TTD!D17=5.HQLA-TTD!E17 | E152: 140 | F152: =IF(('5.HQLA-TTD'!C17*'5.HQLA-TTD'!D17='5.HQLA-TTD'!E17),TRUE,FALSE) -> TRUE
A153: Other eligible securities with a 0% risk weight: Issued or guaranteed by BIS, IMF, ECB, European Community, or MDBs | B153: In-schedule | C153: S05.DP08*1=S05.DP28 | D153: 5.HQLA-TTD!C18*5.HQLA-TTD!D18=5.HQLA-TTD!E18 | E153: 141 | F153: =IF(('5.HQLA-TTD'!C18*'5.HQLA-TTD'!D18='5.HQLA-TTD'!E18),TRUE,FALSE) -> TRUE
A154: Other non-0% risk-weighted eligible sovereign or central bank securities: Issued in domestic currencies in the country in which the liquidity risk is being taken or in the licensee’s home country | B154: In-schedule | C154: S05.DP09*1=S05.DP29 | D154: 5.HQLA-TTD!C20*5.HQLA-TTD!D20=5.HQLA-TTD!E20 | E154: 142 | F154: =IF(('5.HQLA-TTD'!C20*'5.HQLA-TTD'!D20='5.HQLA-TTD'!E20),TRUE,FALSE) -> TRUE
A155: Other non-0% risk-weighted eligible sovereign or central bank securities: Issued in foreign currencies, up to the amount of the licensee’s stressed net cash outflows in that specific foreign currency stemming from the licensee’s operations in the jurisdiction where the liquidity risk is taken | B155: In-schedule | C155: S05.DP10*1=S05.DP30 | D155: 5.HQLA-TTD!C21*5.HQLA-TTD!D21=5.HQLA-TTD!E21 | E155: 143 | F155: =IF(('5.HQLA-TTD'!C21*'5.HQLA-TTD'!D21='5.HQLA-TTD'!E21),TRUE,FALSE) -> TRUE
A156: Stock of level 1 assets Market value | C156: S05.DP11=SUM(S05.DP01:DP04)+SUM( S05.DP05:DP08)+SUM( S05.DP09:DP10) | D156: 5.HQLA-TTD!C22=SUM(5.HQLA-TTD!C10:C13)+SUM(5.HQLA-TTD!C15:C18)+SUM(5.HQLA-TTD!C20:C21) | E156: 144 | F156: =IF('5.HQLA-TTD'!C22=SUM('5.HQLA-TTD'!C10:C13)+SUM('5.HQLA-TTD'!C15:C18)+SUM('5.HQLA-TTD'!C20:C21),TRUE,FALSE) -> TRUE
A157: Level 2A qualifying securities issued or guaranteed by: Sovereigns | B157: In-schedule | C157: S05.DP12*0.85= S05.DP32 | D157: 5.HQLA-TTD!C25*5.HQLA-TTD!D25=5.HQLA-TTD!E25 | E157: 145 | F157: =IF(('5.HQLA-TTD'!C25*'5.HQLA-TTD'!D25='5.HQLA-TTD'!E25),TRUE,FALSE) -> TRUE
A158: Level 2A qualifying securities issued or guaranteed by: Central banks | B158: In-schedule | C158: S05.DP13*0.85= S05.DP33 | D158: 5.HQLA-TTD!C26*5.HQLA-TTD!D26=5.HQLA-TTD!E26 | E158: 146 | F158: =IF(('5.HQLA-TTD'!C26*'5.HQLA-TTD'!D26='5.HQLA-TTD'!E26),TRUE,FALSE) -> TRUE
A159: Level 2A qualifying securities issued or guaranteed by: PSEs | B159: In-schedule | C159: S05.DP14*0.85= S05.DP34 | D159: 5.HQLA-TTD!C27*5.HQLA-TTD!D27=5.HQLA-TTD!E27 | E159: 147 | F159: =IF(('5.HQLA-TTD'!C27*'5.HQLA-TTD'!D27='5.HQLA-TTD'!E27),TRUE,FALSE) -> TRUE
A160: Level 2A qualifying securities issued or guaranteed by: MDBs | B160: In-schedule | C160: S05.DP15*0.85= S05.DP35 | D160: 5.HQLA-TTD!C28*5.HQLA-TTD!D28=5.HQLA-TTD!E28 | E160: 148 | F160: =IF(('5.HQLA-TTD'!C28*'5.HQLA-TTD'!D28='5.HQLA-TTD'!E28),TRUE,FALSE) -> TRUE
A161: Level 2A qualifying non-financial corporate bonds | B161: In-schedule | C161: S05.DP16*0.85= S05.DP36 | D161: 5.HQLA-TTD!C29*5.HQLA-TTD!D29=5.HQLA-TTD!E29 | E161: 149 | F161: =IF(('5.HQLA-TTD'!C29*'5.HQLA-TTD'!D29='5.HQLA-TTD'!E29),TRUE,FALSE) -> TRUE
A162: Stock of level 2A assets Market value | C162: S05.DP17=SUM(S05.DP12:DP16) | D162: 5.HQLA-TTD!C30=SUM(5.HQLA-TTD!C25:C29) | E162: 150 | F162: =IF('5.HQLA-TTD'!C30=SUM('5.HQLA-TTD'!C25:C29),TRUE,FALSE) -> TRUE
A163: Corporate debt securities | B163: In-schedule | C163: S05.DP18*0.5= S05.DP38 | D163: 5.HQLA-TTD!C32*5.HQLA-TTD!D32=5.HQLA-TTD!E32 | E163: 151 | F163: =IF(('5.HQLA-TTD'!C32*'5.HQLA-TTD'!D32='5.HQLA-TTD'!E32),TRUE,FALSE) -> TRUE
A164: Non-financial common equity shares | B164: In-schedule | C164: S05.DP19*0.5= S05.DP39 | D164: 5.HQLA-TTD!C33*5.HQLA-TTD!D33=5.HQLA-TTD!E33 | E164: 152 | F164: =IF(('5.HQLA-TTD'!C33*'5.HQLA-TTD'!D33='5.HQLA-TTD'!E33),TRUE,FALSE) -> TRUE
A165: Stock of level 1 assets Weighted amount | B165: In-schedule | C165: S05.DP31=SUM( S05.DP21:DP24)+SUM( S05.DP25:DP28)+SUM( S05.DP29:DP30) | D165: 5.HQLA-TTD!E22=SUM(5.HQLA-TTD!E10:E13)+SUM(5.HQLA-TTD!E15:E18)+SUM(5.HQLA-TTD!E20:E21) | E165: 153 | F165: =IF('5.HQLA-TTD'!E22=SUM('5.HQLA-TTD'!E10:E13)+SUM('5.HQLA-TTD'!E15:E18)+SUM('5.HQLA-TTD'!E20:E21),TRUE,FALSE) -> TRUE
A166: Stock of level 2A assets Weighted amount | B166: In-schedule | C166: S05.DP37=SUM(S05.DP32:DP36) | D166: 5.HQLA-TTD!E30=SUM(5.HQLA-TTD!E25:E29) | E166: 154 | F166: =IF('5.HQLA-TTD'!E30=SUM('5.HQLA-TTD'!E25:E29),TRUE,FALSE) -> TRUE
A167: Stock of level 2B assets Weighted amount | B167: In-schedule | C167: S05.DP40=SUM(S05.DP38:DP39) | D167: 5.HQLA-TTD!E34=SUM(5.HQLA-TTD!E32:E33) | E167: 155 | F167: =IF('5.HQLA-TTD'!E34=SUM('5.HQLA-TTD'!E32:E33),TRUE,FALSE) -> TRUE
A168: Adjustment to stock of HQLA for 15% cap on Level 2B assets | B168: In-schedule | C168: S05.DP41=MAX(S05.DP40-15/85*(S05.DP31+S05.DP37),S05.DP40-(15/60*S05.DP31),0) | D168: 5.HQLA-TTD!E36=MAX(5.HQLA-TTD!E34-15/85*(5.HQLA-TTD!E22+5.HQLA-TTD!E30),5.HQLA-TTD!E34-15/60*5.HQLA-TTD!E22,0) | E168: 156 | F168: =IF('5.HQLA-TTD'!E36=MAX('5.HQLA-TTD'!E34-15/85*('5.HQLA-TTD'!E22+'5.HQLA-TTD'!E30),'5.HQLA-TTD'!E34-15/60*'5.HQLA-TTD'!E22,0), TRUE, FALSE) -> TRUE
A169: Adjustment to stock of HQLA for 40% cap on Level 2 assets | B169: In-schedule | C169: S05.DP42=MAX((S05.DP37+S05.DP40-S05.DP41)-2/3*S05.DP31,0) | D169: 5.HQLA-TTD'!E37=MAX(('5.HQLA-TTD'!E30+'5.HQLA-TTD'!E34-'5.HQLA-TTD'!E36)-2/3*'5.HQLA-TTD'!E22,0 | E169: 157 | F169: =IF('5.HQLA-TTD'!E37=MAX(('5.HQLA-TTD'!E30+'5.HQLA-TTD'!E34-'5.HQLA-TTD'!E36)-2/3*'5.HQLA-TTD'!E22,0), TRUE, FALSE) -> TRUE
A170: Stock of HQLA after caps | B170: In-schedule | C170: S09.DP43=S09.DP31+S09.DP37+S09.DP40-S09.DP41-S09.DP42 | D170: 5.HQLA!E38=5.HQLA!E22+5.HQLA!E30+5.HQLA!E34-5.HQLA!E36-5.HQLA!E37 | E170: 158 | F170: =IF(('5.HQLA-TTD'!E38='5.HQLA-TTD'!E22+'5.HQLA-TTD'!E30+'5.HQLA-TTD'!E34-'5.HQLA-TTD'!E36-'5.HQLA-TTD'!E37),TRUE,FALSE) -> TRUE
A171: Schedule 6 - Outflows-TTD
A172: Retail Term Deposits with residual maturity or withdrawal notice period > 30 days | B172: In-schedule | C172: S06.DP01*0=S06.DP71 | D172: 6.Outflows-TTD!C9*6.Outflows-TTD!D9=6.Outflows-TTD!E9 | E172: =E170+1 -> 159 | F172: =IF(('6.Outflows-TTD'!C9*'6.Outflows-TTD'!D9='6.Outflows-TTD'!E9),TRUE,FALSE) -> TRUE
A173: Stable deposits: Qualifying demand deposits in TT dollars | B173: In-schedule | C173: S06.DP02*0.05=S06.DP72 | D173: 6.Outflows-TTD!C11*6.Outflows-TTD!D11=6.Outflows-TTD!E11 | E173: =E172+1 -> 160 | F173: =IF(('6.Outflows-TTD'!C11*'6.Outflows-TTD'!D11='6.Outflows-TTD'!E11),TRUE,FALSE) -> TRUE
A174: Stable deposits: Qualifying demand deposits in foreign currency | B174: In-schedule | C174: S06.DP03*0.05=S06.DP73 | D174: 6.Outflows-TTD!C12*6.Outflows-TTD!D12=6.Outflows-TTD!E12 | E174: =E173+1 -> 161 | F174: =IF(('6.Outflows-TTD'!C12*'6.Outflows-TTD'!D12='6.Outflows-TTD'!E12),TRUE,FALSE) -> TRUE
A175: Stable deposits: Qualifying saving deposits in TT dollars | B175: In-schedule | C175: S06.DP04*0.05=S06.DP74 | D175: 6.Outflows-TTD!C13*6.Outflows-TTD!D13=6.Outflows-TTD!E13 | E175: 162 | F175: =IF(('6.Outflows-TTD'!C13*'6.Outflows-TTD'!D13='6.Outflows-TTD'!E13),TRUE,FALSE) -> TRUE
A176: Stable deposits: Qualifying saving deposits in foreign currency | B176: In-schedule | C176: S06.DP05*0.05=S06.DP75 | D176: 6.Outflows-TTD!C14*6.Outflows-TTD!D14=6.Outflows-TTD!E14 | E176: 163 | F176: =IF(('6.Outflows-TTD'!C14*'6.Outflows-TTD'!D14='6.Outflows-TTD'!E14),TRUE,FALSE) -> TRUE
A177: Stable deposits: Qualifying time deposits in TT dollars | B177: In-schedule | C177: S06.DP06*0.05=S06.DP76 | D177: 6.Outflows-TTD!C15*6.Outflows-TTD!D15=6.Outflows-TTD!E15 | E177: 164 | F177: =IF(('6.Outflows-TTD'!C15*'6.Outflows-TTD'!D15='6.Outflows-TTD'!E15),TRUE,FALSE) -> TRUE
A178: Stable deposits: Qualifying time deposits in foreign currency | B178: In-schedule | C178: S06.DP07*0.05=S06.DP77 | D178: 6.Outflows-TTD!C16*6.Outflows-TTD!D16=6.Outflows-TTD!E16 | E178: 165 | F178: =IF(('6.Outflows-TTD'!C16*'6.Outflows-TTD'!D16='6.Outflows-TTD'!E16),TRUE,FALSE) -> TRUE
A179: Less stable deposits: Demand deposits in TT dollar | B179: In-schedule | C179: S06.DP08*0.1=S06.DP78 | D179: 6.Outflows-TTD!C18*6.Outflows-TTD!D18=6.Outflows-TTD!E18 | E179: 166 | F179: =IF(('6.Outflows-TTD'!C18*'6.Outflows-TTD'!D18='6.Outflows-TTD'!E18),TRUE,FALSE) -> TRUE
A180: Less stable deposits: Demand deposits in foreign currency | B180: In-schedule | C180: S06.DP09*0.1=S06.DP79 | D180: 6.Outflows-TTD!C19*6.Outflows-TTD!D19=6.Outflows-TTD!E19 | E180: 167 | F180: =IF(('6.Outflows-TTD'!C19*'6.Outflows-TTD'!D19='6.Outflows-TTD'!E19),TRUE,FALSE) -> TRUE
A181: Less stable deposits: Saving deposits in TT dollar | B181: In-schedule | C181: S06.DP10*0.1=S06.DP80 | D181: 6.Outflows-TTD!C20*6.Outflows-TTD!D20=6.Outflows-TTD!E20 | E181: 168 | F181: =IF(('6.Outflows-TTD'!C20*'6.Outflows-TTD'!D20='6.Outflows-TTD'!E20),TRUE,FALSE) -> TRUE
A182: Less stable deposits: Saving deposits in foreign currency | B182: In-schedule | C182: S06.DP11*0.1=S06.DP81 | D182: 6.Outflows-TTD!C21*6.Outflows-TTD!D21=6.Outflows-TTD!E21 | E182: 169 | F182: =IF(('6.Outflows-TTD'!C21*'6.Outflows-TTD'!D21='6.Outflows-TTD'!E21),TRUE,FALSE) -> TRUE
A183: Less stable deposits: Time deposits in TT dollar | B183: In-schedule | C183: S06.DP12*0.1=S06.DP82 | D183: 6.Outflows-TTD!C22*6.Outflows-TTD!D22=6.Outflows-TTD!E22 | E183: 170 | F183: =IF(('6.Outflows-TTD'!C22*'6.Outflows-TTD'!D22='6.Outflows-TTD'!E22),TRUE,FALSE) -> TRUE
A184: Less stable deposits: Time deposits in foreign currency | B184: In-schedule | C184: S06.DP13*0.1=S06.DP83 | D184: 6.Outflows-TTD!C23*6.Outflows-TTD!D23=6.Outflows-TTD!E23 | E184: 171 | F184: =IF(('6.Outflows-TTD'!C23*'6.Outflows-TTD'!D23='6.Outflows-TTD'!E23),TRUE,FALSE) -> TRUE
A185: Total retail deposits outflows | B185: In-schedule | C185: S06.DP84=SUM(S06.DP71:DP83) | D185: 6.Outflows-TTD!E24=SUM(6.Outflows-TTD!E9:E23) | E185: 172 | F185: =IF('6.Outflows-TTD'!E24=SUM('6.Outflows-TTD'!E9:E23),TRUE,FALSE) -> TRUE
A186: Stable small business: Qualifying demand deposits in TT dollars | B186: In-schedule | C186: S06.DP15*0.05=S06.DP85 | D186: 6.Outflows-TTD!C28*6.Outflows-TTD!D28=6.Outflows-TTD!E28 | E186: 173 | F186: =IF(('6.Outflows-TTD'!C28*'6.Outflows-TTD'!D28='6.Outflows-TTD'!E28),TRUE,FALSE) -> TRUE
A187: Stable small business: Qualifying demand deposits in foreign currency | B187: In-schedule | C187: S06.DP16*0.05=S06.DP86 | D187: 6.Outflows-TTD!C29*6.Outflows-TTD!D29=6.Outflows-TTD!E29 | E187: 174 | F187: =IF(('6.Outflows-TTD'!C29*'6.Outflows-TTD'!D29='6.Outflows-TTD'!E29),TRUE,FALSE) -> TRUE
A188: Stable small business: Qualifying saving deposits in TT dollars | B188: In-schedule | C188: S06.DP17*0.05=S06.DP87 | D188: 6.Outflows-TTD!C30*6.Outflows-TTD!D30=6.Outflows-TTD!E30 | E188: 175 | F188: =IF(('6.Outflows-TTD'!C30*'6.Outflows-TTD'!D30='6.Outflows-TTD'!E30),TRUE,FALSE) -> TRUE
A189: Stable small business: Qualifying saving deposits in foreign currency | B189: In-schedule | C189: S06.DP18*0.05=S06.DP88 | D189: 6.Outflows-TTD!C31*6.Outflows-TTD!D31=6.Outflows-TTD!E31 | E189: 176 | F189: =IF(('6.Outflows-TTD'!C31*'6.Outflows-TTD'!D31='6.Outflows-TTD'!E31),TRUE,FALSE) -> TRUE
A190: Stable small business: Qualifying time deposits in TT dollars | B190: In-schedule | C190: S06.DP19*0.05=S06.DP89 | D190: 6.Outflows-TTD!C32*6.Outflows-TTD!D32=6.Outflows-TTD!E32 | E190: 177 | F190: =IF(('6.Outflows-TTD'!C32*'6.Outflows-TTD'!D32='6.Outflows-TTD'!E32),TRUE,FALSE) -> TRUE
A191: Stable small business: Qualifying time deposits in foreign currency | B191: In-schedule | C191: S06.DP20*0.05=S06.DP90 | D191: 6.Outflows-TTD!C33*6.Outflows-TTD!D33=6.Outflows-TTD!E33 | E191: 178 | F191: =IF(('6.Outflows-TTD'!C33*'6.Outflows-TTD'!D33='6.Outflows-TTD'!E33),TRUE,FALSE) -> TRUE
A192: Less stable small business: Demand deposits in TT dollar | B192: In-schedule | C192: S06.DP21*0.1=S06.DP91 | D192: 6.Outflows-TTD!C35*6.Outflows-TTD!D35=6.Outflows-TTD!E35 | E192: 179 | F192: =IF(('6.Outflows-TTD'!C35*'6.Outflows-TTD'!D35='6.Outflows-TTD'!E35),TRUE,FALSE) -> TRUE
A193: Less stable small business: Demand deposits in foreign currency | B193: In-schedule | C193: S06.DP22*0.1=S06.DP92 | D193: 6.Outflows-TTD!C36*6.Outflows-TTD!D36=6.Outflows-TTD!E36 | E193: 180 | F193: =IF(('6.Outflows-TTD'!C36*'6.Outflows-TTD'!D36='6.Outflows-TTD'!E36),TRUE,FALSE) -> TRUE
A194: Less stable small business: Saving deposits in TT dollar | B194: In-schedule | C194: S06.DP23*0.1=S06.DP93 | D194: 6.Outflows-TTD!C37*6.Outflows-TTD!D37=6.Outflows-TTD!E37 | E194: 181 | F194: =IF(('6.Outflows-TTD'!C37*'6.Outflows-TTD'!D37='6.Outflows-TTD'!E37),TRUE,FALSE) -> TRUE
A195: Less stable small business: Saving deposits in foreign currency | B195: In-schedule | C195: S06.DP24*0.1=S06.DP94 | D195: 6.Outflows-TTD!C38*6.Outflows-TTD!D38=6.Outflows-TTD!E38 | E195: 182 | F195: =IF(('6.Outflows-TTD'!C38*'6.Outflows-TTD'!D38='6.Outflows-TTD'!E38),TRUE,FALSE) -> TRUE
A196: Less stable small business: Time deposits in TT dollar | B196: In-schedule | C196: S06.DP25*0.1=S06.DP95 | D196: 6.Outflows-TTD!C39*6.Outflows-TTD!D39=6.Outflows-TTD!E39 | E196: 183 | F196: =IF(('6.Outflows-TTD'!C39*'6.Outflows-TTD'!D39='6.Outflows-TTD'!E39),TRUE,FALSE) -> TRUE
A197: Less stable small business: Time deposits in foreign currency | B197: In-schedule | C197: S06.DP26*0.1=S06.DP96 | D197: 6.Outflows-TTD!C40*6.Outflows-TTD!D40=6.Outflows-TTD!E40 | E197: 184 | F197: =IF(('6.Outflows-TTD'!C40*'6.Outflows-TTD'!D40='6.Outflows-TTD'!E40),TRUE,FALSE) -> TRUE
A198: Term deposits with a remaining maturity of > 30 days | B198: In-schedule | C198: S06.DP27*0.0=S06.DP97 | D198: 6.Outflows-TTD!C41*6.Outflows-TTD!D41=6.Outflows-TTD!E41 | E198: 185 | F198: =IF(('6.Outflows-TTD'!C41*'6.Outflows-TTD'!D41='6.Outflows-TTD'!E41),TRUE,FALSE) -> TRUE
A199: Operational deposits: Not covered by deposit insurance | B199: In-schedule | C199: S06.DP28*0.25=S06.DP98 | D199: 6.Outflows-TTD!C43*6.Outflows-TTD!D43=6.Outflows-TTD!E43 | E199: 186 | F199: =IF(('6.Outflows-TTD'!C43*'6.Outflows-TTD'!D43='6.Outflows-TTD'!E43),TRUE,FALSE) -> TRUE
A200: Operational deposits: Covered by deposit insurance | B200: In-schedule | C200: S06.DP29*0.05=S06.DP99 | D200: 6.Outflows-TTD!C44*6.Outflows-TTD!D44=6.Outflows-TTD!E44 | E200: 187 | F200: =IF(('6.Outflows-TTD'!C44*'6.Outflows-TTD'!D44='6.Outflows-TTD'!E44),TRUE,FALSE) -> TRUE
... 607 more rows
